{"text_format":"1","workbook":"xlsx","n_sheets":10,"sheets":["Instructions","Background","Special Fuels","Heat supplied (EC1)","Energy Centre(s) (EC1)","Summary (EC1)","Overall Summary","PCDB Data Summary","Format History","Lookups"],"not_rendered":{"charts":2,"images":1,"macros":1,"external_links":0,"defined_names":16,"comments":0,"pivot_tables":0},"unopened":[],"bounds":{"document_bytes":16777216,"sheet_cells":100000,"rows_first":2000,"rows_last":500,"rows_between":2000,"halvings":0,"cell_chars":16384,"cell_head_chars":4096},"cells_cut":0,"cells_raw":0,"read":"whole","date_system":"1900"}

{"sheet":"Instructions","index":0,"n_rows":29,"n_cols":1,"rows_kept":29,"cut":false,"hidden":false,"merged":[]}
["Application workbook for entry of heat network performance data in SAP PCDB"]
[]
["INSTRUCTIONS"]
[]
["1) This workbook should only be completed after reading the latest version of the document: \"Application guide for entry of heat network performance data in SAP Product Characteristics Database\". This can be found at the website: www.ncm-pcdb.org.uk/sap"]
[]
["2) Network Operators must ensure that the latest Workbook Format is completed for applications. This can be checked by visiting the website: www.ncm-pcdb.org.uk/sap "]
[]
["3) Network Operators should fully complete the Workbook and submit to: sapproductlisting@bre.co.uk"]
[]
["4) The PCDB Administrator (Building Research Establishment Ltd) will review the application workbook and report issues (errors or matters requiring clarification) to the Network Operator (applicant) for amendment. "]
[]
["5) Application iterations may result from (4), the Network Operator must ensure that the date the Workbook is completed and submitted or resubmitted is recorded during this process (within Cell B4 of \"Background\" worksheet). This ensures older workbook versions can be distinguished."]
[]
["6) Workbooks submitted by the Network Operator must include the \"Network Name\" and date that the Workbook is submitted or resubmitted in the filename, e.g. \"Application Workbook for listing of heat networks in SAP PCDB - Lerwick District Heating - 13.10.14.xls\""]
[]
["7) Data should be entered in Workbook cells with a yellow background. \nWorkbook cells with a blue background are automatically calculated by the sheet. \nWorkbook cells with a light blue background are automatically calculated by the sheet but may be overwritten."]
[]
["8) If the PCDB Administrator confirms that the workbook has been accepted, they will request that a \"SAP PCDB Application Declaration for Heat Network by Network Operator\" is signed by the Network Operator. This form confirms the revision date of the accepted workbook and acceptance of the \"Terms and Conditions applicable to the listing of individual branded product performance data as an input to the National Calculation Methodologies for dwellings\"."]
[]
[]
["Disclaimer: Building Research Establishment Ltd. makes no representation or warranty that the content of this spreadsheet is suitable for any use or that it constitutes accurate data and/or advice."]
[]
[]
[]
[]
[]
[]
[{"$f":"\"Workbook Format \"&TEXT('Format History'!A18,\"0.00\")&\" - \"&TEXT('Format History'!B18,\"dd.mm.yyyy\")","v":"Workbook Format 2.00.9 - 18.7.22"}]

{"sheet":"Background","index":1,"n_rows":107,"n_cols":3,"rows_kept":107,"cut":false,"hidden":false,"merged":[]}
[]
["BACKGROUND"]
[]
["Date workbook completed [DD/MM/YY]"]
[]
["Previous Network Index number (if PCDB listed)"]
[]
["Previous version number (if PCDB listed)"]
[]
["Network Name"]
[]
["Address of the Primary Energy Centre"]
[]
["Postcode of the Primary Energy Centre"]
[]
["Network Operator (may be the Heat Network owner or a suitably qualified organisation or individual appointed by them)"]
[]
["Network Operator - Contact person (responsible for application)"]
[]
["Contact person's telephone number"]
[]
["Contact person's email address"]
[]
["Description of network (up to 255 characters)"]
[]
["Length of the heat distribution route (m)"]
[]
["Date of initial operation (see guidelines) [DD/MM/YY]"]
[]
["Network status (see guidelines)"]
[]
["Network service provision"]
[]
["Number of energy centres",1]
[]
["Can all energy centres supply all heat loads?","yes"]
[]
["Estimated commissioning date"]
[]
[]
[]
[]
[{"$f":"Instructions!A29","v":"Workbook Format 2.00.9 - 18.7.22"}]
[]
[]
[]
[]
[]
[]
[]
[]
[]
[]
[]
[]
[]
[]
[]
[]
[]
[]
[]
[]
[]
[]
[]
[]
[]
[]
[]
[]
[]
[]
[]
[]
[]
[]
[]
[]
[]
[]
[]
[]
[]
[]
[]
[]
[]
[]
[]
[]
[]
[]
[]
[null,"New network"]
[null,"Existing network"]
[null,"Existing network plus planned extension "]
[null,"Other"]
[]
[]
[]
[]
[]
[]
[null,"Space and water heating",1]
[null,"Space heating only",3]
[null,"Water heating only",4]

{"sheet":"Special Fuels","index":2,"n_rows":103,"n_cols":5,"rows_kept":103,"cut":false,"hidden":false,"merged":[]}
[{"$f":"Instructions!A29","v":"Workbook Format 2.00.9 - 18.7.22"}]
["Note: Only enter data in cells with a yellow background. "]
[]
["If hydrogen is used in the scheme factor please provide:"]
["Hydrogen CO2e Emissions factor",null,null,"CO2e kg/kWh"]
["Hydrogen PE Factor",null,null,"kWh/kWh"]
["If Green Gas Certificates are used in this scheme please provide:"]
["Green Gas CO2e Emissions factor",null,null,"CO2e kg/kWh","(this factor should be representative of the mix of fuel burnt)"]
["Green Gas PE Factor",null,null,"kWh/kWh"]
["If a fuel is proposed to used that doesn't appear above or in the dropdown please enter factors here"]
["Bespoke fuel CO2e Emissions factor",null,null,"CO2e kg/kWh"]
["Bespoke fuel PE Factor",null,null,"kWh/kWh"]
["Please provide justification for these values"]
[]
[]
[]
[{"$f":"Instructions!A29","v":"Workbook Format 2.00.9 - 18.7.22"}]
[]
[]
[]
[]
[]
[]
[]
[]
[]
[]
[]
[]
[]
[]
[]
[]
[]
[]
[]
[]
[]
[]
[]
[]
[]
[]
[]
[]
[]
[]
[]
[]
[]
[]
[]
[]
[]
[]
[]
[]
[]
[]
[]
[]
[]
[]
[]
[]
[]
[]
[]
[]
[]
[]
[]
[]
[]
[]
[]
[]
[]
[]
[]
[]
[]
[]
[]
[]
[]
[]
[]
[]
[]
[]
[]
[]
[]
[]
["Spark ignition reciprocating engine CHP"]
["Compresion ignition reciprocating engine CHP"]
["Gas turbine CHP"]
["Steam turbine CHP"]
["Other CHP"]
["Boilers"]
["Heat pump"]
["Other heat source"]

{"sheet":"Heat supplied (EC1)","index":3,"n_rows":315,"n_cols":79,"rows_kept":315,"cut":false,"hidden":false,"merged":[]}
[{"$f":"Instructions!A29","v":"Workbook Format 2.00.9 - 18.7.22"}]
[]
["Note: Only enter data in cells with a yellow background. Cells with a blue background contain pre-set calculations."]
["Default Secondary DLF for New Connections",null,null,null,null,null,null,null,null,null,null,null,1.18,"Should only be changed from 1.18 if a different default factor has been agreed with BRE "]
["Long term average primary distribution loss factor",null,null,null,null,null,null,null,null,null,null,null,null,"If left blank calculated value will be used"]
["Year to which data relates",null,null,null,null,null,null,null,null,null,null,null,null,"Leave blank if estimated data"]
[]
[null,null,null,null,null,null,null,null,null,null,null,null,null,null,null,null,"Jan (MWh)","Feb (MWh)","Mar (MWh)","Apr (MWh)","May (MWh)","Jun (MWh)","Jul (MWh)","Aug (MWh)","Sep (MWh)","Oct (MWh)","Nov (MWh)","Dec (MWh)",null,"TOTAL"]
["TOTAL heat supplied to customers",null,null,null,null,null,null,null,null,null,null,null,null,null,"TOTAL heat supplied to customers",null,{"$f":"Q14+Q136","v":0},0,0,0,0,0,0,0,0,0,0,0,null,{"$f":"AD14+AD136","v":0}]
["TOTAL heat supplied to buildings (inc Secondary Losses)",null,null,null,null,null,null,null,null,null,null,null,null,null,"TOTAL heat supplied to buildings (inc Secondary Losses)",null,{"$f":"Q9+AW14","v":0},0,0,0,0,0,0,0,0,0,0,0,null,{"$f":"AD9+BJ14","v":0}]
[null,null,null,null,null,null,null,null,null,null,null,null,null,null,null,null,null,null,null,null,null,null,null,null,null,null,null,null,null,null,null,null,null,null,null,"Profiling if annual values entered"]
["Domestic heat supplied",null,null,null,null,null,null,null,null,null,null,null,null,null,null,null,null,null,null,null,null,null,null,null,null,null,null,null,null,null,null,null,null,null,null,"Profile"]
[null,null,null,null,null,null,null,null,null,null,null,null,null,null,null,null,null,null,null,null,null,null,null,null,null,null,null,null,null,null,null,null,null,null,"Total",{"$f":"SUM(AJ14:AJ15)","v":0.15373142001581275},{"$f":"SUM(AK14:AK15)","v":0.12527498507608562},0.11573887382593304,9.5060978937977408E-2,3.8091306227908073E-2,3.3312190059622902E-2,3.2764850959493129E-2,3.5035853856685499E-2,3.6376030769544786E-2,7.0213055707764566E-2,0.12303914965750976,0.14136130490566237,null,"Secondary Losses",null,null,null,null,null,null,null,null,null,null,null,null,null,null,"Secondary DLFs"]
["TOTAL dwellings",{"$f":"B127+B129+B130+B131+B132","v":0},null,null,null,null,null,null,null,null,null,null,null,null,"Domestic Exc Secondary Losses",null,{"$f":"Q127+Q129+Q130+Q131+Q132","v":0},{"$f":"R127+R129+R130+R131+R132","v":0},0,0,0,0,0,0,0,0,0,0,null,{"$f":"AD127+AD129+AD130+AD131+AD132","v":0},null,null,null,null,"SH",0.10129032258064516,7.9838709677419351E-2,6.8548387096774188E-2,5.4677419354838712E-2,0,0,0,0,0,2.8548387096774194E-2,7.7580645161290318E-2,8.9516129032258071E-2,null,{"$f":"AW127","v":0},{"$f":"AX127","v":0},0,0,0,0,0,0,0,0,0,0,null,0]
[null,null,null,null,null,null,null,null,null,null,null,null,null,null,"Domestic Inc Secondary Losses",null,{"$f":"Q14+AW14","v":0},0,0,0,0,0,0,0,0,0,0,0,null,{"$f":"AD14+BJ14","v":0},null,null,null,null,"DHW",5.2441097435167575E-2,4.5436275398666272E-2,4.7190486729158855E-2,4.0383559583138703E-2,3.8091306227908073E-2,3.3312190059622902E-2,3.2764850959493129E-2,3.5035853856685499E-2,3.6376030769544786E-2,4.1664668610990371E-2,4.5458504496219437E-2,5.1845175873404307E-2]
["Apartment Block Name","Number of dwellings","Year built",null,"Building Status",null,"DH connection status",null,"Data type",null,"Secondary Losses W/dwelling",null,"Annual or Monthly MWh Entry?",null,"Annual MWh",null,"Jan (MWh)","Feb (MWh)","Mar (MWh)","Apr (MWh)","May (MWh)","Jun (MWh)","Jul (MWh)","Aug (MWh)","Sep (MWh)","Oct (MWh)","Nov (MWh)","Dec (MWh)",null,"TOTAL",null,null,null,null,null,"Jan (MWh)","Feb (MWh)","Mar (MWh)","Apr (MWh)","May (MWh)","Jun (MWh)","Jul (MWh)","Aug (MWh)","Sep (MWh)","Oct (MWh)","Nov (MWh)","Dec (MWh)",null,"Jan (MWh)","Feb (MWh)","Mar (MWh)","Apr (MWh)","May (MWh)","Jun (MWh)","Jul (MWh)","Aug (MWh)","Sep (MWh)","Oct (MWh)","Nov (MWh)","Dec (MWh)",null,"Total MWh",null,"Jan","Feb","Mar","Apr","May","Jun","Jul","Aug","Sep","Oct","Nov","Dec"]
[null,null,null,null,null,null,null,null,null,null,null,null,null,null,null,null,null,null,null,null,null,null,null,null,null,null,null,null,null,{"$f":"IF(M17=\"Monthly\",SUM(Q17:AB17),O17)","v":0},null,{"$f":"AD17/B17","v":{"$error":"#DIV/0!"}},"MWh/year per dwelling",null,null,{"$f":"IF($M17=\"Annual\",AJ$13*$O17,0)","v":0},{"$f":"IF($M17=\"Annual\",AK$13*$O17,0)","v":0},0,0,0,0,0,0,0,0,0,0,null,{"$f":"$K17*31*24/1000000*$B17","v":0},{"$f":"$K17*28*24/1000000*$B17","v":0},{"$f":"$K17*31*24/1000000*$B17","v":0},{"$f":"$K17*30*24/1000000*$B17","v":0},{"$f":"$K17*31*24/1000000*$B17","v":0},{"$f":"$K17*30*24/1000000*$B17","v":0},{"$f":"$K17*31*24/1000000*$B17","v":0},0,{"$f":"$K17*30*24/1000000*$B17","v":0},{"$f":"$K17*31*24/1000000*$B17","v":0},{"$f":"$K17*30*24/1000000*$B17","v":0},{"$f":"$K17*31*24/1000000*$B17","v":0},null,{"$f":"SUM(AW17:BH17)","v":0},null,{"$f":"IF($M17=\"Monthly\",(Q17+AW17)/Q17,(AJ17+AW17)/AJ17)","v":{"$error":"#DIV/0!"}},{"$f":"IF($M17=\"Monthly\",(R17+AX17)/R17,(AK17+AX17)/AK17)","v":{"$error":"#DIV/0!"}},{"$error":"#DIV/0!"},{"$error":"#DIV/0!"},{"$error":"#DIV/0!"},{"$error":"#DIV/0!"},{"$error":"#DIV/0!"},{"$error":"#DIV/0!"},{"$error":"#DIV/0!"},{"$error":"#DIV/0!"},{"$error":"#DIV/0!"},{"$error":"#DIV/0!"},null,{"$f":"IFERROR(((AD17+BJ17)/AD17),\"\")","v":""},null,{"$f":"BJ17+AD17","v":0}]
[null,null,null,null,null,null,null,null,null,null,null,null,null,null,null,null,null,null,null,null,null,null,null,null,null,null,null,null,null,{"$f":"IF(M18=\"Monthly\",SUM(Q18:AB18),O18)","v":0},null,{"$error":"#DIV/0!"},"MWh/year per dwelling",null,null,{"$f":"IF($M18=\"Annual\",AJ$13*$O18,0)","v":0},0,0,0,0,0,0,0,0,0,0,0,null,0,0,0,0,0,0,0,0,0,0,0,0,null,{"$f":"SUM(AW18:BH18)","v":0},null,{"$f":"IF($M18=\"Monthly\",(Q18+AW18)/Q18,(AJ18+AW18)/AJ18)","v":{"$error":"#DIV/0!"}},{"$error":"#DIV/0!"},{"$error":"#DIV/0!"},{"$error":"#DIV/0!"},{"$error":"#DIV/0!"},{"$error":"#DIV/0!"},{"$error":"#DIV/0!"},{"$error":"#DIV/0!"},{"$error":"#DIV/0!"},{"$error":"#DIV/0!"},{"$error":"#DIV/0!"},{"$error":"#DIV/0!"},null,"",null,0]
[null,null,null,null,null,null,null,null,null,null,null,null,null,null,null,null,null,null,null,null,null,null,null,null,null,null,null,null,null,0,null,{"$error":"#DIV/0!"},"MWh/year per dwelling",null,null,0,0,0,0,0,0,0,0,0,0,0,0,null,0,0,0,0,0,0,0,0,0,0,0,0,null,{"$f":"SUM(AW19:BH19)","v":0},null,{"$error":"#DIV/0!"},{"$error":"#DIV/0!"},{"$error":"#DIV/0!"},{"$error":"#DIV/0!"},{"$error":"#DIV/0!"},{"$error":"#DIV/0!"},{"$error":"#DIV/0!"},{"$error":"#DIV/0!"},{"$error":"#DIV/0!"},{"$error":"#DIV/0!"},{"$error":"#DIV/0!"},{"$error":"#DIV/0!"},null,"",null,0]
[null,null,null,null,null,null,null,null,null,null,null,null,null,null,null,null,null,null,null,null,null,null,null,null,null,null,null,null,null,0,null,{"$error":"#DIV/0!"},"MWh/year per dwelling",null,null,0,0,0,0,0,0,0,0,0,0,0,0,null,0,0,0,0,0,0,0,0,0,0,0,0,null,{"$f":"SUM(AW20:BH20)","v":0},null,{"$error":"#DIV/0!"},{"$error":"#DIV/0!"},{"$error":"#DIV/0!"},{"$error":"#DIV/0!"},{"$error":"#DIV/0!"},{"$error":"#DIV/0!"},{"$error":"#DIV/0!"},{"$error":"#DIV/0!"},{"$error":"#DIV/0!"},{"$error":"#DIV/0!"},{"$error":"#DIV/0!"},{"$error":"#DIV/0!"},null,"",null,0]
[null,null,null,null,null,null,null,null,null,null,null,null,null,null,null,null,null,null,null,null,null,null,null,null,null,null,null,null,null,0,null,{"$error":"#DIV/0!"},"MWh/year per dwelling",null,null,0,0,0,0,0,0,0,0,0,0,0,0,null,0,0,0,0,0,0,0,0,0,0,0,0,null,{"$f":"SUM(AW21:BH21)","v":0},null,{"$error":"#DIV/0!"},{"$error":"#DIV/0!"},{"$error":"#DIV/0!"},{"$error":"#DIV/0!"},{"$error":"#DIV/0!"},{"$error":"#DIV/0!"},{"$error":"#DIV/0!"},{"$error":"#DIV/0!"},{"$error":"#DIV/0!"},{"$error":"#DIV/0!"},{"$error":"#DIV/0!"},{"$error":"#DIV/0!"},null,"",null,0]
[null,null,null,null,null,null,null,null,null,null,null,null,null,null,null,null,null,null,null,null,null,null,null,null,null,null,null,null,null,0,null,{"$error":"#DIV/0!"},"MWh/year per dwelling",null,null,0,0,0,0,0,0,0,0,0,0,0,0,null,0,0,0,0,0,0,0,0,0,0,0,0,null,{"$f":"SUM(AW22:BH22)","v":0},null,{"$error":"#DIV/0!"},{"$error":"#DIV/0!"},{"$error":"#DIV/0!"},{"$error":"#DIV/0!"},{"$error":"#DIV/0!"},{"$error":"#DIV/0!"},{"$error":"#DIV/0!"},{"$error":"#DIV/0!"},{"$error":"#DIV/0!"},{"$error":"#DIV/0!"},{"$error":"#DIV/0!"},{"$error":"#DIV/0!"},null,"",null,0]
[null,null,null,null,null,null,null,null,null,null,null,null,null,null,null,null,null,null,null,null,null,null,null,null,null,null,null,null,null,0,null,{"$error":"#DIV/0!"},"MWh/year per dwelling",null,null,0,0,0,0,0,0,0,0,0,0,0,0,null,0,0,0,0,0,0,0,0,0,0,0,0,null,0,null,{"$error":"#DIV/0!"},{"$error":"#DIV/0!"},{"$error":"#DIV/0!"},{"$error":"#DIV/0!"},{"$error":"#DIV/0!"},{"$error":"#DIV/0!"},{"$error":"#DIV/0!"},{"$error":"#DIV/0!"},{"$error":"#DIV/0!"},{"$error":"#DIV/0!"},{"$error":"#DIV/0!"},{"$error":"#DIV/0!"},null,"",null,0]
[null,null,null,null,null,null,null,null,null,null,null,null,null,null,null,null,null,null,null,null,null,null,null,null,null,null,null,null,null,0,null,{"$error":"#DIV/0!"},"MWh/year per dwelling",null,null,0,0,0,0,0,0,0,0,0,0,0,0,null,0,0,0,0,0,0,0,0,0,0,0,0,null,0,null,{"$error":"#DIV/0!"},{"$error":"#DIV/0!"},{"$error":"#DIV/0!"},{"$error":"#DIV/0!"},{"$error":"#DIV/0!"},{"$error":"#DIV/0!"},{"$error":"#DIV/0!"},{"$error":"#DIV/0!"},{"$error":"#DIV/0!"},{"$error":"#DIV/0!"},{"$error":"#DIV/0!"},{"$error":"#DIV/0!"},null,"",null,0]
[null,null,null,null,null,null,null,null,null,null,null,null,null,null,null,null,null,null,null,null,null,null,null,null,null,null,null,null,null,0,null,{"$error":"#DIV/0!"},"MWh/year per dwelling",null,null,0,0,0,0,0,0,0,0,0,0,0,0,null,0,0,0,0,0,0,0,0,0,0,0,0,null,0,null,{"$error":"#DIV/0!"},{"$error":"#DIV/0!"},{"$error":"#DIV/0!"},{"$error":"#DIV/0!"},{"$error":"#DIV/0!"},{"$error":"#DIV/0!"},{"$error":"#DIV/0!"},{"$error":"#DIV/0!"},{"$error":"#DIV/0!"},{"$error":"#DIV/0!"},{"$error":"#DIV/0!"},{"$error":"#DIV/0!"},null,"",null,0]
[null,null,null,null,null,null,null,null,null,null,null,null,null,null,null,null,null,null,null,null,null,null,null,null,null,null,null,null,null,0,null,{"$error":"#DIV/0!"},"MWh/year per dwelling",null,null,0,0,0,0,0,0,0,0,0,0,0,0,null,0,0,0,0,0,0,0,0,0,0,0,0,null,0,null,{"$error":"#DIV/0!"},{"$error":"#DIV/0!"},{"$error":"#DIV/0!"},{"$error":"#DIV/0!"},{"$error":"#DIV/0!"},{"$error":"#DIV/0!"},{"$error":"#DIV/0!"},{"$error":"#DIV/0!"},{"$error":"#DIV/0!"},{"$error":"#DIV/0!"},{"$error":"#DIV/0!"},{"$error":"#DIV/0!"},null,"",null,0]
[null,null,null,null,null,null,null,null,null,null,null,null,null,null,null,null,null,null,null,null,null,null,null,null,null,null,null,null,null,0,null,{"$error":"#DIV/0!"},"MWh/year per dwelling",null,null,0,0,0,0,0,0,0,0,0,0,0,0,null,0,0,0,0,0,0,0,0,0,0,0,0,null,0,null,{"$error":"#DIV/0!"},{"$error":"#DIV/0!"},{"$error":"#DIV/0!"},{"$error":"#DIV/0!"},{"$error":"#DIV/0!"},{"$error":"#DIV/0!"},{"$error":"#DIV/0!"},{"$error":"#DIV/0!"},{"$error":"#DIV/0!"},{"$error":"#DIV/0!"},{"$error":"#DIV/0!"},{"$error":"#DIV/0!"},null,"",null,0]
[null,null,null,null,null,null,null,null,null,null,null,null,null,null,null,null,null,null,null,null,null,null,null,null,null,null,null,null,null,0,null,{"$error":"#DIV/0!"},"MWh/year per dwelling",null,null,0,0,0,0,0,0,0,0,0,0,0,0,null,0,0,0,0,0,0,0,0,0,0,0,0,null,0,null,{"$error":"#DIV/0!"},{"$error":"#DIV/0!"},{"$error":"#DIV/0!"},{"$error":"#DIV/0!"},{"$error":"#DIV/0!"},{"$error":"#DIV/0!"},{"$error":"#DIV/0!"},{"$error":"#DIV/0!"},{"$error":"#DIV/0!"},{"$error":"#DIV/0!"},{"$error":"#DIV/0!"},{"$error":"#DIV/0!"},null,"",null,0]
[null,null,null,null,null,null,null,null,null,null,null,null,null,null,null,null,null,null,null,null,null,null,null,null,null,null,null,null,null,0,null,{"$error":"#DIV/0!"},"MWh/year per dwelling",null,null,0,0,0,0,0,0,0,0,0,0,0,0,null,0,0,0,0,0,0,0,0,0,0,0,0,null,0,null,{"$error":"#DIV/0!"},{"$error":"#DIV/0!"},{"$error":"#DIV/0!"},{"$error":"#DIV/0!"},{"$error":"#DIV/0!"},{"$error":"#DIV/0!"},{"$error":"#DIV/0!"},{"$error":"#DIV/0!"},{"$error":"#DIV/0!"},{"$error":"#DIV/0!"},{"$error":"#DIV/0!"},{"$error":"#DIV/0!"},null,"",null,0]
[null,null,null,null,null,null,null,null,null,null,null,null,null,null,null,null,null,null,null,null,null,null,null,null,null,null,null,null,null,0,null,{"$error":"#DIV/0!"},"MWh/year per dwelling",null,null,0,0,0,0,0,0,0,0,0,0,0,0,null,0,0,0,0,0,0,0,0,0,0,0,0,null,0,null,{"$error":"#DIV/0!"},{"$error":"#DIV/0!"},{"$error":"#DIV/0!"},{"$error":"#DIV/0!"},{"$error":"#DIV/0!"},{"$error":"#DIV/0!"},{"$error":"#DIV/0!"},{"$error":"#DIV/0!"},{"$error":"#DIV/0!"},{"$error":"#DIV/0!"},{"$error":"#DIV/0!"},{"$error":"#DIV/0!"},null,"",null,0]
[null,null,null,null,null,null,null,null,null,null,null,null,null,null,null,null,null,null,null,null,null,null,null,null,null,null,null,null,null,0,null,{"$error":"#DIV/0!"},"MWh/year per dwelling",null,null,0,0,0,0,0,0,0,0,0,0,0,0,null,0,0,0,0,0,0,0,0,0,0,0,0,null,0,null,{"$error":"#DIV/0!"},{"$error":"#DIV/0!"},{"$error":"#DIV/0!"},{"$error":"#DIV/0!"},{"$error":"#DIV/0!"},{"$error":"#DIV/0!"},{"$error":"#DIV/0!"},{"$error":"#DIV/0!"},{"$error":"#DIV/0!"},{"$error":"#DIV/0!"},{"$error":"#DIV/0!"},{"$error":"#DIV/0!"},null,"",null,0]
[null,null,null,null,null,null,null,null,null,null,null,null,null,null,null,null,null,null,null,null,null,null,null,null,null,null,null,null,null,0,null,{"$error":"#DIV/0!"},"MWh/year per dwelling",null,null,0,0,0,0,0,0,0,0,0,0,0,0,null,0,0,0,0,0,0,0,0,0,0,0,0,null,0,null,{"$error":"#DIV/0!"},{"$error":"#DIV/0!"},{"$error":"#DIV/0!"},{"$error":"#DIV/0!"},{"$error":"#DIV/0!"},{"$error":"#DIV/0!"},{"$error":"#DIV/0!"},{"$error":"#DIV/0!"},{"$error":"#DIV/0!"},{"$error":"#DIV/0!"},{"$error":"#DIV/0!"},{"$error":"#DIV/0!"},null,"",null,0]
[null,null,null,null,null,null,null,null,null,null,null,null,null,null,null,null,null,null,null,null,null,null,null,null,null,null,null,null,null,0,null,{"$error":"#DIV/0!"},"MWh/year per dwelling",null,null,0,0,0,0,0,0,0,0,0,0,0,0,null,0,0,0,0,0,0,0,0,0,0,0,0,null,0,null,{"$error":"#DIV/0!"},{"$error":"#DIV/0!"},{"$error":"#DIV/0!"},{"$error":"#DIV/0!"},{"$error":"#DIV/0!"},{"$error":"#DIV/0!"},{"$error":"#DIV/0!"},{"$error":"#DIV/0!"},{"$error":"#DIV/0!"},{"$error":"#DIV/0!"},{"$error":"#DIV/0!"},{"$error":"#DIV/0!"},null,"",null,0]
[null,null,null,null,null,null,null,null,null,null,null,null,null,null,null,null,null,null,null,null,null,null,null,null,null,null,null,null,null,0,null,{"$error":"#DIV/0!"},"MWh/year per dwelling",null,null,{"$f":"IF($M34=\"Annual\",AJ$13*$O34,0)","v":0},0,0,0,0,0,0,0,0,0,0,0,null,0,0,0,0,0,0,0,0,0,0,0,0,null,0,null,{"$error":"#DIV/0!"},{"$error":"#DIV/0!"},{"$error":"#DIV/0!"},{"$error":"#DIV/0!"},{"$error":"#DIV/0!"},{"$error":"#DIV/0!"},{"$error":"#DIV/0!"},{"$error":"#DIV/0!"},{"$error":"#DIV/0!"},{"$error":"#DIV/0!"},{"$error":"#DIV/0!"},{"$error":"#DIV/0!"},null,"",null,0]
[null,null,null,null,null,null,null,null,null,null,null,null,null,null,null,null,null,null,null,null,null,null,null,null,null,null,null,null,null,0,null,{"$error":"#DIV/0!"},"MWh/year per dwelling",null,null,0,0,0,0,0,0,0,0,0,0,0,0,null,0,0,0,0,0,0,0,0,0,0,0,0,null,0,null,{"$error":"#DIV/0!"},{"$error":"#DIV/0!"},{"$error":"#DIV/0!"},{"$error":"#DIV/0!"},{"$error":"#DIV/0!"},{"$error":"#DIV/0!"},{"$error":"#DIV/0!"},{"$error":"#DIV/0!"},{"$error":"#DIV/0!"},{"$error":"#DIV/0!"},{"$error":"#DIV/0!"},{"$error":"#DIV/0!"},null,"",null,0]
[null,null,null,null,null,null,null,null,null,null,null,null,null,null,null,null,null,null,null,null,null,null,null,null,null,null,null,null,null,0,null,{"$error":"#DIV/0!"},"MWh/year per dwelling",null,null,0,0,0,0,0,0,0,0,0,0,0,0,null,0,0,0,0,0,0,0,0,0,0,0,0,null,0,null,{"$error":"#DIV/0!"},{"$error":"#DIV/0!"},{"$error":"#DIV/0!"},{"$error":"#DIV/0!"},{"$error":"#DIV/0!"},{"$error":"#DIV/0!"},{"$error":"#DIV/0!"},{"$error":"#DIV/0!"},{"$error":"#DIV/0!"},{"$error":"#DIV/0!"},{"$error":"#DIV/0!"},{"$error":"#DIV/0!"},null,"",null,0]
[null,null,null,null,null,null,null,null,null,null,null,null,null,null,null,null,null,null,null,null,null,null,null,null,null,null,null,null,null,0,null,{"$error":"#DIV/0!"},"MWh/year per dwelling",null,null,0,0,0,0,0,0,0,0,0,0,0,0,null,0,0,0,0,0,0,{"$f":"$K37*31*24/1000000*$B37","v":0},0,0,0,0,0,null,0,null,{"$error":"#DIV/0!"},{"$error":"#DIV/0!"},{"$error":"#DIV/0!"},{"$error":"#DIV/0!"},{"$error":"#DIV/0!"},{"$error":"#DIV/0!"},{"$error":"#DIV/0!"},{"$error":"#DIV/0!"},{"$error":"#DIV/0!"},{"$error":"#DIV/0!"},{"$error":"#DIV/0!"},{"$error":"#DIV/0!"},null,"",null,0]
[null,null,null,null,null,null,null,null,null,null,null,null,null,null,null,null,null,null,null,null,null,null,null,null,null,null,null,null,null,0,null,{"$error":"#DIV/0!"},"MWh/year per dwelling",null,null,0,0,0,0,0,0,0,0,0,0,0,0,null,0,0,0,0,0,0,0,0,0,0,0,0,null,0,null,{"$error":"#DIV/0!"},{"$error":"#DIV/0!"},{"$error":"#DIV/0!"},{"$error":"#DIV/0!"},{"$error":"#DIV/0!"},{"$error":"#DIV/0!"},{"$error":"#DIV/0!"},{"$error":"#DIV/0!"},{"$error":"#DIV/0!"},{"$error":"#DIV/0!"},{"$error":"#DIV/0!"},{"$error":"#DIV/0!"},null,"",null,0]
[null,null,null,null,null,null,null,null,null,null,null,null,null,null,null,null,null,null,null,null,null,null,null,null,null,null,null,null,null,0,null,{"$error":"#DIV/0!"},"MWh/year per dwelling",null,null,0,0,0,0,0,0,0,0,0,0,0,0,null,0,0,0,0,0,0,0,0,0,0,0,0,null,0,null,{"$error":"#DIV/0!"},{"$error":"#DIV/0!"},{"$error":"#DIV/0!"},{"$error":"#DIV/0!"},{"$error":"#DIV/0!"},{"$error":"#DIV/0!"},{"$error":"#DIV/0!"},{"$error":"#DIV/0!"},{"$error":"#DIV/0!"},{"$error":"#DIV/0!"},{"$error":"#DIV/0!"},{"$error":"#DIV/0!"},null,"",null,0]
[null,null,null,null,null,null,null,null,null,null,null,null,null,null,null,null,null,null,null,null,null,null,null,null,null,null,null,null,null,0,null,{"$error":"#DIV/0!"},"MWh/year per dwelling",null,null,0,0,0,0,0,0,0,0,0,0,0,0,null,0,0,0,0,0,0,0,0,0,0,0,0,null,0,null,{"$error":"#DIV/0!"},{"$error":"#DIV/0!"},{"$error":"#DIV/0!"},{"$error":"#DIV/0!"},{"$error":"#DIV/0!"},{"$error":"#DIV/0!"},{"$error":"#DIV/0!"},{"$error":"#DIV/0!"},{"$error":"#DIV/0!"},{"$error":"#DIV/0!"},{"$error":"#DIV/0!"},{"$error":"#DIV/0!"},null,"",null,0]
[null,null,null,null,null,null,null,null,null,null,null,null,null,null,null,null,null,null,null,null,null,null,null,null,null,null,null,null,null,0,null,{"$error":"#DIV/0!"},"MWh/year per dwelling",null,null,0,0,0,0,0,0,0,0,0,0,0,0,null,0,0,0,0,0,0,0,0,0,0,0,0,null,0,null,{"$error":"#DIV/0!"},{"$error":"#DIV/0!"},{"$error":"#DIV/0!"},{"$error":"#DIV/0!"},{"$error":"#DIV/0!"},{"$error":"#DIV/0!"},{"$error":"#DIV/0!"},{"$error":"#DIV/0!"},{"$error":"#DIV/0!"},{"$error":"#DIV/0!"},{"$error":"#DIV/0!"},{"$error":"#DIV/0!"},null,"",null,0]
[null,null,null,null,null,null,null,null,null,null,null,null,null,null,null,null,null,null,null,null,null,null,null,null,null,null,null,null,null,0,null,{"$error":"#DIV/0!"},"MWh/year per dwelling",null,null,0,0,0,0,0,0,0,0,0,0,0,0,null,0,0,0,0,0,0,0,0,0,0,0,0,null,0,null,{"$error":"#DIV/0!"},{"$error":"#DIV/0!"},{"$error":"#DIV/0!"},{"$error":"#DIV/0!"},{"$error":"#DIV/0!"},{"$error":"#DIV/0!"},{"$error":"#DIV/0!"},{"$error":"#DIV/0!"},{"$error":"#DIV/0!"},{"$error":"#DIV/0!"},{"$error":"#DIV/0!"},{"$error":"#DIV/0!"},null,"",null,0]
[null,null,null,null,null,null,null,null,null,null,null,null,null,null,null,null,null,null,null,null,null,null,null,null,null,null,null,null,null,0,null,{"$error":"#DIV/0!"},"MWh/year per dwelling",null,null,0,0,0,0,0,0,0,0,0,0,0,0,null,0,0,0,0,0,0,0,0,0,0,0,0,null,0,null,{"$error":"#DIV/0!"},{"$error":"#DIV/0!"},{"$error":"#DIV/0!"},{"$error":"#DIV/0!"},{"$error":"#DIV/0!"},{"$error":"#DIV/0!"},{"$error":"#DIV/0!"},{"$error":"#DIV/0!"},{"$error":"#DIV/0!"},{"$error":"#DIV/0!"},{"$error":"#DIV/0!"},{"$error":"#DIV/0!"},null,"",null,0]
[null,null,null,null,null,null,null,null,null,null,null,null,null,null,null,null,null,null,null,null,null,null,null,null,null,null,null,null,null,0,null,{"$error":"#DIV/0!"},"MWh/year per dwelling",null,null,0,0,0,0,0,0,0,0,0,0,0,0,null,0,0,0,0,0,0,0,0,0,0,0,0,null,0,null,{"$error":"#DIV/0!"},{"$error":"#DIV/0!"},{"$error":"#DIV/0!"},{"$error":"#DIV/0!"},{"$error":"#DIV/0!"},{"$error":"#DIV/0!"},{"$error":"#DIV/0!"},{"$error":"#DIV/0!"},{"$error":"#DIV/0!"},{"$error":"#DIV/0!"},{"$error":"#DIV/0!"},{"$error":"#DIV/0!"},null,"",null,0]
[null,null,null,null,null,null,null,null,null,null,null,null,null,null,null,null,null,null,null,null,null,null,null,null,null,null,null,null,null,0,null,{"$error":"#DIV/0!"},"MWh/year per dwelling",null,null,0,0,0,0,0,0,0,0,0,0,0,0,null,0,0,0,0,0,0,0,0,0,0,0,0,null,0,null,{"$error":"#DIV/0!"},{"$error":"#DIV/0!"},{"$error":"#DIV/0!"},{"$error":"#DIV/0!"},{"$error":"#DIV/0!"},{"$error":"#DIV/0!"},{"$error":"#DIV/0!"},{"$error":"#DIV/0!"},{"$error":"#DIV/0!"},{"$error":"#DIV/0!"},{"$error":"#DIV/0!"},{"$error":"#DIV/0!"},null,"",null,0]
[null,null,null,null,null,null,null,null,null,null,null,null,null,null,null,null,null,null,null,null,null,null,null,null,null,null,null,null,null,0,null,{"$error":"#DIV/0!"},"MWh/year per dwelling",null,null,0,0,0,0,0,0,0,0,0,0,0,0,null,0,0,0,0,0,0,0,0,0,0,0,0,null,0,null,{"$error":"#DIV/0!"},{"$error":"#DIV/0!"},{"$error":"#DIV/0!"},{"$error":"#DIV/0!"},{"$error":"#DIV/0!"},{"$error":"#DIV/0!"},{"$error":"#DIV/0!"},{"$error":"#DIV/0!"},{"$error":"#DIV/0!"},{"$error":"#DIV/0!"},{"$error":"#DIV/0!"},{"$error":"#DIV/0!"},null,"",null,0]
[null,null,null,null,null,null,null,null,null,null,null,null,null,null,null,null,null,null,null,null,null,null,null,null,null,null,null,null,null,0,null,{"$error":"#DIV/0!"},"MWh/year per dwelling",null,null,0,0,0,0,0,0,0,0,0,0,0,0,null,0,0,0,0,0,0,0,0,0,0,0,0,null,0,null,{"$error":"#DIV/0!"},{"$error":"#DIV/0!"},{"$error":"#DIV/0!"},{"$error":"#DIV/0!"},{"$error":"#DIV/0!"},{"$error":"#DIV/0!"},{"$error":"#DIV/0!"},{"$error":"#DIV/0!"},{"$error":"#DIV/0!"},{"$error":"#DIV/0!"},{"$error":"#DIV/0!"},{"$error":"#DIV/0!"},null,"",null,0]
[null,null,null,null,null,null,null,null,null,null,null,null,null,null,null,null,null,null,null,null,null,null,null,null,null,null,null,null,null,0,null,{"$error":"#DIV/0!"},"MWh/year per dwelling",null,null,0,0,0,0,0,0,0,0,0,0,0,0,null,0,0,0,0,0,0,0,0,0,0,0,0,null,0,null,{"$error":"#DIV/0!"},{"$error":"#DIV/0!"},{"$error":"#DIV/0!"},{"$error":"#DIV/0!"},{"$error":"#DIV/0!"},{"$error":"#DIV/0!"},{"$error":"#DIV/0!"},{"$error":"#DIV/0!"},{"$error":"#DIV/0!"},{"$error":"#DIV/0!"},{"$error":"#DIV/0!"},{"$error":"#DIV/0!"},null,"",null,0]
[null,null,null,null,null,null,null,null,null,null,null,null,null,null,null,null,null,null,null,null,null,null,null,null,null,null,null,null,null,0,null,{"$f":"AD49/B49","v":{"$error":"#DIV/0!"}},"MWh/year per dwelling",null,null,0,0,0,0,0,0,0,0,0,0,0,0,null,{"$f":"$K49*31*24/1000000*$B49","v":0},{"$f":"$K49*28*24/1000000*$B49","v":0},{"$f":"$K49*31*24/1000000*$B49","v":0},{"$f":"$K49*30*24/1000000*$B49","v":0},{"$f":"$K49*31*24/1000000*$B49","v":0},{"$f":"$K49*30*24/1000000*$B49","v":0},0,0,{"$f":"$K49*30*24/1000000*$B49","v":0},{"$f":"$K49*31*24/1000000*$B49","v":0},{"$f":"$K49*30*24/1000000*$B49","v":0},{"$f":"$K49*31*24/1000000*$B49","v":0},null,0,null,{"$error":"#DIV/0!"},{"$error":"#DIV/0!"},{"$error":"#DIV/0!"},{"$error":"#DIV/0!"},{"$error":"#DIV/0!"},{"$error":"#DIV/0!"},{"$error":"#DIV/0!"},{"$error":"#DIV/0!"},{"$error":"#DIV/0!"},{"$error":"#DIV/0!"},{"$error":"#DIV/0!"},{"$error":"#DIV/0!"},null,{"$f":"IFERROR(((AD49+BJ49)/AD49),\"\")","v":""},null,{"$f":"BJ49+AD49","v":0}]
[null,null,null,null,null,null,null,null,null,null,null,null,null,null,null,null,null,null,null,null,null,null,null,null,null,null,null,null,null,0,null,{"$error":"#DIV/0!"},"MWh/year per dwelling",null,null,{"$f":"IF($M50=\"Annual\",AJ$13*$O50,0)","v":0},0,0,0,0,0,0,0,0,0,0,0,null,0,0,0,0,0,0,0,0,0,0,0,0,null,0,null,{"$error":"#DIV/0!"},{"$error":"#DIV/0!"},{"$error":"#DIV/0!"},{"$error":"#DIV/0!"},{"$error":"#DIV/0!"},{"$error":"#DIV/0!"},{"$error":"#DIV/0!"},{"$error":"#DIV/0!"},{"$error":"#DIV/0!"},{"$error":"#DIV/0!"},{"$error":"#DIV/0!"},{"$error":"#DIV/0!"},null,"",null,0]
[null,null,null,null,null,null,null,null,null,null,null,null,null,null,null,null,null,null,null,null,null,null,null,null,null,null,null,null,null,0,null,{"$error":"#DIV/0!"},"MWh/year per dwelling",null,null,0,0,0,0,0,0,0,0,0,0,0,0,null,0,0,0,0,0,0,0,0,0,0,0,0,null,0,null,{"$error":"#DIV/0!"},{"$error":"#DIV/0!"},{"$error":"#DIV/0!"},{"$error":"#DIV/0!"},{"$error":"#DIV/0!"},{"$error":"#DIV/0!"},{"$error":"#DIV/0!"},{"$error":"#DIV/0!"},{"$error":"#DIV/0!"},{"$error":"#DIV/0!"},{"$error":"#DIV/0!"},{"$error":"#DIV/0!"},null,"",null,0]
[null,null,null,null,null,null,null,null,null,null,null,null,null,null,null,null,null,null,null,null,null,null,null,null,null,null,null,null,null,0,null,{"$error":"#DIV/0!"},"MWh/year per dwelling",null,null,0,0,0,0,0,0,0,0,0,0,0,0,null,0,0,0,0,0,0,0,0,0,0,0,0,null,0,null,{"$error":"#DIV/0!"},{"$error":"#DIV/0!"},{"$error":"#DIV/0!"},{"$error":"#DIV/0!"},{"$error":"#DIV/0!"},{"$error":"#DIV/0!"},{"$error":"#DIV/0!"},{"$error":"#DIV/0!"},{"$error":"#DIV/0!"},{"$error":"#DIV/0!"},{"$error":"#DIV/0!"},{"$error":"#DIV/0!"},null,"",null,0]
[null,null,null,null,null,null,null,null,null,null,null,null,null,null,null,null,null,null,null,null,null,null,null,null,null,null,null,null,null,0,null,{"$error":"#DIV/0!"},"MWh/year per dwelling",null,null,0,0,0,0,0,0,0,0,0,0,0,0,null,0,0,0,0,0,0,0,0,0,0,0,0,null,0,null,{"$f":"IF($M53=\"Monthly\",(Q53+AW53)/Q53,(AJ53+AW53)/AJ53)","v":{"$error":"#DIV/0!"}},{"$error":"#DIV/0!"},{"$error":"#DIV/0!"},{"$error":"#DIV/0!"},{"$error":"#DIV/0!"},{"$error":"#DIV/0!"},{"$error":"#DIV/0!"},{"$error":"#DIV/0!"},{"$error":"#DIV/0!"},{"$error":"#DIV/0!"},{"$error":"#DIV/0!"},{"$error":"#DIV/0!"},null,"",null,0]
[null,null,null,null,null,null,null,null,null,null,null,null,null,null,null,null,null,null,null,null,null,null,null,null,null,null,null,null,null,0,null,{"$error":"#DIV/0!"},"MWh/year per dwelling",null,null,0,0,0,0,0,0,0,0,0,0,0,0,null,0,0,0,0,0,0,0,0,0,0,0,0,null,0,null,{"$error":"#DIV/0!"},{"$error":"#DIV/0!"},{"$error":"#DIV/0!"},{"$error":"#DIV/0!"},{"$error":"#DIV/0!"},{"$error":"#DIV/0!"},{"$error":"#DIV/0!"},{"$error":"#DIV/0!"},{"$error":"#DIV/0!"},{"$error":"#DIV/0!"},{"$error":"#DIV/0!"},{"$error":"#DIV/0!"},null,"",null,0]
[null,null,null,null,null,null,null,null,null,null,null,null,null,null,null,null,null,null,null,null,null,null,null,null,null,null,null,null,null,0,null,{"$error":"#DIV/0!"},"MWh/year per dwelling",null,null,0,0,0,0,0,0,0,0,0,0,0,0,null,0,0,0,0,0,0,0,0,0,0,0,0,null,0,null,{"$error":"#DIV/0!"},{"$error":"#DIV/0!"},{"$error":"#DIV/0!"},{"$error":"#DIV/0!"},{"$error":"#DIV/0!"},{"$error":"#DIV/0!"},{"$error":"#DIV/0!"},{"$error":"#DIV/0!"},{"$error":"#DIV/0!"},{"$error":"#DIV/0!"},{"$error":"#DIV/0!"},{"$error":"#DIV/0!"},null,"",null,0]
[null,null,null,null,null,null,null,null,null,null,null,null,null,null,null,null,null,null,null,null,null,null,null,null,null,null,null,null,null,0,null,{"$error":"#DIV/0!"},"MWh/year per dwelling",null,null,0,0,0,0,0,0,0,0,0,0,0,0,null,0,0,0,0,0,0,0,0,0,0,0,0,null,0,null,{"$error":"#DIV/0!"},{"$error":"#DIV/0!"},{"$error":"#DIV/0!"},{"$error":"#DIV/0!"},{"$error":"#DIV/0!"},{"$error":"#DIV/0!"},{"$error":"#DIV/0!"},{"$error":"#DIV/0!"},{"$error":"#DIV/0!"},{"$error":"#DIV/0!"},{"$error":"#DIV/0!"},{"$error":"#DIV/0!"},null,"",null,0]
[null,null,null,null,null,null,null,null,null,null,null,null,null,null,null,null,null,null,null,null,null,null,null,null,null,null,null,null,null,0,null,{"$error":"#DIV/0!"},"MWh/year per dwelling",null,null,0,0,0,0,0,0,0,0,0,0,0,0,null,0,0,0,0,0,0,{"$f":"$K57*31*24/1000000*$B57","v":0},0,0,0,0,0,null,0,null,{"$error":"#DIV/0!"},{"$error":"#DIV/0!"},{"$error":"#DIV/0!"},{"$error":"#DIV/0!"},{"$error":"#DIV/0!"},{"$error":"#DIV/0!"},{"$error":"#DIV/0!"},{"$error":"#DIV/0!"},{"$error":"#DIV/0!"},{"$error":"#DIV/0!"},{"$error":"#DIV/0!"},{"$error":"#DIV/0!"},null,"",null,0]
[null,null,null,null,null,null,null,null,null,null,null,null,null,null,null,null,null,null,null,null,null,null,null,null,null,null,null,null,null,0,null,{"$error":"#DIV/0!"},"MWh/year per dwelling",null,null,0,0,0,0,0,0,0,0,0,0,0,0,null,0,0,0,0,0,0,0,0,0,0,0,0,null,0,null,{"$error":"#DIV/0!"},{"$error":"#DIV/0!"},{"$error":"#DIV/0!"},{"$error":"#DIV/0!"},{"$error":"#DIV/0!"},{"$error":"#DIV/0!"},{"$error":"#DIV/0!"},{"$error":"#DIV/0!"},{"$error":"#DIV/0!"},{"$error":"#DIV/0!"},{"$error":"#DIV/0!"},{"$error":"#DIV/0!"},null,"",null,0]
[null,null,null,null,null,null,null,null,null,null,null,null,null,null,null,null,null,null,null,null,null,null,null,null,null,null,null,null,null,0,null,{"$error":"#DIV/0!"},"MWh/year per dwelling",null,null,0,0,0,0,0,0,0,0,0,0,0,0,null,0,0,0,0,0,0,0,0,0,0,0,0,null,0,null,{"$error":"#DIV/0!"},{"$error":"#DIV/0!"},{"$error":"#DIV/0!"},{"$error":"#DIV/0!"},{"$error":"#DIV/0!"},{"$error":"#DIV/0!"},{"$error":"#DIV/0!"},{"$error":"#DIV/0!"},{"$error":"#DIV/0!"},{"$error":"#DIV/0!"},{"$error":"#DIV/0!"},{"$error":"#DIV/0!"},null,"",null,0]
[null,null,null,null,null,null,null,null,null,null,null,null,null,null,null,null,null,null,null,null,null,null,null,null,null,null,null,null,null,0,null,{"$error":"#DIV/0!"},"MWh/year per dwelling",null,null,0,0,0,0,0,0,0,0,0,0,0,0,null,0,0,0,0,0,0,0,0,0,0,0,0,null,0,null,{"$error":"#DIV/0!"},{"$error":"#DIV/0!"},{"$error":"#DIV/0!"},{"$error":"#DIV/0!"},{"$error":"#DIV/0!"},{"$error":"#DIV/0!"},{"$error":"#DIV/0!"},{"$error":"#DIV/0!"},{"$error":"#DIV/0!"},{"$error":"#DIV/0!"},{"$error":"#DIV/0!"},{"$error":"#DIV/0!"},null,"",null,0]
[null,null,null,null,null,null,null,null,null,null,null,null,null,null,null,null,null,null,null,null,null,null,null,null,null,null,null,null,null,0,null,{"$error":"#DIV/0!"},"MWh/year per dwelling",null,null,0,0,0,0,0,0,0,0,0,0,0,0,null,0,0,0,0,0,0,0,0,0,0,0,0,null,0,null,{"$error":"#DIV/0!"},{"$error":"#DIV/0!"},{"$error":"#DIV/0!"},{"$error":"#DIV/0!"},{"$error":"#DIV/0!"},{"$error":"#DIV/0!"},{"$error":"#DIV/0!"},{"$error":"#DIV/0!"},{"$error":"#DIV/0!"},{"$error":"#DIV/0!"},{"$error":"#DIV/0!"},{"$error":"#DIV/0!"},null,"",null,0]
[null,null,null,null,null,null,null,null,null,null,null,null,null,null,null,null,null,null,null,null,null,null,null,null,null,null,null,null,null,0,null,{"$error":"#DIV/0!"},"MWh/year per dwelling",null,null,0,0,0,0,0,0,0,0,0,0,0,0,null,0,0,0,0,0,0,0,0,0,0,0,0,null,0,null,{"$error":"#DIV/0!"},{"$error":"#DIV/0!"},{"$error":"#DIV/0!"},{"$error":"#DIV/0!"},{"$error":"#DIV/0!"},{"$error":"#DIV/0!"},{"$error":"#DIV/0!"},{"$error":"#DIV/0!"},{"$error":"#DIV/0!"},{"$error":"#DIV/0!"},{"$error":"#DIV/0!"},{"$error":"#DIV/0!"},null,"",null,0]
[null,null,null,null,null,null,null,null,null,null,null,null,null,null,null,null,null,null,null,null,null,null,null,null,null,null,null,null,null,0,null,{"$error":"#DIV/0!"},"MWh/year per dwelling",null,null,0,0,0,0,0,0,0,0,0,0,0,0,null,0,0,0,0,0,0,0,0,0,0,0,0,null,0,null,{"$error":"#DIV/0!"},{"$error":"#DIV/0!"},{"$error":"#DIV/0!"},{"$error":"#DIV/0!"},{"$error":"#DIV/0!"},{"$error":"#DIV/0!"},{"$error":"#DIV/0!"},{"$error":"#DIV/0!"},{"$error":"#DIV/0!"},{"$error":"#DIV/0!"},{"$error":"#DIV/0!"},{"$error":"#DIV/0!"},null,"",null,0]
[null,null,null,null,null,null,null,null,null,null,null,null,null,null,null,null,null,null,null,null,null,null,null,null,null,null,null,null,null,0,null,{"$error":"#DIV/0!"},"MWh/year per dwelling",null,null,0,0,0,0,0,0,0,0,0,0,0,0,null,0,0,0,0,0,0,0,0,0,0,0,0,null,0,null,{"$error":"#DIV/0!"},{"$error":"#DIV/0!"},{"$error":"#DIV/0!"},{"$error":"#DIV/0!"},{"$error":"#DIV/0!"},{"$error":"#DIV/0!"},{"$error":"#DIV/0!"},{"$error":"#DIV/0!"},{"$error":"#DIV/0!"},{"$error":"#DIV/0!"},{"$error":"#DIV/0!"},{"$error":"#DIV/0!"},null,"",null,0]
[null,null,null,null,null,null,null,null,null,null,null,null,null,null,null,null,null,null,null,null,null,null,null,null,null,null,null,null,null,0,null,{"$error":"#DIV/0!"},"MWh/year per dwelling",null,null,0,0,0,0,0,0,0,0,0,0,0,0,null,0,0,0,0,0,0,0,0,0,0,0,0,null,0,null,{"$error":"#DIV/0!"},{"$error":"#DIV/0!"},{"$error":"#DIV/0!"},{"$error":"#DIV/0!"},{"$error":"#DIV/0!"},{"$error":"#DIV/0!"},{"$error":"#DIV/0!"},{"$error":"#DIV/0!"},{"$error":"#DIV/0!"},{"$error":"#DIV/0!"},{"$error":"#DIV/0!"},{"$error":"#DIV/0!"},null,"",null,0]
[null,null,null,null,null,null,null,null,null,null,null,null,null,null,null,null,null,null,null,null,null,null,null,null,null,null,null,null,null,0,null,{"$error":"#DIV/0!"},"MWh/year per dwelling",null,null,{"$f":"IF($M66=\"Annual\",AJ$13*$O66,0)","v":0},0,0,0,0,0,0,0,0,0,0,0,null,0,0,0,0,0,0,0,0,0,0,0,0,null,0,null,{"$error":"#DIV/0!"},{"$error":"#DIV/0!"},{"$error":"#DIV/0!"},{"$error":"#DIV/0!"},{"$error":"#DIV/0!"},{"$error":"#DIV/0!"},{"$error":"#DIV/0!"},{"$error":"#DIV/0!"},{"$error":"#DIV/0!"},{"$error":"#DIV/0!"},{"$error":"#DIV/0!"},{"$error":"#DIV/0!"},null,"",null,0]
[null,null,null,null,null,null,null,null,null,null,null,null,null,null,null,null,null,null,null,null,null,null,null,null,null,null,null,null,null,0,null,{"$error":"#DIV/0!"},"MWh/year per dwelling",null,null,0,0,0,0,0,0,0,0,0,0,0,0,null,0,0,0,0,0,0,0,0,0,0,0,0,null,0,null,{"$error":"#DIV/0!"},{"$error":"#DIV/0!"},{"$error":"#DIV/0!"},{"$error":"#DIV/0!"},{"$error":"#DIV/0!"},{"$error":"#DIV/0!"},{"$error":"#DIV/0!"},{"$error":"#DIV/0!"},{"$error":"#DIV/0!"},{"$error":"#DIV/0!"},{"$error":"#DIV/0!"},{"$error":"#DIV/0!"},null,"",null,0]
[null,null,null,null,null,null,null,null,null,null,null,null,null,null,null,null,null,null,null,null,null,null,null,null,null,null,null,null,null,0,null,{"$error":"#DIV/0!"},"MWh/year per dwelling",null,null,0,0,0,0,0,0,0,0,0,0,0,0,null,0,0,0,0,0,0,0,0,0,0,0,0,null,0,null,{"$error":"#DIV/0!"},{"$error":"#DIV/0!"},{"$error":"#DIV/0!"},{"$error":"#DIV/0!"},{"$error":"#DIV/0!"},{"$error":"#DIV/0!"},{"$error":"#DIV/0!"},{"$error":"#DIV/0!"},{"$error":"#DIV/0!"},{"$error":"#DIV/0!"},{"$error":"#DIV/0!"},{"$error":"#DIV/0!"},null,"",null,0]
[null,null,null,null,null,null,null,null,null,null,null,null,null,null,null,null,null,null,null,null,null,null,null,null,null,null,null,null,null,0,null,{"$error":"#DIV/0!"},"MWh/year per dwelling",null,null,0,0,0,0,0,0,0,0,0,0,0,0,null,0,0,0,0,0,0,0,0,0,0,0,0,null,0,null,{"$error":"#DIV/0!"},{"$error":"#DIV/0!"},{"$error":"#DIV/0!"},{"$error":"#DIV/0!"},{"$error":"#DIV/0!"},{"$error":"#DIV/0!"},{"$error":"#DIV/0!"},{"$error":"#DIV/0!"},{"$error":"#DIV/0!"},{"$error":"#DIV/0!"},{"$error":"#DIV/0!"},{"$error":"#DIV/0!"},null,"",null,0]
[null,null,null,null,null,null,null,null,null,null,null,null,null,null,null,null,null,null,null,null,null,null,null,null,null,null,null,null,null,0,null,{"$error":"#DIV/0!"},"MWh/year per dwelling",null,null,0,0,0,0,0,0,0,0,0,0,0,0,null,0,0,0,0,0,0,0,0,0,0,0,0,null,0,null,{"$error":"#DIV/0!"},{"$error":"#DIV/0!"},{"$error":"#DIV/0!"},{"$error":"#DIV/0!"},{"$error":"#DIV/0!"},{"$error":"#DIV/0!"},{"$error":"#DIV/0!"},{"$error":"#DIV/0!"},{"$error":"#DIV/0!"},{"$error":"#DIV/0!"},{"$error":"#DIV/0!"},{"$error":"#DIV/0!"},null,"",null,0]
[null,null,null,null,null,null,null,null,null,null,null,null,null,null,null,null,null,null,null,null,null,null,null,null,null,null,null,null,null,0,null,{"$error":"#DIV/0!"},"MWh/year per dwelling",null,null,0,0,0,0,0,0,0,0,0,0,0,0,null,0,0,0,0,0,0,0,0,0,0,0,0,null,0,null,{"$error":"#DIV/0!"},{"$error":"#DIV/0!"},{"$error":"#DIV/0!"},{"$error":"#DIV/0!"},{"$error":"#DIV/0!"},{"$error":"#DIV/0!"},{"$error":"#DIV/0!"},{"$error":"#DIV/0!"},{"$error":"#DIV/0!"},{"$error":"#DIV/0!"},{"$error":"#DIV/0!"},{"$error":"#DIV/0!"},null,"",null,0]
[null,null,null,null,null,null,null,null,null,null,null,null,null,null,null,null,null,null,null,null,null,null,null,null,null,null,null,null,null,0,null,{"$error":"#DIV/0!"},"MWh/year per dwelling",null,null,0,0,0,0,0,0,0,0,0,0,0,0,null,0,0,0,0,0,0,0,0,0,0,0,0,null,0,null,{"$error":"#DIV/0!"},{"$error":"#DIV/0!"},{"$error":"#DIV/0!"},{"$error":"#DIV/0!"},{"$error":"#DIV/0!"},{"$error":"#DIV/0!"},{"$error":"#DIV/0!"},{"$error":"#DIV/0!"},{"$error":"#DIV/0!"},{"$error":"#DIV/0!"},{"$error":"#DIV/0!"},{"$error":"#DIV/0!"},null,"",null,0]
[null,null,null,null,null,null,null,null,null,null,null,null,null,null,null,null,null,null,null,null,null,null,null,null,null,null,null,null,null,0,null,{"$error":"#DIV/0!"},"MWh/year per dwelling",null,null,0,0,0,0,0,0,0,0,0,0,0,0,null,0,0,0,0,0,0,0,0,0,0,0,0,null,0,null,{"$error":"#DIV/0!"},{"$error":"#DIV/0!"},{"$error":"#DIV/0!"},{"$error":"#DIV/0!"},{"$error":"#DIV/0!"},{"$error":"#DIV/0!"},{"$error":"#DIV/0!"},{"$error":"#DIV/0!"},{"$error":"#DIV/0!"},{"$error":"#DIV/0!"},{"$error":"#DIV/0!"},{"$error":"#DIV/0!"},null,"",null,0]
[null,null,null,null,null,null,null,null,null,null,null,null,null,null,null,null,null,null,null,null,null,null,null,null,null,null,null,null,null,0,null,{"$error":"#DIV/0!"},"MWh/year per dwelling",null,null,0,0,0,0,0,0,0,0,0,0,0,0,null,0,0,0,0,0,0,0,0,0,0,0,0,null,0,null,{"$error":"#DIV/0!"},{"$error":"#DIV/0!"},{"$error":"#DIV/0!"},{"$f":"IF($M74=\"Monthly\",(T74+AZ74)/T74,(AM74+AZ74)/AM74)","v":{"$error":"#DIV/0!"}},{"$error":"#DIV/0!"},{"$error":"#DIV/0!"},{"$error":"#DIV/0!"},{"$error":"#DIV/0!"},{"$error":"#DIV/0!"},{"$error":"#DIV/0!"},{"$error":"#DIV/0!"},{"$error":"#DIV/0!"},null,"",null,0]
[null,null,null,null,null,null,null,null,null,null,null,null,null,null,null,null,null,null,null,null,null,null,null,null,null,null,null,null,null,0,null,{"$error":"#DIV/0!"},"MWh/year per dwelling",null,null,0,0,0,0,0,0,0,0,0,0,0,0,null,0,0,0,0,0,0,0,0,0,0,0,0,null,0,null,{"$f":"IF($M75=\"Monthly\",(Q75+AW75)/Q75,(AJ75+AW75)/AJ75)","v":{"$error":"#DIV/0!"}},{"$error":"#DIV/0!"},{"$error":"#DIV/0!"},{"$error":"#DIV/0!"},{"$error":"#DIV/0!"},{"$error":"#DIV/0!"},{"$error":"#DIV/0!"},{"$error":"#DIV/0!"},{"$error":"#DIV/0!"},{"$error":"#DIV/0!"},{"$error":"#DIV/0!"},{"$error":"#DIV/0!"},null,"",null,0]
[null,null,null,null,null,null,null,null,null,null,null,null,null,null,null,null,null,null,null,null,null,null,null,null,null,null,null,null,null,0,null,{"$error":"#DIV/0!"},"MWh/year per dwelling",null,null,0,0,0,0,0,0,0,0,0,0,0,0,null,0,0,0,0,0,0,0,0,0,0,0,0,null,0,null,{"$error":"#DIV/0!"},{"$error":"#DIV/0!"},{"$error":"#DIV/0!"},{"$error":"#DIV/0!"},{"$error":"#DIV/0!"},{"$error":"#DIV/0!"},{"$error":"#DIV/0!"},{"$error":"#DIV/0!"},{"$error":"#DIV/0!"},{"$error":"#DIV/0!"},{"$error":"#DIV/0!"},{"$error":"#DIV/0!"},null,"",null,0]
[null,null,null,null,null,null,null,null,null,null,null,null,null,null,null,null,null,null,null,null,null,null,null,null,null,null,null,null,null,0,null,{"$error":"#DIV/0!"},"MWh/year per dwelling",null,null,0,0,0,0,0,0,0,0,0,0,0,0,null,0,0,0,0,0,0,{"$f":"$K77*31*24/1000000*$B77","v":0},0,0,0,0,0,null,0,null,{"$error":"#DIV/0!"},{"$error":"#DIV/0!"},{"$error":"#DIV/0!"},{"$error":"#DIV/0!"},{"$error":"#DIV/0!"},{"$error":"#DIV/0!"},{"$error":"#DIV/0!"},{"$error":"#DIV/0!"},{"$error":"#DIV/0!"},{"$error":"#DIV/0!"},{"$error":"#DIV/0!"},{"$error":"#DIV/0!"},null,"",null,0]
[null,null,null,null,null,null,null,null,null,null,null,null,null,null,null,null,null,null,null,null,null,null,null,null,null,null,null,null,null,0,null,{"$error":"#DIV/0!"},"MWh/year per dwelling",null,null,0,0,0,0,0,0,0,0,0,0,0,0,null,0,0,0,0,0,0,0,0,0,0,0,0,null,0,null,{"$error":"#DIV/0!"},{"$error":"#DIV/0!"},{"$error":"#DIV/0!"},{"$error":"#DIV/0!"},{"$error":"#DIV/0!"},{"$error":"#DIV/0!"},{"$error":"#DIV/0!"},{"$error":"#DIV/0!"},{"$error":"#DIV/0!"},{"$error":"#DIV/0!"},{"$error":"#DIV/0!"},{"$error":"#DIV/0!"},null,"",null,0]
[null,null,null,null,null,null,null,null,null,null,null,null,null,null,null,null,null,null,null,null,null,null,null,null,null,null,null,null,null,0,null,{"$error":"#DIV/0!"},"MWh/year per dwelling",null,null,0,0,0,0,0,0,0,0,0,0,0,0,null,0,0,0,0,0,0,0,0,0,0,0,0,null,0,null,{"$error":"#DIV/0!"},{"$error":"#DIV/0!"},{"$error":"#DIV/0!"},{"$error":"#DIV/0!"},{"$error":"#DIV/0!"},{"$error":"#DIV/0!"},{"$error":"#DIV/0!"},{"$error":"#DIV/0!"},{"$error":"#DIV/0!"},{"$error":"#DIV/0!"},{"$error":"#DIV/0!"},{"$error":"#DIV/0!"},null,"",null,0]
[null,null,null,null,null,null,null,null,null,null,null,null,null,null,null,null,null,null,null,null,null,null,null,null,null,null,null,null,null,0,null,{"$error":"#DIV/0!"},"MWh/year per dwelling",null,null,0,0,0,0,0,0,0,0,0,0,0,0,null,0,0,0,0,0,0,0,0,0,0,0,0,null,0,null,{"$error":"#DIV/0!"},{"$error":"#DIV/0!"},{"$error":"#DIV/0!"},{"$error":"#DIV/0!"},{"$error":"#DIV/0!"},{"$error":"#DIV/0!"},{"$error":"#DIV/0!"},{"$error":"#DIV/0!"},{"$error":"#DIV/0!"},{"$error":"#DIV/0!"},{"$error":"#DIV/0!"},{"$error":"#DIV/0!"},null,"",null,0]
[null,null,null,null,null,null,null,null,null,null,null,null,null,null,null,null,null,null,null,null,null,null,null,null,null,null,null,null,null,0,null,{"$f":"AD81/B81","v":{"$error":"#DIV/0!"}},"MWh/year per dwelling",null,null,0,0,0,0,0,0,0,0,0,0,0,0,null,{"$f":"$K81*31*24/1000000*$B81","v":0},{"$f":"$K81*28*24/1000000*$B81","v":0},{"$f":"$K81*31*24/1000000*$B81","v":0},{"$f":"$K81*30*24/1000000*$B81","v":0},{"$f":"$K81*31*24/1000000*$B81","v":0},{"$f":"$K81*30*24/1000000*$B81","v":0},0,0,{"$f":"$K81*30*24/1000000*$B81","v":0},{"$f":"$K81*31*24/1000000*$B81","v":0},{"$f":"$K81*30*24/1000000*$B81","v":0},{"$f":"$K81*31*24/1000000*$B81","v":0},null,0,null,{"$error":"#DIV/0!"},{"$error":"#DIV/0!"},{"$error":"#DIV/0!"},{"$error":"#DIV/0!"},{"$error":"#DIV/0!"},{"$error":"#DIV/0!"},{"$error":"#DIV/0!"},{"$error":"#DIV/0!"},{"$error":"#DIV/0!"},{"$error":"#DIV/0!"},{"$error":"#DIV/0!"},{"$error":"#DIV/0!"},null,{"$f":"IFERROR(((AD81+BJ81)/AD81),\"\")","v":""},null,{"$f":"BJ81+AD81","v":0}]
[null,null,null,null,null,null,null,null,null,null,null,null,null,null,null,null,null,null,null,null,null,null,null,null,null,null,null,null,null,{"$f":"IF(M82=\"Monthly\",SUM(Q82:AB82),O82)","v":0},null,{"$error":"#DIV/0!"},"MWh/year per dwelling",null,null,{"$f":"IF($M82=\"Annual\",AJ$13*$O82,0)","v":0},0,0,0,0,0,0,0,0,0,0,0,null,0,0,0,0,0,0,0,0,0,0,0,0,null,0,null,{"$error":"#DIV/0!"},{"$error":"#DIV/0!"},{"$error":"#DIV/0!"},{"$error":"#DIV/0!"},{"$error":"#DIV/0!"},{"$error":"#DIV/0!"},{"$error":"#DIV/0!"},{"$error":"#DIV/0!"},{"$error":"#DIV/0!"},{"$error":"#DIV/0!"},{"$error":"#DIV/0!"},{"$error":"#DIV/0!"},null,"",null,0]
[null,null,null,null,null,null,null,null,null,null,null,null,null,null,null,null,null,null,null,null,null,null,null,null,null,null,null,null,null,0,null,{"$error":"#DIV/0!"},"MWh/year per dwelling",null,null,0,0,0,0,0,0,0,0,0,0,0,0,null,0,0,0,0,0,0,0,0,0,0,0,0,null,0,null,{"$error":"#DIV/0!"},{"$error":"#DIV/0!"},{"$error":"#DIV/0!"},{"$error":"#DIV/0!"},{"$error":"#DIV/0!"},{"$error":"#DIV/0!"},{"$error":"#DIV/0!"},{"$error":"#DIV/0!"},{"$error":"#DIV/0!"},{"$error":"#DIV/0!"},{"$error":"#DIV/0!"},{"$error":"#DIV/0!"},null,"",null,0]
[null,null,null,null,null,null,null,null,null,null,null,null,null,null,null,null,null,null,null,null,null,null,null,null,null,null,null,null,null,0,null,{"$error":"#DIV/0!"},"MWh/year per dwelling",null,null,0,0,0,0,0,0,0,0,0,0,0,0,null,0,0,0,0,0,0,0,0,0,0,0,0,null,0,null,{"$error":"#DIV/0!"},{"$error":"#DIV/0!"},{"$error":"#DIV/0!"},{"$error":"#DIV/0!"},{"$error":"#DIV/0!"},{"$error":"#DIV/0!"},{"$error":"#DIV/0!"},{"$error":"#DIV/0!"},{"$error":"#DIV/0!"},{"$error":"#DIV/0!"},{"$error":"#DIV/0!"},{"$error":"#DIV/0!"},null,"",null,0]
[null,null,null,null,null,null,null,null,null,null,null,null,null,null,null,null,null,null,null,null,null,null,null,null,null,null,null,null,null,0,null,{"$error":"#DIV/0!"},"MWh/year per dwelling",null,null,0,0,0,0,0,0,0,0,0,0,0,0,null,0,0,0,0,0,0,0,0,0,0,0,0,null,0,null,{"$error":"#DIV/0!"},{"$error":"#DIV/0!"},{"$error":"#DIV/0!"},{"$error":"#DIV/0!"},{"$error":"#DIV/0!"},{"$error":"#DIV/0!"},{"$error":"#DIV/0!"},{"$error":"#DIV/0!"},{"$error":"#DIV/0!"},{"$error":"#DIV/0!"},{"$error":"#DIV/0!"},{"$error":"#DIV/0!"},null,"",null,0]
[null,null,null,null,null,null,null,null,null,null,null,null,null,null,null,null,null,null,null,null,null,null,null,null,null,null,null,null,null,0,null,{"$error":"#DIV/0!"},"MWh/year per dwelling",null,null,0,0,0,0,0,0,0,0,0,0,0,0,null,0,0,0,0,0,0,0,0,0,0,0,0,null,{"$f":"SUM(AW86:BH86)","v":0},null,{"$error":"#DIV/0!"},{"$error":"#DIV/0!"},{"$error":"#DIV/0!"},{"$error":"#DIV/0!"},{"$error":"#DIV/0!"},{"$error":"#DIV/0!"},{"$error":"#DIV/0!"},{"$error":"#DIV/0!"},{"$error":"#DIV/0!"},{"$error":"#DIV/0!"},{"$error":"#DIV/0!"},{"$error":"#DIV/0!"},null,"",null,0]
[null,null,null,null,null,null,null,null,null,null,null,null,null,null,null,null,null,null,null,null,null,null,null,null,null,null,null,null,null,0,null,{"$error":"#DIV/0!"},"MWh/year per dwelling",null,null,0,0,0,0,0,0,0,0,0,0,0,0,null,0,0,0,0,0,0,0,0,0,0,0,0,null,0,null,{"$error":"#DIV/0!"},{"$error":"#DIV/0!"},{"$error":"#DIV/0!"},{"$error":"#DIV/0!"},{"$error":"#DIV/0!"},{"$error":"#DIV/0!"},{"$error":"#DIV/0!"},{"$error":"#DIV/0!"},{"$error":"#DIV/0!"},{"$error":"#DIV/0!"},{"$error":"#DIV/0!"},{"$error":"#DIV/0!"},null,"",null,0]
[null,null,null,null,null,null,null,null,null,null,null,null,null,null,null,null,null,null,null,null,null,null,null,null,null,null,null,null,null,0,null,{"$error":"#DIV/0!"},"MWh/year per dwelling",null,null,0,0,0,0,0,0,0,0,0,0,0,0,null,0,0,0,0,0,0,0,0,0,0,0,0,null,0,null,{"$error":"#DIV/0!"},{"$error":"#DIV/0!"},{"$error":"#DIV/0!"},{"$error":"#DIV/0!"},{"$error":"#DIV/0!"},{"$error":"#DIV/0!"},{"$error":"#DIV/0!"},{"$error":"#DIV/0!"},{"$error":"#DIV/0!"},{"$error":"#DIV/0!"},{"$error":"#DIV/0!"},{"$error":"#DIV/0!"},null,"",null,0]
[null,null,null,null,null,null,null,null,null,null,null,null,null,null,null,null,null,null,null,null,null,null,null,null,null,null,null,null,null,0,null,{"$error":"#DIV/0!"},"MWh/year per dwelling",null,null,0,0,0,0,0,0,0,0,0,0,0,0,null,0,0,0,0,0,0,0,0,0,0,0,0,null,0,null,{"$error":"#DIV/0!"},{"$error":"#DIV/0!"},{"$error":"#DIV/0!"},{"$error":"#DIV/0!"},{"$error":"#DIV/0!"},{"$error":"#DIV/0!"},{"$error":"#DIV/0!"},{"$error":"#DIV/0!"},{"$error":"#DIV/0!"},{"$error":"#DIV/0!"},{"$error":"#DIV/0!"},{"$error":"#DIV/0!"},null,"",null,0]
[null,null,null,null,null,null,null,null,null,null,null,null,null,null,null,null,null,null,null,null,null,null,null,null,null,null,null,null,null,0,null,{"$error":"#DIV/0!"},"MWh/year per dwelling",null,null,0,0,0,0,0,0,0,0,0,0,0,0,null,0,0,0,0,0,0,0,0,0,0,0,0,null,0,null,{"$error":"#DIV/0!"},{"$error":"#DIV/0!"},{"$error":"#DIV/0!"},{"$error":"#DIV/0!"},{"$error":"#DIV/0!"},{"$error":"#DIV/0!"},{"$error":"#DIV/0!"},{"$error":"#DIV/0!"},{"$error":"#DIV/0!"},{"$error":"#DIV/0!"},{"$error":"#DIV/0!"},{"$error":"#DIV/0!"},null,"",null,0]
[null,null,null,null,null,null,null,null,null,null,null,null,null,null,null,null,null,null,null,null,null,null,null,null,null,null,null,null,null,0,null,{"$error":"#DIV/0!"},"MWh/year per dwelling",null,null,0,0,0,0,0,0,0,0,0,0,0,0,null,0,0,0,0,0,0,0,0,0,0,0,0,null,0,null,{"$error":"#DIV/0!"},{"$error":"#DIV/0!"},{"$error":"#DIV/0!"},{"$error":"#DIV/0!"},{"$error":"#DIV/0!"},{"$error":"#DIV/0!"},{"$error":"#DIV/0!"},{"$error":"#DIV/0!"},{"$error":"#DIV/0!"},{"$error":"#DIV/0!"},{"$error":"#DIV/0!"},{"$error":"#DIV/0!"},null,"",null,0]
[null,null,null,null,null,null,null,null,null,null,null,null,null,null,null,null,null,null,null,null,null,null,null,null,null,null,null,null,null,0,null,{"$error":"#DIV/0!"},"MWh/year per dwelling",null,null,0,0,0,0,0,0,0,0,0,0,0,0,null,0,0,0,0,0,0,0,0,0,0,0,0,null,0,null,{"$error":"#DIV/0!"},{"$error":"#DIV/0!"},{"$error":"#DIV/0!"},{"$error":"#DIV/0!"},{"$error":"#DIV/0!"},{"$error":"#DIV/0!"},{"$error":"#DIV/0!"},{"$error":"#DIV/0!"},{"$error":"#DIV/0!"},{"$error":"#DIV/0!"},{"$error":"#DIV/0!"},{"$error":"#DIV/0!"},null,"",null,0]
[null,null,null,null,null,null,null,null,null,null,null,null,null,null,null,null,null,null,null,null,null,null,null,null,null,null,null,null,null,0,null,{"$error":"#DIV/0!"},"MWh/year per dwelling",null,null,0,0,0,0,0,0,0,0,0,0,0,0,null,0,0,0,0,0,0,0,0,0,0,0,0,null,0,null,{"$error":"#DIV/0!"},{"$error":"#DIV/0!"},{"$error":"#DIV/0!"},{"$error":"#DIV/0!"},{"$error":"#DIV/0!"},{"$error":"#DIV/0!"},{"$error":"#DIV/0!"},{"$error":"#DIV/0!"},{"$error":"#DIV/0!"},{"$error":"#DIV/0!"},{"$error":"#DIV/0!"},{"$error":"#DIV/0!"},null,"",null,0]
[null,null,null,null,null,null,null,null,null,null,null,null,null,null,null,null,null,null,null,null,null,null,null,null,null,null,null,null,null,0,null,{"$error":"#DIV/0!"},"MWh/year per dwelling",null,null,0,0,0,0,0,0,0,0,0,0,0,0,null,0,0,0,0,0,0,0,0,0,0,0,0,null,0,null,{"$error":"#DIV/0!"},{"$error":"#DIV/0!"},{"$error":"#DIV/0!"},{"$error":"#DIV/0!"},{"$error":"#DIV/0!"},{"$error":"#DIV/0!"},{"$error":"#DIV/0!"},{"$error":"#DIV/0!"},{"$error":"#DIV/0!"},{"$error":"#DIV/0!"},{"$error":"#DIV/0!"},{"$error":"#DIV/0!"},null,"",null,0]
[null,null,null,null,null,null,null,null,null,null,null,null,null,null,null,null,null,null,null,null,null,null,null,null,null,null,null,null,null,0,null,{"$error":"#DIV/0!"},"MWh/year per dwelling",null,null,0,0,0,0,0,0,0,0,0,0,0,0,null,0,0,0,0,0,0,0,0,0,0,0,0,null,0,null,{"$error":"#DIV/0!"},{"$error":"#DIV/0!"},{"$error":"#DIV/0!"},{"$error":"#DIV/0!"},{"$error":"#DIV/0!"},{"$error":"#DIV/0!"},{"$error":"#DIV/0!"},{"$error":"#DIV/0!"},{"$error":"#DIV/0!"},{"$error":"#DIV/0!"},{"$error":"#DIV/0!"},{"$error":"#DIV/0!"},null,"",null,0]
[null,null,null,null,null,null,null,null,null,null,null,null,null,null,null,null,null,null,null,null,null,null,null,null,null,null,null,null,null,0,null,{"$error":"#DIV/0!"},"MWh/year per dwelling",null,null,0,0,0,0,0,0,0,0,0,0,0,0,null,0,0,0,0,0,0,0,0,0,0,0,0,null,0,null,{"$error":"#DIV/0!"},{"$error":"#DIV/0!"},{"$error":"#DIV/0!"},{"$error":"#DIV/0!"},{"$error":"#DIV/0!"},{"$error":"#DIV/0!"},{"$error":"#DIV/0!"},{"$error":"#DIV/0!"},{"$error":"#DIV/0!"},{"$error":"#DIV/0!"},{"$error":"#DIV/0!"},{"$error":"#DIV/0!"},null,"",null,0]
[null,null,null,null,null,null,null,null,null,null,null,null,null,null,null,null,null,null,null,null,null,null,null,null,null,null,null,null,null,0,null,{"$error":"#DIV/0!"},"MWh/year per dwelling",null,null,0,0,0,0,0,0,0,0,0,0,0,0,null,0,0,0,0,0,0,{"$f":"$K97*31*24/1000000*$B97","v":0},0,0,0,0,0,null,0,null,{"$error":"#DIV/0!"},{"$error":"#DIV/0!"},{"$error":"#DIV/0!"},{"$error":"#DIV/0!"},{"$error":"#DIV/0!"},{"$error":"#DIV/0!"},{"$error":"#DIV/0!"},{"$error":"#DIV/0!"},{"$error":"#DIV/0!"},{"$error":"#DIV/0!"},{"$error":"#DIV/0!"},{"$error":"#DIV/0!"},null,"",null,0]
[null,null,null,null,null,null,null,null,null,null,null,null,null,null,null,null,null,null,null,null,null,null,null,null,null,null,null,null,null,0,null,{"$error":"#DIV/0!"},"MWh/year per dwelling",null,null,{"$f":"IF($M98=\"Annual\",AJ$13*$O98,0)","v":0},0,0,0,0,0,0,0,0,0,0,0,null,0,0,0,0,0,0,0,0,0,0,0,0,null,0,null,{"$error":"#DIV/0!"},{"$error":"#DIV/0!"},{"$error":"#DIV/0!"},{"$error":"#DIV/0!"},{"$error":"#DIV/0!"},{"$error":"#DIV/0!"},{"$error":"#DIV/0!"},{"$error":"#DIV/0!"},{"$error":"#DIV/0!"},{"$error":"#DIV/0!"},{"$error":"#DIV/0!"},{"$error":"#DIV/0!"},null,"",null,0]
[null,null,null,null,null,null,null,null,null,null,null,null,null,null,null,null,null,null,null,null,null,null,null,null,null,null,null,null,null,0,null,{"$error":"#DIV/0!"},"MWh/year per dwelling",null,null,0,0,0,0,0,0,0,0,0,0,0,0,null,0,0,0,0,0,0,0,0,0,0,0,0,null,0,null,{"$error":"#DIV/0!"},{"$error":"#DIV/0!"},{"$error":"#DIV/0!"},{"$error":"#DIV/0!"},{"$error":"#DIV/0!"},{"$error":"#DIV/0!"},{"$error":"#DIV/0!"},{"$error":"#DIV/0!"},{"$error":"#DIV/0!"},{"$error":"#DIV/0!"},{"$error":"#DIV/0!"},{"$error":"#DIV/0!"},null,"",null,0]
[null,null,null,null,null,null,null,null,null,null,null,null,null,null,null,null,null,null,null,null,null,null,null,null,null,null,null,null,null,0,null,{"$error":"#DIV/0!"},"MWh/year per dwelling",null,null,0,0,0,0,0,0,0,0,0,0,0,0,null,0,0,0,0,0,0,0,0,0,0,0,0,null,0,null,{"$error":"#DIV/0!"},{"$error":"#DIV/0!"},{"$error":"#DIV/0!"},{"$error":"#DIV/0!"},{"$error":"#DIV/0!"},{"$error":"#DIV/0!"},{"$error":"#DIV/0!"},{"$error":"#DIV/0!"},{"$error":"#DIV/0!"},{"$error":"#DIV/0!"},{"$error":"#DIV/0!"},{"$error":"#DIV/0!"},null,"",null,0]
[null,null,null,null,null,null,null,null,null,null,null,null,null,null,null,null,null,null,null,null,null,null,null,null,null,null,null,null,null,0,null,{"$error":"#DIV/0!"},"MWh/year per dwelling",null,null,0,0,0,0,0,0,0,0,0,0,0,0,null,0,0,0,0,0,0,0,0,0,0,0,0,null,0,null,{"$error":"#DIV/0!"},{"$error":"#DIV/0!"},{"$error":"#DIV/0!"},{"$error":"#DIV/0!"},{"$error":"#DIV/0!"},{"$error":"#DIV/0!"},{"$error":"#DIV/0!"},{"$error":"#DIV/0!"},{"$error":"#DIV/0!"},{"$error":"#DIV/0!"},{"$error":"#DIV/0!"},{"$error":"#DIV/0!"},null,"",null,0]
[null,null,null,null,null,null,null,null,null,null,null,null,null,null,null,null,null,null,null,null,null,null,null,null,null,null,null,null,null,0,null,{"$error":"#DIV/0!"},"MWh/year per dwelling",null,null,0,0,0,0,0,0,0,0,0,0,0,0,null,0,0,0,0,0,0,0,0,0,0,0,0,null,0,null,{"$error":"#DIV/0!"},{"$error":"#DIV/0!"},{"$error":"#DIV/0!"},{"$error":"#DIV/0!"},{"$error":"#DIV/0!"},{"$error":"#DIV/0!"},{"$f":"IF($M102=\"Monthly\",(W102+BC102)/W102,(AP102+BC102)/AP102)","v":{"$error":"#DIV/0!"}},{"$error":"#DIV/0!"},{"$error":"#DIV/0!"},{"$error":"#DIV/0!"},{"$error":"#DIV/0!"},{"$error":"#DIV/0!"},null,"",null,0]
[null,null,null,null,null,null,null,null,null,null,null,null,null,null,null,null,null,null,null,null,null,null,null,null,null,null,null,null,null,0,null,{"$error":"#DIV/0!"},"MWh/year per dwelling",null,null,0,0,0,0,0,0,0,0,0,0,0,0,null,0,0,0,0,0,0,0,0,0,0,0,0,null,0,null,{"$error":"#DIV/0!"},{"$error":"#DIV/0!"},{"$error":"#DIV/0!"},{"$error":"#DIV/0!"},{"$error":"#DIV/0!"},{"$error":"#DIV/0!"},{"$error":"#DIV/0!"},{"$error":"#DIV/0!"},{"$error":"#DIV/0!"},{"$error":"#DIV/0!"},{"$error":"#DIV/0!"},{"$error":"#DIV/0!"},null,"",null,0]
[null,null,null,null,null,null,null,null,null,null,null,null,null,null,null,null,null,null,null,null,null,null,null,null,null,null,null,null,null,0,null,{"$error":"#DIV/0!"},"MWh/year per dwelling",null,null,0,0,0,0,0,0,0,0,0,0,0,0,null,0,0,0,0,0,0,0,0,0,0,0,0,null,0,null,{"$error":"#DIV/0!"},{"$error":"#DIV/0!"},{"$error":"#DIV/0!"},{"$error":"#DIV/0!"},{"$error":"#DIV/0!"},{"$error":"#DIV/0!"},{"$error":"#DIV/0!"},{"$error":"#DIV/0!"},{"$error":"#DIV/0!"},{"$error":"#DIV/0!"},{"$error":"#DIV/0!"},{"$error":"#DIV/0!"},null,"",null,0]
[null,null,null,null,null,null,null,null,null,null,null,null,null,null,null,null,null,null,null,null,null,null,null,null,null,null,null,null,null,0,null,{"$error":"#DIV/0!"},"MWh/year per dwelling",null,null,0,0,0,0,0,0,0,0,0,0,0,0,null,0,0,0,0,0,0,0,0,0,0,0,0,null,0,null,{"$error":"#DIV/0!"},{"$error":"#DIV/0!"},{"$error":"#DIV/0!"},{"$error":"#DIV/0!"},{"$error":"#DIV/0!"},{"$error":"#DIV/0!"},{"$error":"#DIV/0!"},{"$error":"#DIV/0!"},{"$error":"#DIV/0!"},{"$error":"#DIV/0!"},{"$error":"#DIV/0!"},{"$error":"#DIV/0!"},null,"",null,0]
[null,null,null,null,null,null,null,null,null,null,null,null,null,null,null,null,null,null,null,null,null,null,null,null,null,null,null,null,null,0,null,{"$error":"#DIV/0!"},"MWh/year per dwelling",null,null,0,0,0,0,0,0,0,0,0,0,0,0,null,0,0,0,0,0,0,0,0,0,0,0,0,null,0,null,{"$error":"#DIV/0!"},{"$error":"#DIV/0!"},{"$error":"#DIV/0!"},{"$error":"#DIV/0!"},{"$error":"#DIV/0!"},{"$error":"#DIV/0!"},{"$error":"#DIV/0!"},{"$error":"#DIV/0!"},{"$error":"#DIV/0!"},{"$error":"#DIV/0!"},{"$error":"#DIV/0!"},{"$error":"#DIV/0!"},null,"",null,0]
[null,null,null,null,null,null,null,null,null,null,null,null,null,null,null,null,null,null,null,null,null,null,null,null,null,null,null,null,null,0,null,{"$error":"#DIV/0!"},"MWh/year per dwelling",null,null,0,0,0,0,0,0,0,0,0,0,0,0,null,0,0,0,0,0,0,0,0,0,0,0,0,null,0,null,{"$error":"#DIV/0!"},{"$error":"#DIV/0!"},{"$error":"#DIV/0!"},{"$error":"#DIV/0!"},{"$error":"#DIV/0!"},{"$error":"#DIV/0!"},{"$error":"#DIV/0!"},{"$error":"#DIV/0!"},{"$error":"#DIV/0!"},{"$error":"#DIV/0!"},{"$error":"#DIV/0!"},{"$error":"#DIV/0!"},null,"",null,0]
[null,null,null,null,null,null,null,null,null,null,null,null,null,null,null,null,null,null,null,null,null,null,null,null,null,null,null,null,null,0,null,{"$error":"#DIV/0!"},"MWh/year per dwelling",null,null,0,0,0,0,0,0,0,0,0,0,0,0,null,0,0,0,0,0,0,0,0,0,0,0,0,null,0,null,{"$error":"#DIV/0!"},{"$error":"#DIV/0!"},{"$error":"#DIV/0!"},{"$error":"#DIV/0!"},{"$error":"#DIV/0!"},{"$error":"#DIV/0!"},{"$error":"#DIV/0!"},{"$error":"#DIV/0!"},{"$error":"#DIV/0!"},{"$error":"#DIV/0!"},{"$error":"#DIV/0!"},{"$error":"#DIV/0!"},null,"",null,0]
[null,null,null,null,null,null,null,null,null,null,null,null,null,null,null,null,null,null,null,null,null,null,null,null,null,null,null,null,null,0,null,{"$error":"#DIV/0!"},"MWh/year per dwelling",null,null,0,0,0,0,0,0,0,0,0,0,0,0,null,0,0,0,0,0,0,0,0,0,0,0,0,null,0,null,{"$error":"#DIV/0!"},{"$error":"#DIV/0!"},{"$error":"#DIV/0!"},{"$error":"#DIV/0!"},{"$error":"#DIV/0!"},{"$error":"#DIV/0!"},{"$error":"#DIV/0!"},{"$error":"#DIV/0!"},{"$error":"#DIV/0!"},{"$error":"#DIV/0!"},{"$error":"#DIV/0!"},{"$error":"#DIV/0!"},null,"",null,0]
[null,null,null,null,null,null,null,null,null,null,null,null,null,null,null,null,null,null,null,null,null,null,null,null,null,null,null,null,null,0,null,{"$error":"#DIV/0!"},"MWh/year per dwelling",null,null,0,0,0,0,0,0,0,0,0,0,0,0,null,0,0,0,0,0,0,0,0,0,0,0,0,null,0,null,{"$error":"#DIV/0!"},{"$error":"#DIV/0!"},{"$error":"#DIV/0!"},{"$error":"#DIV/0!"},{"$error":"#DIV/0!"},{"$error":"#DIV/0!"},{"$error":"#DIV/0!"},{"$error":"#DIV/0!"},{"$error":"#DIV/0!"},{"$error":"#DIV/0!"},{"$error":"#DIV/0!"},{"$error":"#DIV/0!"},null,"",null,0]
[null,null,null,null,null,null,null,null,null,null,null,null,null,null,null,null,null,null,null,null,null,null,null,null,null,null,null,null,null,0,null,{"$error":"#DIV/0!"},"MWh/year per dwelling",null,null,0,0,0,0,0,0,0,0,0,0,0,0,null,0,0,0,0,0,0,0,0,0,0,0,0,null,0,null,{"$error":"#DIV/0!"},{"$error":"#DIV/0!"},{"$error":"#DIV/0!"},{"$error":"#DIV/0!"},{"$error":"#DIV/0!"},{"$error":"#DIV/0!"},{"$error":"#DIV/0!"},{"$error":"#DIV/0!"},{"$error":"#DIV/0!"},{"$error":"#DIV/0!"},{"$error":"#DIV/0!"},{"$error":"#DIV/0!"},null,"",null,0]
[null,null,null,null,null,null,null,null,null,null,null,null,null,null,null,null,null,null,null,null,null,null,null,null,null,null,null,null,null,0,null,{"$error":"#DIV/0!"},"MWh/year per dwelling",null,null,0,0,0,0,0,0,0,0,0,0,0,0,null,0,0,0,0,0,0,0,0,0,0,0,0,null,0,null,{"$error":"#DIV/0!"},{"$error":"#DIV/0!"},{"$error":"#DIV/0!"},{"$error":"#DIV/0!"},{"$error":"#DIV/0!"},{"$error":"#DIV/0!"},{"$error":"#DIV/0!"},{"$error":"#DIV/0!"},{"$error":"#DIV/0!"},{"$error":"#DIV/0!"},{"$error":"#DIV/0!"},{"$error":"#DIV/0!"},null,"",null,0]
[null,null,null,null,null,null,null,null,null,null,null,null,null,null,null,null,null,null,null,null,null,null,null,null,null,null,null,null,null,0,null,{"$f":"AD113/B113","v":{"$error":"#DIV/0!"}},"MWh/year per dwelling",null,null,0,0,0,0,0,0,0,0,0,0,0,0,null,{"$f":"$K113*31*24/1000000*$B113","v":0},{"$f":"$K113*28*24/1000000*$B113","v":0},{"$f":"$K113*31*24/1000000*$B113","v":0},{"$f":"$K113*30*24/1000000*$B113","v":0},{"$f":"$K113*31*24/1000000*$B113","v":0},{"$f":"$K113*30*24/1000000*$B113","v":0},0,0,{"$f":"$K113*30*24/1000000*$B113","v":0},{"$f":"$K113*31*24/1000000*$B113","v":0},{"$f":"$K113*30*24/1000000*$B113","v":0},{"$f":"$K113*31*24/1000000*$B113","v":0},null,0,null,{"$error":"#DIV/0!"},{"$error":"#DIV/0!"},{"$error":"#DIV/0!"},{"$error":"#DIV/0!"},{"$error":"#DIV/0!"},{"$error":"#DIV/0!"},{"$error":"#DIV/0!"},{"$error":"#DIV/0!"},{"$error":"#DIV/0!"},{"$error":"#DIV/0!"},{"$error":"#DIV/0!"},{"$error":"#DIV/0!"},null,{"$f":"IFERROR(((AD113+BJ113)/AD113),\"\")","v":""},null,{"$f":"BJ113+AD113","v":0}]
[null,null,null,null,null,null,null,null,null,null,null,null,null,null,null,null,null,null,null,null,null,null,null,null,null,null,null,null,null,0,null,{"$error":"#DIV/0!"},"MWh/year per dwelling",null,null,{"$f":"IF($M114=\"Annual\",AJ$13*$O114,0)","v":0},0,0,0,0,0,0,0,0,0,0,0,null,0,0,0,0,0,0,0,0,0,0,0,0,null,0,null,{"$error":"#DIV/0!"},{"$error":"#DIV/0!"},{"$error":"#DIV/0!"},{"$error":"#DIV/0!"},{"$error":"#DIV/0!"},{"$error":"#DIV/0!"},{"$error":"#DIV/0!"},{"$error":"#DIV/0!"},{"$error":"#DIV/0!"},{"$error":"#DIV/0!"},{"$error":"#DIV/0!"},{"$error":"#DIV/0!"},null,"",null,0]
[null,null,null,null,null,null,null,null,null,null,null,null,null,null,null,null,null,null,null,null,null,null,null,null,null,null,null,null,null,0,null,{"$error":"#DIV/0!"},"MWh/year per dwelling",null,null,0,0,0,0,0,0,0,0,0,0,0,0,null,0,0,0,0,0,0,0,0,0,0,0,0,null,0,null,{"$error":"#DIV/0!"},{"$error":"#DIV/0!"},{"$error":"#DIV/0!"},{"$error":"#DIV/0!"},{"$error":"#DIV/0!"},{"$error":"#DIV/0!"},{"$error":"#DIV/0!"},{"$error":"#DIV/0!"},{"$error":"#DIV/0!"},{"$error":"#DIV/0!"},{"$error":"#DIV/0!"},{"$error":"#DIV/0!"},null,"",null,0]
[null,null,null,null,null,null,null,null,null,null,null,null,null,null,null,null,null,null,null,null,null,null,null,null,null,null,null,null,null,0,null,{"$error":"#DIV/0!"},"MWh/year per dwelling",null,null,0,0,0,0,0,0,0,0,0,0,0,0,null,0,0,0,0,0,0,0,0,0,0,0,0,null,0,null,{"$error":"#DIV/0!"},{"$error":"#DIV/0!"},{"$error":"#DIV/0!"},{"$error":"#DIV/0!"},{"$error":"#DIV/0!"},{"$error":"#DIV/0!"},{"$error":"#DIV/0!"},{"$error":"#DIV/0!"},{"$error":"#DIV/0!"},{"$error":"#DIV/0!"},{"$error":"#DIV/0!"},{"$error":"#DIV/0!"},null,"",null,0]
[null,null,null,null,null,null,null,null,null,null,null,null,null,null,null,null,null,null,null,null,null,null,null,null,null,null,null,null,null,0,null,{"$error":"#DIV/0!"},"MWh/year per dwelling",null,null,0,0,0,0,0,0,0,0,0,0,0,0,null,0,0,0,0,0,0,{"$f":"$K117*31*24/1000000*$B117","v":0},0,0,0,0,0,null,0,null,{"$error":"#DIV/0!"},{"$error":"#DIV/0!"},{"$error":"#DIV/0!"},{"$error":"#DIV/0!"},{"$error":"#DIV/0!"},{"$error":"#DIV/0!"},{"$error":"#DIV/0!"},{"$error":"#DIV/0!"},{"$error":"#DIV/0!"},{"$error":"#DIV/0!"},{"$error":"#DIV/0!"},{"$error":"#DIV/0!"},null,"",null,0]
[null,null,null,null,null,null,null,null,null,null,null,null,null,null,null,null,null,null,null,null,null,null,null,null,null,null,null,null,null,0,null,{"$error":"#DIV/0!"},"MWh/year per dwelling",null,null,0,0,0,0,0,0,0,0,0,0,0,0,null,0,0,0,0,0,0,0,0,0,0,0,0,null,0,null,{"$error":"#DIV/0!"},{"$error":"#DIV/0!"},{"$error":"#DIV/0!"},{"$error":"#DIV/0!"},{"$error":"#DIV/0!"},{"$error":"#DIV/0!"},{"$error":"#DIV/0!"},{"$error":"#DIV/0!"},{"$error":"#DIV/0!"},{"$error":"#DIV/0!"},{"$error":"#DIV/0!"},{"$error":"#DIV/0!"},null,"",null,0]
[null,null,null,null,null,null,null,null,null,null,null,null,null,null,null,null,null,null,null,null,null,null,null,null,null,null,null,null,null,0,null,{"$error":"#DIV/0!"},"MWh/year per dwelling",null,null,0,0,0,0,0,0,0,0,0,0,0,0,null,0,0,0,0,0,0,0,0,0,0,0,0,null,0,null,{"$error":"#DIV/0!"},{"$error":"#DIV/0!"},{"$error":"#DIV/0!"},{"$error":"#DIV/0!"},{"$error":"#DIV/0!"},{"$error":"#DIV/0!"},{"$error":"#DIV/0!"},{"$error":"#DIV/0!"},{"$error":"#DIV/0!"},{"$error":"#DIV/0!"},{"$error":"#DIV/0!"},{"$error":"#DIV/0!"},null,"",null,0]
[null,null,null,null,null,null,null,null,null,null,null,null,null,null,null,null,null,null,null,null,null,null,null,null,null,null,null,null,null,0,null,{"$error":"#DIV/0!"},"MWh/year per dwelling",null,null,0,0,0,0,0,0,0,0,0,0,0,0,null,0,0,0,0,0,0,0,0,0,0,0,0,null,0,null,{"$error":"#DIV/0!"},{"$error":"#DIV/0!"},{"$error":"#DIV/0!"},{"$error":"#DIV/0!"},{"$error":"#DIV/0!"},{"$error":"#DIV/0!"},{"$error":"#DIV/0!"},{"$error":"#DIV/0!"},{"$error":"#DIV/0!"},{"$error":"#DIV/0!"},{"$error":"#DIV/0!"},{"$error":"#DIV/0!"},null,"",null,0]
[null,null,null,null,null,null,null,null,null,null,null,null,null,null,null,null,null,null,null,null,null,null,null,null,null,null,null,null,null,0,null,{"$error":"#DIV/0!"},"MWh/year per dwelling",null,null,0,0,0,0,0,0,0,0,0,0,0,0,null,0,0,0,0,0,0,0,0,0,0,0,0,null,0,null,{"$error":"#DIV/0!"},{"$error":"#DIV/0!"},{"$error":"#DIV/0!"},{"$error":"#DIV/0!"},{"$error":"#DIV/0!"},{"$error":"#DIV/0!"},{"$error":"#DIV/0!"},{"$error":"#DIV/0!"},{"$error":"#DIV/0!"},{"$error":"#DIV/0!"},{"$error":"#DIV/0!"},{"$error":"#DIV/0!"},null,"",null,0]
[null,null,null,null,null,null,null,null,null,null,null,null,null,null,null,null,null,null,null,null,null,null,null,null,null,null,null,null,null,0,null,{"$error":"#DIV/0!"},"MWh/year per dwelling",null,null,0,0,0,0,0,0,0,0,0,0,0,0,null,0,0,0,0,0,0,0,0,0,0,0,0,null,0,null,{"$error":"#DIV/0!"},{"$error":"#DIV/0!"},{"$error":"#DIV/0!"},{"$error":"#DIV/0!"},{"$error":"#DIV/0!"},{"$error":"#DIV/0!"},{"$error":"#DIV/0!"},{"$error":"#DIV/0!"},{"$error":"#DIV/0!"},{"$error":"#DIV/0!"},{"$error":"#DIV/0!"},{"$error":"#DIV/0!"},null,"",null,0]
[null,null,null,null,null,null,null,null,null,null,null,null,null,null,null,null,null,null,null,null,null,null,null,null,null,null,null,null,null,0,null,{"$error":"#DIV/0!"},"MWh/year per dwelling",null,null,0,0,0,0,0,0,0,0,0,0,0,0,null,0,0,0,0,0,0,0,0,0,0,0,0,null,0,null,{"$error":"#DIV/0!"},{"$error":"#DIV/0!"},{"$error":"#DIV/0!"},{"$error":"#DIV/0!"},{"$error":"#DIV/0!"},{"$error":"#DIV/0!"},{"$error":"#DIV/0!"},{"$error":"#DIV/0!"},{"$error":"#DIV/0!"},{"$error":"#DIV/0!"},{"$error":"#DIV/0!"},{"$error":"#DIV/0!"},null,"",null,0]
[null,null,null,null,null,null,null,null,null,null,null,null,null,null,null,null,null,null,null,null,null,null,null,null,null,null,null,null,null,0,null,{"$error":"#DIV/0!"},"MWh/year per dwelling",null,null,0,0,0,0,0,0,0,0,0,0,0,0,null,0,0,0,0,0,0,0,0,0,0,0,0,null,0,null,{"$error":"#DIV/0!"},{"$error":"#DIV/0!"},{"$error":"#DIV/0!"},{"$error":"#DIV/0!"},{"$error":"#DIV/0!"},{"$error":"#DIV/0!"},{"$error":"#DIV/0!"},{"$error":"#DIV/0!"},{"$error":"#DIV/0!"},{"$error":"#DIV/0!"},{"$error":"#DIV/0!"},{"$error":"#DIV/0!"},null,"",null,0]
[null,null,null,null,null,null,null,null,null,null,null,null,null,null,null,null,null,null,null,null,null,null,null,null,null,null,null,null,null,0,null,{"$error":"#DIV/0!"},"MWh/year per dwelling",null,null,0,0,0,0,0,0,0,0,0,0,0,0,null,0,0,0,0,0,0,0,0,0,0,0,0,null,0,null,{"$error":"#DIV/0!"},{"$error":"#DIV/0!"},{"$error":"#DIV/0!"},{"$error":"#DIV/0!"},{"$error":"#DIV/0!"},{"$error":"#DIV/0!"},{"$error":"#DIV/0!"},{"$error":"#DIV/0!"},{"$error":"#DIV/0!"},{"$error":"#DIV/0!"},{"$error":"#DIV/0!"},{"$error":"#DIV/0!"},null,"",null,0]
[null,null,null,null,null,null,null,null,null,null,null,null,"Annual",null,null,null,null,null,null,null,null,null,null,null,null,null,null,null,null,0,null,{"$error":"#DIV/0!"},"MWh/year per dwelling",null,null,0,0,0,0,0,0,0,0,0,0,0,0,null,0,0,0,0,0,0,0,0,0,0,0,0,null,0,null,{"$error":"#DIV/0!"},{"$error":"#DIV/0!"},{"$error":"#DIV/0!"},{"$error":"#DIV/0!"},{"$error":"#DIV/0!"},{"$error":"#DIV/0!"},{"$error":"#DIV/0!"},{"$error":"#DIV/0!"},{"$error":"#DIV/0!"},{"$error":"#DIV/0!"},{"$error":"#DIV/0!"},{"$error":"#DIV/0!"},null,"",null,0]
["Total Apartments",{"$f":"SUM(B17:B126)","v":0},null,null,null,null,null,null,null,null,null,null,null,null,null,null,{"$f":"SUM(Q17:Q126)","v":0},{"$f":"SUM(R17:R126)","v":0},0,0,0,0,0,0,0,0,0,0,null,{"$f":"SUM(AD17:AD126)","v":0},null,null,null,null,null,{"$f":"SUM(AJ17:AJ126)","v":0},{"$f":"SUM(AK17:AK126)","v":0},0,0,0,0,0,0,0,0,0,0,null,{"$f":"SUM(AW17:AW126)","v":0},{"$f":"SUM(AX17:AX126)","v":0},0,0,0,0,0,0,0,0,0,0,null,{"$f":"SUM(BJ17:BJ126)","v":0},null,{"$f":"SUM(BL17:BL126)","v":{"$error":"#DIV/0!"}},{"$f":"SUM(BM17:BM126)","v":{"$error":"#DIV/0!"}},{"$error":"#DIV/0!"},{"$error":"#DIV/0!"},{"$error":"#DIV/0!"},{"$error":"#DIV/0!"},{"$error":"#DIV/0!"},{"$error":"#DIV/0!"},{"$error":"#DIV/0!"},{"$error":"#DIV/0!"},{"$error":"#DIV/0!"},{"$error":"#DIV/0!"},null,"",null,0]
["Houses",null,null,null,null,null,null,null,null,null,null,null,"Annual or Monthly MWh Entry?",null,"Annual MWh"]
["Detached houses",null,null,null,null,null,null,null,null,null,null,null,null,null,null,null,null,null,null,null,null,null,null,null,null,null,null,null,null,{"$f":"SUM(Q129:AB129)","v":0},null,{"$f":"AD129/B129","v":{"$error":"#DIV/0!"}},"MWh/year per dwelling",null,null,{"$f":"IF($M129=\"Annual\",AJ$13*$O129,0)","v":0},0,0,0,0,0,0,0,0,0,0,0,null,null,null,null,null,null,null,null,null,null,null,null,null,null,{"$f":"SUM(AW129:BH129)","v":0}]
["Semi-detached houses",null,null,null,null,null,null,null,null,null,null,null,null,null,null,null,null,null,null,null,null,null,null,null,null,null,null,null,null,{"$f":"SUM(Q130:AB130)","v":0},null,{"$f":"AD130/B130","v":{"$error":"#DIV/0!"}},"MWh/year per dwelling",null,null,0,0,0,0,0,0,0,0,0,0,0,0,null,null,null,null,null,null,null,null,null,null,null,null,null,null,{"$f":"SUM(AW130:BH130)","v":0}]
["Terraced houses",null,null,null,null,null,null,null,null,null,null,null,null,null,null,null,null,null,null,null,null,null,null,null,null,null,null,null,null,{"$f":"SUM(Q131:AB131)","v":0},null,{"$f":"AD131/B131","v":{"$error":"#DIV/0!"}},"MWh/year per dwelling",null,null,0,0,0,0,0,0,0,0,0,0,0,0,null,null,null,null,null,null,null,null,null,null,null,null,null,null,{"$f":"SUM(AW131:BH131)","v":0}]
["Other",null,null,null,null,null,null,null,null,null,null,null,null,null,null,null,null,null,null,null,null,null,null,null,null,null,null,null,null,{"$f":"SUM(Q132:AB132)","v":0},null,{"$f":"AD132/B132","v":{"$error":"#DIV/0!"}},"MWh/year per dwelling",null,null,0,0,0,0,0,0,0,0,0,0,0,0,null,null,null,null,null,null,null,null,null,null,null,null,null,null,{"$f":"SUM(AW132:BH132)","v":0}]
[]
["Non-domestic heat supplied (for mixed use schemes)"]
[]
["TOTAL non-domestic buildings",{"$f":"SUM(B139:B286)","v":0},"m2",null,null,null,null,null,null,null,null,null,null,null,"Non-Dom Totals",null,{"$f":"SUM(Q139:Q286)","v":0},{"$f":"SUM(R139:R286)","v":0},0,0,0,0,0,0,0,0,0,0,null,{"$f":"SUM(AD139:AD286)","v":0},null,null,null,null,null,{"$f":"SUM(AJ139:AJ286)","v":0},{"$f":"SUM(AK139:AK286)","v":0},0,0,0,0,0,0,0,0,0,0,null,{"$f":"SUM(AW139:AW286)","v":0},{"$f":"SUM(AX139:AX286)","v":0},0,0,0,0,0,0,0,0,0,0,null,{"$f":"SUM(BJ139:BJ286)","v":0}]
[]
["Non-domestic building name","Floor area (m2)","Year built",null,"Building Status",null,"DH connection status",null,"Data type",null,null,null,"Annual or Monthly MWh Entry?",null,"Annual MWh",null,"Jan (MWh)","Feb (MWh)","Mar (MWh)","Apr (MWh)","May (MWh)","Jun (MWh)","Jul (MWh)","Aug (MWh)","Sep (MWh)","Oct (MWh)","Nov (MWh)","Dec (MWh)",null,"TOTAL",null,null,null,null,null,"Jan (MWh)","Feb (MWh)","Mar (MWh)","Apr (MWh)","May (MWh)","Jun (MWh)","Jul (MWh)","Aug (MWh)","Sep (MWh)","Oct (MWh)","Nov (MWh)","Dec (MWh)",null,"Jan (MWh)","Feb (MWh)","Mar (MWh)","Apr (MWh)","May (MWh)","Jun (MWh)","Jul (MWh)","Aug (MWh)","Sep (MWh)","Oct (MWh)","Nov (MWh)","Dec (MWh)",null,"TOTAL"]
[null,null,null,null,null,null,null,null,null,null,null,null,null,null,null,null,null,null,null,null,null,null,null,null,null,null,null,null,null,{"$f":"SUM(Q139:AB139)","v":0},null,null,null,null,null,{"$f":"IF($M139=\"Annual\",AJ$13*$O139,0)","v":0},0,0,0,0,0,0,0,0,0,0,0,null,null,null,null,null,null,null,null,null,null,null,null,null,null,{"$f":"SUM(AW139:BH139)","v":0}]
[null,null,null,null,null,null,null,null,null,null,null,null,null,null,null,null,null,null,null,null,null,null,null,null,null,null,null,null,null,{"$f":"SUM(Q140:AB140)","v":0},null,null,null,null,null,0,0,0,0,0,0,0,0,0,0,0,0,null,null,null,null,null,null,null,null,null,null,null,null,null,null,{"$f":"SUM(AW140:BH140)","v":0}]
[null,null,null,null,null,null,null,null,null,null,null,null,null,null,null,null,null,null,null,null,null,null,null,null,null,null,null,null,null,0,null,null,null,null,null,0,0,0,0,0,0,0,0,0,0,0,0,null,null,null,null,null,null,null,null,null,null,null,null,null,null,0]
[null,null,null,null,null,null,null,null,null,null,null,null,null,null,null,null,null,null,null,null,null,null,null,null,null,null,null,null,null,0,null,null,null,null,null,0,0,0,0,0,0,0,0,0,0,0,0,null,null,null,null,null,null,null,null,null,null,null,null,null,null,0]
[null,null,null,null,null,null,null,null,null,null,null,null,null,null,null,null,null,null,null,null,null,null,null,null,null,null,null,null,null,0,null,null,null,null,null,0,0,0,0,0,0,0,0,0,0,0,0,null,null,null,null,null,null,null,null,null,null,null,null,null,null,0]
[null,null,null,null,null,null,null,null,null,null,null,null,null,null,null,null,null,null,null,null,null,null,null,null,null,null,null,null,null,0,null,null,null,null,null,0,0,0,0,0,0,0,0,0,0,0,0,null,null,null,null,null,null,null,null,null,null,null,null,null,null,0]
[null,null,null,null,null,null,null,null,null,null,null,null,null,null,null,null,null,null,null,null,null,null,null,null,null,null,null,null,null,0,null,null,null,null,null,0,0,0,0,0,0,0,0,0,0,0,0,null,null,null,null,null,null,null,null,null,null,null,null,null,null,0]
[null,null,null,null,null,null,null,null,null,null,null,null,null,null,null,null,null,null,null,null,null,null,null,null,null,null,null,null,null,0,null,null,null,null,null,0,0,0,0,0,0,0,0,0,0,0,0,null,null,null,null,null,null,null,null,null,null,null,null,null,null,0]
[null,null,null,null,null,null,null,null,null,null,null,null,null,null,null,null,null,null,null,null,null,null,null,null,null,null,null,null,null,0,null,null,null,null,null,0,0,0,0,0,0,0,0,0,0,0,0,null,null,null,null,null,null,null,null,null,null,null,null,null,null,0]
[null,null,null,null,null,null,null,null,null,null,null,null,null,null,null,null,null,null,null,null,null,null,null,null,null,null,null,null,null,0,null,null,null,null,null,0,0,0,0,0,0,0,0,0,0,0,0,null,null,null,null,null,null,null,null,null,null,null,null,null,null,0]
[null,null,null,null,null,null,null,null,null,null,null,null,null,null,null,null,null,null,null,null,null,null,null,null,null,null,null,null,null,0,null,null,null,null,null,0,0,0,0,0,0,0,0,0,0,0,0,null,null,null,null,null,null,null,null,null,null,null,null,null,null,0]
[null,null,null,null,null,null,null,null,null,null,null,null,null,null,null,null,null,null,null,null,null,null,null,null,null,null,null,null,null,0,null,null,null,null,null,0,0,0,0,0,0,0,0,0,0,0,0,null,null,null,null,null,null,null,null,null,null,null,null,null,null,0]
[null,null,null,null,null,null,null,null,null,null,null,null,null,null,null,null,null,null,null,null,null,null,null,null,null,null,null,null,null,0,null,null,null,null,null,0,0,0,0,0,0,0,0,0,0,0,0,null,null,null,null,null,null,null,null,null,null,null,null,null,null,0]
[null,null,null,null,null,null,null,null,null,null,null,null,null,null,null,null,null,null,null,null,null,null,null,null,null,null,null,null,null,0,null,null,null,null,null,0,0,0,0,0,0,0,0,0,0,0,0,null,null,null,null,null,null,null,null,null,null,null,null,null,null,0]
[null,null,null,null,null,null,null,null,null,null,null,null,null,null,null,null,null,null,null,null,null,null,null,null,null,null,null,null,null,0,null,null,null,null,null,0,0,0,0,0,0,0,0,0,0,0,0,null,null,null,null,null,null,null,null,null,null,null,null,null,null,0]
[null,null,null,null,null,null,null,null,null,null,null,null,null,null,null,null,null,null,null,null,null,null,null,null,null,null,null,null,null,0,null,null,null,null,null,0,0,0,0,0,0,0,0,0,0,0,0,null,null,null,null,null,null,null,null,null,null,null,null,null,null,0]
[null,null,null,null,null,null,null,null,null,null,null,null,null,null,null,null,null,null,null,null,null,null,null,null,null,null,null,null,null,0,null,null,null,null,null,{"$f":"IF($M155=\"Annual\",AJ$13*$O155,0)","v":0},0,0,0,0,0,0,0,0,0,0,0,null,null,null,null,null,null,null,null,null,null,null,null,null,null,0]
[null,null,null,null,null,null,null,null,null,null,null,null,null,null,null,null,null,null,null,null,null,null,null,null,null,null,null,null,null,0,null,null,null,null,null,0,0,0,0,0,0,0,0,0,0,0,0,null,null,null,null,null,null,null,null,null,null,null,null,null,null,0]
[null,null,null,null,null,null,null,null,null,null,null,null,null,null,null,null,null,null,null,null,null,null,null,null,null,null,null,null,null,0,null,null,null,null,null,0,0,0,0,0,0,0,0,0,0,0,0,null,null,null,null,null,null,null,null,null,null,null,null,null,null,0]
[null,null,null,null,null,null,null,null,null,null,null,null,null,null,null,null,null,null,null,null,null,null,null,null,null,null,null,null,null,0,null,null,null,null,null,0,0,0,0,0,0,0,0,0,0,0,0,null,null,null,null,null,null,null,null,null,null,null,null,null,null,0]
[null,null,null,null,null,null,null,null,null,null,null,null,null,null,null,null,null,null,null,null,null,null,null,null,null,null,null,null,null,0,null,null,null,null,null,0,0,0,0,0,0,0,0,0,0,0,0,null,null,null,null,null,null,null,null,null,null,null,null,null,null,0]
[null,null,null,null,null,null,null,null,null,null,null,null,null,null,null,null,null,null,null,null,null,null,null,null,null,null,null,null,null,0,null,null,null,null,null,0,0,0,0,0,0,0,0,0,0,0,0,null,null,null,null,null,null,null,null,null,null,null,null,null,null,0]
[null,null,null,null,null,null,null,null,null,null,null,null,null,null,null,null,null,null,null,null,null,null,null,null,null,null,null,null,null,0,null,null,null,null,null,0,0,0,0,0,0,0,0,0,0,0,0,null,null,null,null,null,null,null,null,null,null,null,null,null,null,0]
[null,null,null,null,null,null,null,null,null,null,null,null,null,null,null,null,null,null,null,null,null,null,null,null,null,null,null,null,null,0,null,null,null,null,null,0,0,0,0,0,0,0,0,0,0,0,0,null,null,null,null,null,null,null,null,null,null,null,null,null,null,0]
[null,null,null,null,null,null,null,null,null,null,null,null,null,null,null,null,null,null,null,null,null,null,null,null,null,null,null,null,null,0,null,null,null,null,null,0,0,0,0,0,0,0,0,0,0,0,0,null,null,null,null,null,null,null,null,null,null,null,null,null,null,0]
[null,null,null,null,null,null,null,null,null,null,null,null,null,null,null,null,null,null,null,null,null,null,null,null,null,null,null,null,null,0,null,null,null,null,null,0,0,0,0,0,0,0,0,0,0,0,0,null,null,null,null,null,null,null,null,null,null,null,null,null,null,0]
[null,null,null,null,null,null,null,null,null,null,null,null,null,null,null,null,null,null,null,null,null,null,null,null,null,null,null,null,null,0,null,null,null,null,null,0,0,0,0,0,0,0,0,0,0,0,0,null,null,null,null,null,null,null,null,null,null,null,null,null,null,0]
[null,null,null,null,null,null,null,null,null,null,null,null,null,null,null,null,null,null,null,null,null,null,null,null,null,null,null,null,null,0,null,null,null,null,null,0,0,0,0,0,0,0,0,0,0,0,0,null,null,null,null,null,null,null,null,null,null,null,null,null,null,0]
[null,null,null,null,null,null,null,null,null,null,null,null,null,null,null,null,null,null,null,null,null,null,null,null,null,null,null,null,null,0,null,null,null,null,null,0,0,0,0,0,0,0,0,0,0,0,0,null,null,null,null,null,null,null,null,null,null,null,null,null,null,0]
[null,null,null,null,null,null,null,null,null,null,null,null,null,null,null,null,null,null,null,null,null,null,null,null,null,null,null,null,null,0,null,null,null,null,null,0,0,0,0,0,0,0,0,0,0,0,0,null,null,null,null,null,null,null,null,null,null,null,null,null,null,0]
[null,null,null,null,null,null,null,null,null,null,null,null,null,null,null,null,null,null,null,null,null,null,null,null,null,null,null,null,null,0,null,null,null,null,null,0,0,0,0,0,0,0,0,0,0,0,0,null,null,null,null,null,null,null,null,null,null,null,null,null,null,0]
[null,null,null,null,null,null,null,null,null,null,null,null,null,null,null,null,null,null,null,null,null,null,null,null,null,null,null,null,null,0,null,null,null,null,null,0,0,0,0,0,0,0,0,0,0,0,0,null,null,null,null,null,null,null,null,null,null,null,null,null,null,0]
[null,null,null,null,null,null,null,null,null,null,null,null,null,null,null,null,null,null,null,null,null,null,null,null,null,null,null,null,null,0,null,null,null,null,null,0,0,0,0,0,0,0,0,0,0,0,0,null,null,null,null,null,null,null,null,null,null,null,null,null,null,0]
[null,null,null,null,null,null,null,null,null,null,null,null,null,null,null,null,null,null,null,null,null,null,null,null,null,null,null,null,null,0,null,null,null,null,null,0,0,0,0,0,0,0,0,0,0,0,0,null,null,null,null,null,null,null,null,null,null,null,null,null,null,0]
[null,null,null,null,null,null,null,null,null,null,null,null,null,null,null,null,null,null,null,null,null,null,null,null,null,null,null,null,null,0,null,null,null,null,null,0,0,0,0,0,0,0,0,0,0,0,0,null,null,null,null,null,null,null,null,null,null,null,null,null,null,0]
[null,null,null,null,null,null,null,null,null,null,null,null,null,null,null,null,null,null,null,null,null,null,null,null,null,null,null,null,null,0,null,null,null,null,null,0,0,0,0,0,0,0,0,0,0,0,0,null,null,null,null,null,null,null,null,null,null,null,null,null,null,0]
[null,null,null,null,null,null,null,null,null,null,null,null,null,null,null,null,null,null,null,null,null,null,null,null,null,null,null,null,null,0,null,null,null,null,null,0,0,0,0,0,0,0,0,0,0,0,0,null,null,null,null,null,null,null,null,null,null,null,null,null,null,0]
[null,null,null,null,null,null,null,null,null,null,null,null,null,null,null,null,null,null,null,null,null,null,null,null,null,null,null,null,null,0,null,null,null,null,null,0,0,0,{"$f":"IF($M176=\"Annual\",AM$13*$O176,0)","v":0},0,0,0,0,0,0,0,0,null,null,null,null,null,null,null,null,null,null,null,null,null,null,0]
[null,null,null,null,null,null,null,null,null,null,null,null,null,null,null,null,null,null,null,null,null,null,null,null,null,null,null,null,null,0,null,null,null,null,null,0,0,0,0,0,0,0,0,0,0,0,0,null,null,null,null,null,null,null,null,null,null,null,null,null,null,0]
[null,null,null,null,null,null,null,null,null,null,null,null,null,null,null,null,null,null,null,null,null,null,null,null,null,null,null,null,null,0,null,null,null,null,null,0,0,0,0,0,0,0,0,0,0,0,0,null,null,null,null,null,null,null,null,null,null,null,null,null,null,0]
[null,null,null,null,null,null,null,null,null,null,null,null,null,null,null,null,null,null,null,null,null,null,null,null,null,null,null,null,null,0,null,null,null,null,null,0,0,0,0,0,0,0,0,0,0,0,0,null,null,null,null,null,null,null,null,null,null,null,null,null,null,0]
[null,null,null,null,null,null,null,null,null,null,null,null,null,null,null,null,null,null,null,null,null,null,null,null,null,null,null,null,null,0,null,null,null,null,null,0,0,0,0,0,0,0,0,0,0,0,0,null,null,null,null,null,null,null,null,null,null,null,null,null,null,0]
[null,null,null,null,null,null,null,null,null,null,null,null,null,null,null,null,null,null,null,null,null,null,null,null,null,null,null,null,null,0,null,null,null,null,null,0,0,0,0,0,0,0,0,0,0,0,0,null,null,null,null,null,null,null,null,null,null,null,null,null,null,0]
[null,null,null,null,null,null,null,null,null,null,null,null,null,null,null,null,null,null,null,null,null,null,null,null,null,null,null,null,null,{"$f":"SUM(Q182:AB182)","v":0},null,null,null,null,null,0,0,0,0,0,0,0,0,0,0,0,0,null,null,null,null,null,null,null,null,null,null,null,null,null,null,0]
[null,null,null,null,null,null,null,null,null,null,null,null,null,null,null,null,null,null,null,null,null,null,null,null,null,null,null,null,null,0,null,null,null,null,null,0,0,0,0,0,0,0,0,0,0,0,0,null,null,null,null,null,null,null,null,null,null,null,null,null,null,0]
[null,null,null,null,null,null,null,null,null,null,null,null,null,null,null,null,null,null,null,null,null,null,null,null,null,null,null,null,null,0,null,null,null,null,null,0,0,0,0,0,0,0,0,0,0,0,0,null,null,null,null,null,null,null,null,null,null,null,null,null,null,0]
[null,null,null,null,null,null,null,null,null,null,null,null,null,null,null,null,null,null,null,null,null,null,null,null,null,null,null,null,null,0,null,null,null,null,null,0,0,0,0,0,0,0,0,0,0,0,0,null,null,null,null,null,null,null,null,null,null,null,null,null,null,0]
[null,null,null,null,null,null,null,null,null,null,null,null,null,null,null,null,null,null,null,null,null,null,null,null,null,null,null,null,null,0,null,null,null,null,null,0,0,0,0,0,0,0,0,0,0,0,0,null,null,null,null,null,null,null,null,null,null,null,null,null,null,0]
[null,null,null,null,null,null,null,null,null,null,null,null,null,null,null,null,null,null,null,null,null,null,null,null,null,null,null,null,null,0,null,null,null,null,null,0,0,0,0,0,0,0,0,0,0,0,0,null,null,null,null,null,null,null,null,null,null,null,null,null,null,0]
[null,null,null,null,null,null,null,null,null,null,null,null,null,null,null,null,null,null,null,null,null,null,null,null,null,null,null,null,null,0,null,null,null,null,null,0,0,0,0,0,0,0,0,0,0,0,0,null,null,null,null,null,null,null,null,null,null,null,null,null,null,0]
[null,null,null,null,null,null,null,null,null,null,null,null,null,null,null,null,null,null,null,null,null,null,null,null,null,null,null,null,null,0,null,null,null,null,null,0,0,0,0,0,0,0,0,0,0,0,0,null,null,null,null,null,null,null,null,null,null,null,null,null,null,0]
[null,null,null,null,null,null,null,null,null,null,null,null,null,null,null,null,null,null,null,null,null,null,null,null,null,null,null,null,null,0,null,null,null,null,null,0,0,0,0,0,0,0,0,0,0,0,0,null,null,null,null,null,null,null,null,null,null,null,null,null,null,0]
[null,null,null,null,null,null,null,null,null,null,null,null,null,null,null,null,null,null,null,null,null,null,null,null,null,null,null,null,null,0,null,null,null,null,null,0,0,0,0,0,0,0,0,0,0,0,0,null,null,null,null,null,null,null,null,null,null,null,null,null,null,0]
[null,null,null,null,null,null,null,null,null,null,null,null,null,null,null,null,null,null,null,null,null,null,null,null,null,null,null,null,null,0,null,null,null,null,null,0,0,0,0,0,0,0,0,0,0,0,0,null,null,null,null,null,null,null,null,null,null,null,null,null,null,0]
[null,null,null,null,null,null,null,null,null,null,null,null,null,null,null,null,null,null,null,null,null,null,null,null,null,null,null,null,null,0,null,null,null,null,null,0,0,0,0,0,0,0,0,0,0,0,0,null,null,null,null,null,null,null,null,null,null,null,null,null,null,0]
[null,null,null,null,null,null,null,null,null,null,null,null,null,null,null,null,null,null,null,null,null,null,null,null,null,null,null,null,null,0,null,null,null,null,null,0,0,0,0,0,0,0,0,0,0,0,0,null,null,null,null,null,null,null,null,null,null,null,null,null,null,0]
[null,null,null,null,null,null,null,null,null,null,null,null,null,null,null,null,null,null,null,null,null,null,null,null,null,null,null,null,null,0,null,null,null,null,null,0,0,0,0,0,0,0,0,0,0,0,0,null,null,null,null,null,null,null,null,null,null,null,null,null,null,0]
[null,null,null,null,null,null,null,null,null,null,null,null,null,null,null,null,null,null,null,null,null,null,null,null,null,null,null,null,null,0,null,null,null,null,null,0,0,0,0,0,0,0,0,0,0,0,0,null,null,null,null,null,null,null,null,null,null,null,null,null,null,0]
[null,null,null,null,null,null,null,null,null,null,null,null,null,null,null,null,null,null,null,null,null,null,null,null,null,null,null,null,null,0,null,null,null,null,null,0,0,0,0,0,0,{"$f":"IF($M197=\"Annual\",AP$13*$O197,0)","v":0},0,0,0,0,0,null,null,null,null,null,null,null,null,null,null,null,null,null,null,0]
[null,null,null,null,null,null,null,null,null,null,null,null,null,null,null,null,null,null,null,null,null,null,null,null,null,null,null,null,null,0,null,null,null,null,null,0,0,0,0,0,0,0,0,0,0,0,0,null,null,null,null,null,null,null,null,null,null,null,null,null,null,0]
[null,null,null,null,null,null,null,null,null,null,null,null,null,null,null,null,null,null,null,null,null,null,null,null,null,null,null,null,null,0,null,null,null,null,null,0,0,0,0,0,0,0,0,0,0,0,0,null,null,null,null,null,null,null,null,null,null,null,null,null,null,0]
[null,null,null,null,null,null,null,null,null,null,null,null,null,null,null,null,null,null,null,null,null,null,null,null,null,null,null,null,null,0,null,null,null,null,null,0,0,0,0,0,0,0,0,0,0,0,0,null,null,null,null,null,null,null,null,null,null,null,null,null,null,0]
[null,null,null,null,null,null,null,null,null,null,null,null,null,null,null,null,null,null,null,null,null,null,null,null,null,null,null,null,null,0,null,null,null,null,null,0,0,0,0,0,0,0,0,0,0,0,0,null,null,null,null,null,null,null,null,null,null,null,null,null,null,0]
[null,null,null,null,null,null,null,null,null,null,null,null,null,null,null,null,null,null,null,null,null,null,null,null,null,null,null,null,null,0,null,null,null,null,null,0,0,0,0,0,0,0,0,0,0,0,0,null,null,null,null,null,null,null,null,null,null,null,null,null,null,0]
[null,null,null,null,null,null,null,null,null,null,null,null,null,null,null,null,null,null,null,null,null,null,null,null,null,null,null,null,null,0,null,null,null,null,null,0,0,0,0,0,0,0,0,0,0,0,0,null,null,null,null,null,null,null,null,null,null,null,null,null,null,0]
[null,null,null,null,null,null,null,null,null,null,null,null,null,null,null,null,null,null,null,null,null,null,null,null,null,null,null,null,null,0,null,null,null,null,null,0,0,0,0,0,0,0,0,0,0,0,0,null,null,null,null,null,null,null,null,null,null,null,null,null,null,0]
[null,null,null,null,null,null,null,null,null,null,null,null,null,null,null,null,null,null,null,null,null,null,null,null,null,null,null,null,null,0,null,null,null,null,null,0,0,0,0,0,0,0,0,0,0,0,0,null,null,null,null,null,null,null,null,null,null,null,null,null,null,0]
[null,null,null,null,null,null,null,null,null,null,null,null,null,null,null,null,null,null,null,null,null,null,null,null,null,null,null,null,null,0,null,null,null,null,null,0,0,0,0,0,0,0,0,0,0,0,0,null,null,null,null,null,null,null,null,null,null,null,null,null,null,0]
[null,null,null,null,null,null,null,null,null,null,null,null,null,null,null,null,null,null,null,null,null,null,null,null,null,null,null,null,null,0,null,null,null,null,null,0,0,0,0,0,0,0,0,0,0,0,0,null,null,null,null,null,null,null,null,null,null,null,null,null,null,0]
[null,null,null,null,null,null,null,null,null,null,null,null,null,null,null,null,null,null,null,null,null,null,null,null,null,null,null,null,null,0,null,null,null,null,null,0,0,0,0,0,0,0,0,0,0,0,0,null,null,null,null,null,null,null,null,null,null,null,null,null,null,0]
[null,null,null,null,null,null,null,null,null,null,null,null,null,null,null,null,null,null,null,null,null,null,null,null,null,null,null,null,null,0,null,null,null,null,null,0,0,0,0,0,0,0,0,0,0,0,0,null,null,null,null,null,null,null,null,null,null,null,null,null,null,0]
[null,null,null,null,null,null,null,null,null,null,null,null,null,null,null,null,null,null,null,null,null,null,null,null,null,null,null,null,null,0,null,null,null,null,null,0,0,0,0,0,0,0,0,0,0,0,0,null,null,null,null,null,null,null,null,null,null,null,null,null,null,0]
[null,null,null,null,null,null,null,null,null,null,null,null,null,null,null,null,null,null,null,null,null,null,null,null,null,null,null,null,null,0,null,null,null,null,null,0,0,0,0,0,0,0,0,0,0,0,0,null,null,null,null,null,null,null,null,null,null,null,null,null,null,0]
[null,null,null,null,null,null,null,null,null,null,null,null,null,null,null,null,null,null,null,null,null,null,null,null,null,null,null,null,null,0,null,null,null,null,null,0,0,0,0,0,0,0,0,0,0,0,0,null,null,null,null,null,null,null,null,null,null,null,null,null,null,0]
[null,null,null,null,null,null,null,null,null,null,null,null,null,null,null,null,null,null,null,null,null,null,null,null,null,null,null,null,null,0,null,null,null,null,null,0,0,0,0,0,0,0,0,0,0,0,0,null,null,null,null,null,null,null,null,null,null,null,null,null,null,0]
[null,null,null,null,null,null,null,null,null,null,null,null,null,null,null,null,null,null,null,null,null,null,null,null,null,null,null,null,null,0,null,null,null,null,null,0,0,0,0,0,0,0,0,0,0,0,0,null,null,null,null,null,null,null,null,null,null,null,null,null,null,0]
[null,null,null,null,null,null,null,null,null,null,null,null,null,null,null,null,null,null,null,null,null,null,null,null,null,null,null,null,null,0,null,null,null,null,null,0,0,0,0,0,0,0,0,0,0,0,0,null,null,null,null,null,null,null,null,null,null,null,null,null,null,0]
[null,null,null,null,null,null,null,null,null,null,null,null,null,null,null,null,null,null,null,null,null,null,null,null,null,null,null,null,null,0,null,null,null,null,null,0,0,0,0,0,0,0,0,0,0,0,0,null,null,null,null,null,null,null,null,null,null,null,null,null,null,0]
[null,null,null,null,null,null,null,null,null,null,null,null,null,null,null,null,null,null,null,null,null,null,null,null,null,null,null,null,null,0,null,null,null,null,null,0,0,0,0,0,0,0,0,0,0,0,0,null,null,null,null,null,null,null,null,null,null,null,null,null,null,0]
[null,null,null,null,null,null,null,null,null,null,null,null,null,null,null,null,null,null,null,null,null,null,null,null,null,null,null,null,null,0,null,null,null,null,null,0,0,0,0,0,0,0,0,0,{"$f":"IF($M218=\"Annual\",AS$13*$O218,0)","v":0},0,0,null,null,null,null,null,null,null,null,null,null,null,null,null,null,0]
[null,null,null,null,null,null,null,null,null,null,null,null,null,null,null,null,null,null,null,null,null,null,null,null,null,null,null,null,null,0,null,null,null,null,null,0,0,0,0,0,0,0,0,0,0,0,0,null,null,null,null,null,null,null,null,null,null,null,null,null,null,0]
[null,null,null,null,null,null,null,null,null,null,null,null,null,null,null,null,null,null,null,null,null,null,null,null,null,null,null,null,null,0,null,null,null,null,null,0,0,0,0,0,0,0,0,0,0,0,0,null,null,null,null,null,null,null,null,null,null,null,null,null,null,0]
[null,null,null,null,null,null,null,null,null,null,null,null,null,null,null,null,null,null,null,null,null,null,null,null,null,null,null,null,null,0,null,null,null,null,null,0,0,0,0,0,0,0,0,0,0,0,0,null,null,null,null,null,null,null,null,null,null,null,null,null,null,0]
[null,null,null,null,null,null,null,null,null,null,null,null,null,null,null,null,null,null,null,null,null,null,null,null,null,null,null,null,null,0,null,null,null,null,null,0,0,0,0,0,0,0,0,0,0,0,0,null,null,null,null,null,null,null,null,null,null,null,null,null,null,0]
[null,null,null,null,null,null,null,null,null,null,null,null,null,null,null,null,null,null,null,null,null,null,null,null,null,null,null,null,null,0,null,null,null,null,null,0,0,0,0,0,0,0,0,0,0,0,0,null,null,null,null,null,null,null,null,null,null,null,null,null,null,0]
[null,null,null,null,null,null,null,null,null,null,null,null,null,null,null,null,null,null,null,null,null,null,null,null,null,null,null,null,null,0,null,null,null,null,null,0,0,0,0,0,0,0,0,0,0,0,0,null,null,null,null,null,null,null,null,null,null,null,null,null,null,0]
[null,null,null,null,null,null,null,null,null,null,null,null,null,null,null,null,null,null,null,null,null,null,null,null,null,null,null,null,null,0,null,null,null,null,null,0,0,0,0,0,0,0,0,0,0,0,0,null,null,null,null,null,null,null,null,null,null,null,null,null,null,0]
[null,null,null,null,null,null,null,null,null,null,null,null,null,null,null,null,null,null,null,null,null,null,null,null,null,null,null,null,null,0,null,null,null,null,null,0,0,0,0,0,0,0,0,0,0,0,0,null,null,null,null,null,null,null,null,null,null,null,null,null,null,0]
[null,null,null,null,null,null,null,null,null,null,null,null,null,null,null,null,null,null,null,null,null,null,null,null,null,null,null,null,null,0,null,null,null,null,null,0,0,0,0,0,0,0,0,0,0,0,0,null,null,null,null,null,null,null,null,null,null,null,null,null,null,0]
[null,null,null,null,null,null,null,null,null,null,null,null,null,null,null,null,null,null,null,null,null,null,null,null,null,null,null,null,null,{"$f":"SUM(Q228:AB228)","v":0},null,null,null,null,null,0,0,0,0,0,0,0,0,0,0,0,0,null,null,null,null,null,null,null,null,null,null,null,null,null,null,{"$f":"SUM(AW228:BH228)","v":0}]
[null,null,null,null,null,null,null,null,null,null,null,null,null,null,null,null,null,null,null,null,null,null,null,null,null,null,null,null,null,{"$f":"SUM(Q229:AB229)","v":0},null,null,null,null,null,0,0,0,0,0,0,0,0,0,0,0,0,null,null,null,null,null,null,null,null,null,null,null,null,null,null,0]
[null,null,null,null,null,null,null,null,null,null,null,null,null,null,null,null,null,null,null,null,null,null,null,null,null,null,null,null,null,0,null,null,null,null,null,0,0,0,0,0,0,0,0,0,0,0,0,null,null,null,null,null,null,null,null,null,null,null,null,null,null,0]
[null,null,null,null,null,null,null,null,null,null,null,null,null,null,null,null,null,null,null,null,null,null,null,null,null,null,null,null,null,0,null,null,null,null,null,0,0,0,0,0,0,0,0,0,0,0,0,null,null,null,null,null,null,null,null,null,null,null,null,null,null,0]
[null,null,null,null,null,null,null,null,null,null,null,null,null,null,null,null,null,null,null,null,null,null,null,null,null,null,null,null,null,0,null,null,null,null,null,0,0,0,0,0,0,0,0,0,0,0,0,null,null,null,null,null,null,null,null,null,null,null,null,null,null,0]
[null,null,null,null,null,null,null,null,null,null,null,null,null,null,null,null,null,null,null,null,null,null,null,null,null,null,null,null,null,0,null,null,null,null,null,0,0,0,0,0,0,0,0,0,0,0,0,null,null,null,null,null,null,null,null,null,null,null,null,null,null,0]
[null,null,null,null,null,null,null,null,null,null,null,null,null,null,null,null,null,null,null,null,null,null,null,null,null,null,null,null,null,0,null,null,null,null,null,0,0,0,0,0,0,0,0,0,0,0,0,null,null,null,null,null,null,null,null,null,null,null,null,null,null,0]
[null,null,null,null,null,null,null,null,null,null,null,null,null,null,null,null,null,null,null,null,null,null,null,null,null,null,null,null,null,0,null,null,null,null,null,0,0,0,0,0,0,0,0,0,0,0,0,null,null,null,null,null,null,null,null,null,null,null,null,null,null,0]
[null,null,null,null,null,null,null,null,null,null,null,null,null,null,null,null,null,null,null,null,null,null,null,null,null,null,null,null,null,0,null,null,null,null,null,0,0,0,0,0,0,0,0,0,0,0,0,null,null,null,null,null,null,null,null,null,null,null,null,null,null,0]
[null,null,null,null,null,null,null,null,null,null,null,null,null,null,null,null,null,null,null,null,null,null,null,null,null,null,null,null,null,0,null,null,null,null,null,0,0,0,0,0,0,0,0,0,0,0,0,null,null,null,null,null,null,null,null,null,null,null,null,null,null,0]
[null,null,null,null,null,null,null,null,null,null,null,null,null,null,null,null,null,null,null,null,null,null,null,null,null,null,null,null,null,0,null,null,null,null,null,0,0,0,0,0,0,0,0,0,0,0,0,null,null,null,null,null,null,null,null,null,null,null,null,null,null,0]
[null,null,null,null,null,null,null,null,null,null,null,null,null,null,null,null,null,null,null,null,null,null,null,null,null,null,null,null,null,0,null,null,null,null,null,0,0,0,0,0,0,0,0,0,0,0,0,null,null,null,null,null,null,null,null,null,null,null,null,null,null,0]
[null,null,null,null,null,null,null,null,null,null,null,null,null,null,null,null,null,null,null,null,null,null,null,null,null,null,null,null,null,0,null,null,null,null,null,{"$f":"IF($M240=\"Annual\",AJ$13*$O240,0)","v":0},0,0,0,0,0,0,0,0,0,0,0,null,null,null,null,null,null,null,null,null,null,null,null,null,null,0]
[null,null,null,null,null,null,null,null,null,null,null,null,null,null,null,null,null,null,null,null,null,null,null,null,null,null,null,null,null,0,null,null,null,null,null,0,0,0,0,0,0,0,0,0,0,0,0,null,null,null,null,null,null,null,null,null,null,null,null,null,null,0]
[null,null,null,null,null,null,null,null,null,null,null,null,null,null,null,null,null,null,null,null,null,null,null,null,null,null,null,null,null,0,null,null,null,null,null,0,0,0,0,0,0,0,0,0,0,0,0,null,null,null,null,null,null,null,null,null,null,null,null,null,null,0]
[null,null,null,null,null,null,null,null,null,null,null,null,null,null,null,null,null,null,null,null,null,null,null,null,null,null,null,null,null,0,null,null,null,null,null,0,0,0,0,0,0,0,0,0,0,0,0,null,null,null,null,null,null,null,null,null,null,null,null,null,null,0]
[null,null,null,null,null,null,null,null,null,null,null,null,null,null,null,null,null,null,null,null,null,null,null,null,null,null,null,null,null,0,null,null,null,null,null,0,0,0,0,0,0,0,0,0,0,0,0,null,null,null,null,null,null,null,null,null,null,null,null,null,null,0]
[null,null,null,null,null,null,null,null,null,null,null,null,null,null,null,null,null,null,null,null,null,null,null,null,null,null,null,null,null,0,null,null,null,null,null,0,0,0,0,0,0,0,0,0,0,0,0,null,null,null,null,null,null,null,null,null,null,null,null,null,null,0]
[null,null,null,null,null,null,null,null,null,null,null,null,null,null,null,null,null,null,null,null,null,null,null,null,null,null,null,null,null,0,null,null,null,null,null,0,0,0,0,0,0,0,0,0,0,0,0,null,null,null,null,null,null,null,null,null,null,null,null,null,null,0]
[null,null,null,null,null,null,null,null,null,null,null,null,null,null,null,null,null,null,null,null,null,null,null,null,null,null,null,null,null,0,null,null,null,null,null,0,0,0,0,0,0,0,0,0,0,0,0,null,null,null,null,null,null,null,null,null,null,null,null,null,null,0]
[null,null,null,null,null,null,null,null,null,null,null,null,null,null,null,null,null,null,null,null,null,null,null,null,null,null,null,null,null,0,null,null,null,null,null,0,0,0,0,0,0,0,0,0,0,0,0,null,null,null,null,null,null,null,null,null,null,null,null,null,null,0]
[null,null,null,null,null,null,null,null,null,null,null,null,null,null,null,null,null,null,null,null,null,null,null,null,null,null,null,null,null,0,null,null,null,null,null,0,0,0,0,0,0,0,0,0,0,0,0,null,null,null,null,null,null,null,null,null,null,null,null,null,null,0]
[null,null,null,null,null,null,null,null,null,null,null,null,null,null,null,null,null,null,null,null,null,null,null,null,null,null,null,null,null,0,null,null,null,null,null,0,0,0,0,0,0,0,0,0,0,0,0,null,null,null,null,null,null,null,null,null,null,null,null,null,null,0]
[null,null,null,null,null,null,null,null,null,null,null,null,null,null,null,null,null,null,null,null,null,null,null,null,null,null,null,null,null,0,null,null,null,null,null,0,0,0,0,0,0,0,0,0,0,0,0,null,null,null,null,null,null,null,null,null,null,null,null,null,null,0]
[null,null,null,null,null,null,null,null,null,null,null,null,null,null,null,null,null,null,null,null,null,null,null,null,null,null,null,null,null,0,null,null,null,null,null,0,0,0,0,0,0,0,0,0,0,0,0,null,null,null,null,null,null,null,null,null,null,null,null,null,null,0]
[null,null,null,null,null,null,null,null,null,null,null,null,null,null,null,null,null,null,null,null,null,null,null,null,null,null,null,null,null,0,null,null,null,null,null,0,0,0,0,0,0,0,0,0,0,0,0,null,null,null,null,null,null,null,null,null,null,null,null,null,null,0]
[null,null,null,null,null,null,null,null,null,null,null,null,null,null,null,null,null,null,null,null,null,null,null,null,null,null,null,null,null,0,null,null,null,null,null,0,0,0,0,0,0,0,0,0,0,0,0,null,null,null,null,null,null,null,null,null,null,null,null,null,null,0]
[null,null,null,null,null,null,null,null,null,null,null,null,null,null,null,null,null,null,null,null,null,null,null,null,null,null,null,null,null,0,null,null,null,null,null,0,0,0,0,0,0,0,0,0,0,0,0,null,null,null,null,null,null,null,null,null,null,null,null,null,null,0]
[null,null,null,null,null,null,null,null,null,null,null,null,null,null,null,null,null,null,null,null,null,null,null,null,null,null,null,null,null,0,null,null,null,null,null,0,0,0,0,0,0,0,0,0,0,0,0,null,null,null,null,null,null,null,null,null,null,null,null,null,null,0]
[null,null,null,null,null,null,null,null,null,null,null,null,null,null,null,null,null,null,null,null,null,null,null,null,null,null,null,null,null,0,null,null,null,null,null,0,0,0,0,0,0,0,0,0,0,0,0,null,null,null,null,null,null,null,null,null,null,null,null,null,null,0]
[null,null,null,null,null,null,null,null,null,null,null,null,null,null,null,null,null,null,null,null,null,null,null,null,null,null,null,null,null,0,null,null,null,null,null,0,0,0,0,0,0,0,0,0,0,0,0,null,null,null,null,null,null,null,null,null,null,null,null,null,null,0]
[null,null,null,null,null,null,null,null,null,null,null,null,null,null,null,null,null,null,null,null,null,null,null,null,null,null,null,null,null,0,null,null,null,null,null,0,0,0,0,0,0,0,0,0,0,0,0,null,null,null,null,null,null,null,null,null,null,null,null,null,null,0]
[null,null,null,null,null,null,null,null,null,null,null,null,null,null,null,null,null,null,null,null,null,null,null,null,null,null,null,null,null,0,null,null,null,null,null,0,0,0,0,0,0,0,0,0,0,0,0,null,null,null,null,null,null,null,null,null,null,null,null,null,null,0]
[null,null,null,null,null,null,null,null,null,null,null,null,null,null,null,null,null,null,null,null,null,null,null,null,null,null,null,null,null,0,null,null,null,null,null,0,0,0,{"$f":"IF($M261=\"Annual\",AM$13*$O261,0)","v":0},0,0,0,0,0,0,0,0,null,null,null,null,null,null,null,null,null,null,null,null,null,null,0]
[null,null,null,null,null,null,null,null,null,null,null,null,null,null,null,null,null,null,null,null,null,null,null,null,null,null,null,null,null,0,null,null,null,null,null,0,0,0,0,0,0,0,0,0,0,0,0,null,null,null,null,null,null,null,null,null,null,null,null,null,null,0]
[null,null,null,null,null,null,null,null,null,null,null,null,null,null,null,null,null,null,null,null,null,null,null,null,null,null,null,null,null,0,null,null,null,null,null,0,0,0,0,0,0,0,0,0,0,0,0,null,null,null,null,null,null,null,null,null,null,null,null,null,null,0]
[null,null,null,null,null,null,null,null,null,null,null,null,null,null,null,null,null,null,null,null,null,null,null,null,null,null,null,null,null,0,null,null,null,null,null,0,0,0,0,0,0,0,0,0,0,0,0,null,null,null,null,null,null,null,null,null,null,null,null,null,null,0]
[null,null,null,null,null,null,null,null,null,null,null,null,null,null,null,null,null,null,null,null,null,null,null,null,null,null,null,null,null,0,null,null,null,null,null,0,0,0,0,0,0,0,0,0,0,0,0,null,null,null,null,null,null,null,null,null,null,null,null,null,null,0]
[null,null,null,null,null,null,null,null,null,null,null,null,null,null,null,null,null,null,null,null,null,null,null,null,null,null,null,null,null,0,null,null,null,null,null,0,0,0,0,0,0,0,0,0,0,0,0,null,null,null,null,null,null,null,null,null,null,null,null,null,null,0]
[null,null,null,null,null,null,null,null,null,null,null,null,null,null,null,null,null,null,null,null,null,null,null,null,null,null,null,null,null,0,null,null,null,null,null,0,0,0,0,0,0,0,0,0,0,0,0,null,null,null,null,null,null,null,null,null,null,null,null,null,null,0]
[null,null,null,null,null,null,null,null,null,null,null,null,null,null,null,null,null,null,null,null,null,null,null,null,null,null,null,null,null,0,null,null,null,null,null,0,0,0,0,0,0,0,0,0,0,0,0,null,null,null,null,null,null,null,null,null,null,null,null,null,null,0]
[null,null,null,null,null,null,null,null,null,null,null,null,null,null,null,null,null,null,null,null,null,null,null,null,null,null,null,null,null,0,null,null,null,null,null,0,0,0,0,0,0,0,0,0,0,0,0,null,null,null,null,null,null,null,null,null,null,null,null,null,null,0]
[null,null,null,null,null,null,null,null,null,null,null,null,null,null,null,null,null,null,null,null,null,null,null,null,null,null,null,null,null,0,null,null,null,null,null,0,0,0,0,0,0,0,0,0,0,0,0,null,null,null,null,null,null,null,null,null,null,null,null,null,null,0]
[null,null,null,null,null,null,null,null,null,null,null,null,null,null,null,null,null,null,null,null,null,null,null,null,null,null,null,null,null,0,null,null,null,null,null,0,0,0,0,0,0,0,0,0,0,0,0,null,null,null,null,null,null,null,null,null,null,null,null,null,null,0]
[null,null,null,null,null,null,null,null,null,null,null,null,null,null,null,null,null,null,null,null,null,null,null,null,null,null,null,null,null,0,null,null,null,null,null,0,0,0,0,0,0,0,0,0,0,0,0,null,null,null,null,null,null,null,null,null,null,null,null,null,null,0]
[null,null,null,null,null,null,null,null,null,null,null,null,null,null,null,null,null,null,null,null,null,null,null,null,null,null,null,null,null,0,null,null,null,null,null,0,0,0,0,0,0,0,0,0,0,0,0,null,null,null,null,null,null,null,null,null,null,null,null,null,null,0]
[null,null,null,null,null,null,null,null,null,null,null,null,null,null,null,null,null,null,null,null,null,null,null,null,null,null,null,null,null,0,null,null,null,null,null,0,0,0,0,0,0,0,0,0,0,0,0,null,null,null,null,null,null,null,null,null,null,null,null,null,null,0]
[null,null,null,null,null,null,null,null,null,null,null,null,null,null,null,null,null,null,null,null,null,null,null,null,null,null,null,null,null,0,null,null,null,null,null,0,0,0,0,0,0,0,0,0,0,0,0,null,null,null,null,null,null,null,null,null,null,null,null,null,null,0]
[null,null,null,null,null,null,null,null,null,null,null,null,null,null,null,null,null,null,null,null,null,null,null,null,null,null,null,null,null,0,null,null,null,null,null,0,0,0,0,0,0,0,0,0,0,0,0,null,null,null,null,null,null,null,null,null,null,null,null,null,null,0]
[null,null,null,null,null,null,null,null,null,null,null,null,null,null,null,null,null,null,null,null,null,null,null,null,null,null,null,null,null,0,null,null,null,null,null,0,0,0,0,0,0,0,0,0,0,0,0,null,null,null,null,null,null,null,null,null,null,null,null,null,null,0]
[null,null,null,null,null,null,null,null,null,null,null,null,null,null,null,null,null,null,null,null,null,null,null,null,null,null,null,null,null,0,null,null,null,null,null,0,0,0,0,0,0,0,0,0,0,0,0,null,null,null,null,null,null,null,null,null,null,null,null,null,null,0]
[null,null,null,null,null,null,null,null,null,null,null,null,null,null,null,null,null,null,null,null,null,null,null,null,null,null,null,null,null,0,null,null,null,null,null,0,0,0,0,0,0,0,0,0,0,0,0,null,null,null,null,null,null,null,null,null,null,null,null,null,null,0]
[null,null,null,null,null,null,null,null,null,null,null,null,null,null,null,null,null,null,null,null,null,null,null,null,null,null,null,null,null,0,null,null,null,null,null,0,0,0,0,0,0,0,0,0,0,0,0,null,null,null,null,null,null,null,null,null,null,null,null,null,null,0]
[null,null,null,null,null,null,null,null,null,null,null,null,null,null,null,null,null,null,null,null,null,null,null,null,null,null,null,null,null,0,null,null,null,null,null,0,0,0,0,0,0,0,0,0,0,0,0,null,null,null,null,null,null,null,null,null,null,null,null,null,null,0]
[null,null,null,null,null,null,null,null,null,null,null,null,null,null,null,null,null,null,null,null,null,null,null,null,null,null,null,null,null,0,null,null,null,null,null,0,0,0,0,0,0,{"$f":"IF($M282=\"Annual\",AP$13*$O282,0)","v":0},0,0,0,0,0,null,null,null,null,null,null,null,null,null,null,null,null,null,null,0]
[null,null,null,null,null,null,null,null,null,null,null,null,null,null,null,null,null,null,null,null,null,null,null,null,null,null,null,null,null,0,null,null,null,null,null,0,0,0,0,0,0,0,0,0,0,0,0,null,null,null,null,null,null,null,null,null,null,null,null,null,null,0]
[null,null,null,null,null,null,null,null,null,null,null,null,null,null,null,null,null,null,null,null,null,null,null,null,null,null,null,null,null,0,null,null,null,null,null,0,0,0,0,0,0,0,0,0,0,0,0,null,null,null,null,null,null,null,null,null,null,null,null,null,null,0]
[null,null,null,null,null,null,null,null,null,null,null,null,null,null,null,null,null,null,null,null,null,null,null,null,null,null,null,null,null,0,null,null,null,null,null,0,0,0,0,0,0,0,0,0,0,0,0,null,null,null,null,null,null,null,null,null,null,null,null,null,null,0]
[null,null,null,null,null,null,null,null,null,null,null,null,null,null,null,null,null,null,null,null,null,null,null,null,null,null,null,null,null,0,null,null,null,null,null,0,0,0,0,0,0,0,0,0,0,0,0,null,null,null,null,null,null,null,null,null,null,null,null,null,null,0]
[]
[]
[]
[]
[]
[]
[]
[]
[]
[]
[]
[]
[]
[]
[]
[]
[]
[]
[]
[]
[]
[]
[]
[]
[]
[]
[null,null,null,null,"Existing",null,"Connected",null,"Metered"]
[null,null,null,null,"Under construction",null,"Joining",null,"Estimated"]
[null,null,null,null,"Planned"]

{"sheet":"Energy Centre(s) (EC1)","index":4,"n_rows":379,"n_cols":19,"rows_kept":379,"cut":false,"hidden":false,"merged":[]}
[{"$f":"Instructions!A29","v":"Workbook Format 2.00.9 - 18.7.22"},null,null,2,3,4,5,6,7,8,9,10,11,12,13]
["Note: Only enter data in cells with a yellow background. Cells with a blue background contain pre-set calculations."]
["Heat generator type","Number of",null,null,"Long term factors (f left blank, calculated values will be used)"]
["CHP",0,null,null,"Long-term average emissions factor",null,null,null,null,null,"kg CO2 per kWh of heat supplied to Network (ie before any distribution losses)"]
["Heat Pump",0,null,null,"Long-term average primary energy factor",null,null,null,null,null,"kWh of Primary Energy per kWh of heat supplied to Network (ie before any distribution losses)"]
["Heat Recovered without Heat Pump",0,null,null,"Weighted Average Heat Price from EC",null,null,null,null,null,"p/kWh"]
["Boiler Plant",0,null,null,"Pump electricity factor",null,null,null,null,null,"kWh of puming electricity per kWh of heat supplied to buildings (ie before secondary losses)"]
[null,null,null,null,"NB if the long term factors are used above then the long term primary distribution loss factor on the Heat supplied tab must be also be entered"]
["Note: up to 5 of each type of heat generators are allowed. If more than 5 are present then combine into single cells as appropriate."]
[]
["Year to which data relates",null,null,{"$f":"'Heat supplied (EC1)'!M6","v":0}]
[]
["Primary Distribution loss factor",null,null,{"$f":"D16/'Heat supplied (EC1)'!Q10","v":{"$error":"#DIV/0!"}},{"$f":"E16/'Heat supplied (EC1)'!R10","v":{"$error":"#DIV/0!"}},{"$f":"F16/'Heat supplied (EC1)'!S10","v":{"$error":"#DIV/0!"}},{"$f":"G16/'Heat supplied (EC1)'!T10","v":{"$error":"#DIV/0!"}},{"$f":"H16/'Heat supplied (EC1)'!U10","v":{"$error":"#DIV/0!"}},{"$f":"I16/'Heat supplied (EC1)'!V10","v":{"$error":"#DIV/0!"}},{"$f":"J16/'Heat supplied (EC1)'!W10","v":{"$error":"#DIV/0!"}},{"$f":"K16/'Heat supplied (EC1)'!X10","v":{"$error":"#DIV/0!"}},{"$f":"L16/'Heat supplied (EC1)'!Y10","v":{"$error":"#DIV/0!"}},{"$f":"M16/'Heat supplied (EC1)'!Z10","v":{"$error":"#DIV/0!"}},{"$f":"N16/'Heat supplied (EC1)'!AA10","v":{"$error":"#DIV/0!"}},{"$f":"O16/'Heat supplied (EC1)'!AB10","v":{"$error":"#DIV/0!"}},null,{"$f":"Q16/'Heat supplied (EC1)'!AD10","v":{"$error":"#DIV/0!"}}]
[]
[null,null,null,"Jan (MWh)","Feb (MWh)","Mar (MWh)","Apr (MWh)","May (MWh)","Jun (MWh)","Jul (MWh)","Aug (MWh)","Sep (MWh)","Oct (MWh)","Nov (MWh)","Dec (MWh)",null,"TOTAL"]
["TOTAL heat supplied to network",null,null,{"$f":"D45+D63+D81+D99+D117+D133+D145+D157+D169+D181+D193+D203+D213+D223+D233+D243+D255+D267+D279+D291","v":0},0,0,0,0,0,0,0,0,0,0,0,null,{"$f":"Q45+Q63+Q81+Q99+Q117+Q133+Q145+Q157+Q169+Q181+Q193+Q203+Q213+Q223+Q233+Q243+Q255+Q267+Q279+Q291","v":0}]
[]
["Fraction of heat from CHP 1",null,null,{"$f":"D45/D$16","v":{"$error":"#DIV/0!"}},{"$error":"#DIV/0!"},{"$error":"#DIV/0!"},{"$error":"#DIV/0!"},{"$error":"#DIV/0!"},{"$error":"#DIV/0!"},{"$error":"#DIV/0!"},{"$error":"#DIV/0!"},{"$error":"#DIV/0!"},{"$error":"#DIV/0!"},{"$error":"#DIV/0!"},{"$error":"#DIV/0!"},null,{"$f":"Q45/Q$16","v":{"$error":"#DIV/0!"}},"Box 303a"]
["Fraction of heat from CHP 2",null,null,{"$f":"D63/D$16","v":{"$error":"#DIV/0!"}},{"$error":"#DIV/0!"},{"$error":"#DIV/0!"},{"$error":"#DIV/0!"},{"$error":"#DIV/0!"},{"$error":"#DIV/0!"},{"$error":"#DIV/0!"},{"$error":"#DIV/0!"},{"$error":"#DIV/0!"},{"$error":"#DIV/0!"},{"$error":"#DIV/0!"},{"$error":"#DIV/0!"},null,{"$f":"Q63/Q$16","v":{"$error":"#DIV/0!"}},"Box 303b"]
["Fraction of heat from CHP 3",null,null,{"$f":"D81/D$16","v":{"$error":"#DIV/0!"}},{"$error":"#DIV/0!"},{"$error":"#DIV/0!"},{"$error":"#DIV/0!"},{"$error":"#DIV/0!"},{"$error":"#DIV/0!"},{"$error":"#DIV/0!"},{"$error":"#DIV/0!"},{"$error":"#DIV/0!"},{"$error":"#DIV/0!"},{"$error":"#DIV/0!"},{"$error":"#DIV/0!"},null,{"$f":"Q81/Q$16","v":{"$error":"#DIV/0!"}},"Box 303c"]
["Fraction of heat from CHP 4",null,null,{"$f":"D99/D$16","v":{"$error":"#DIV/0!"}},{"$error":"#DIV/0!"},{"$error":"#DIV/0!"},{"$error":"#DIV/0!"},{"$error":"#DIV/0!"},{"$error":"#DIV/0!"},{"$error":"#DIV/0!"},{"$error":"#DIV/0!"},{"$error":"#DIV/0!"},{"$error":"#DIV/0!"},{"$error":"#DIV/0!"},{"$error":"#DIV/0!"},null,{"$f":"Q99/Q$16","v":{"$error":"#DIV/0!"}},"Box 303d"]
["Fraction of heat from CHP 5",null,null,{"$f":"D117/D$16","v":{"$error":"#DIV/0!"}},{"$error":"#DIV/0!"},{"$error":"#DIV/0!"},{"$error":"#DIV/0!"},{"$error":"#DIV/0!"},{"$error":"#DIV/0!"},{"$error":"#DIV/0!"},{"$error":"#DIV/0!"},{"$error":"#DIV/0!"},{"$error":"#DIV/0!"},{"$error":"#DIV/0!"},{"$error":"#DIV/0!"},null,{"$f":"Q117/Q$16","v":{"$error":"#DIV/0!"}}]
["Fraction of heat from Heat Pump 1",null,null,{"$f":"D133/D$16","v":{"$error":"#DIV/0!"}},{"$error":"#DIV/0!"},{"$error":"#DIV/0!"},{"$error":"#DIV/0!"},{"$error":"#DIV/0!"},{"$error":"#DIV/0!"},{"$error":"#DIV/0!"},{"$error":"#DIV/0!"},{"$error":"#DIV/0!"},{"$error":"#DIV/0!"},{"$error":"#DIV/0!"},{"$error":"#DIV/0!"},null,{"$f":"Q133/Q$16","v":{"$error":"#DIV/0!"}}]
["Fraction of heat from Heat Pump 2",null,null,{"$f":"D145/D$16","v":{"$error":"#DIV/0!"}},{"$error":"#DIV/0!"},{"$error":"#DIV/0!"},{"$error":"#DIV/0!"},{"$error":"#DIV/0!"},{"$error":"#DIV/0!"},{"$error":"#DIV/0!"},{"$error":"#DIV/0!"},{"$error":"#DIV/0!"},{"$error":"#DIV/0!"},{"$error":"#DIV/0!"},{"$error":"#DIV/0!"},null,{"$f":"Q145/Q$16","v":{"$error":"#DIV/0!"}}]
["Fraction of heat from Heat Pump 3",null,null,{"$f":"D157/D$16","v":{"$error":"#DIV/0!"}},{"$error":"#DIV/0!"},{"$error":"#DIV/0!"},{"$error":"#DIV/0!"},{"$error":"#DIV/0!"},{"$error":"#DIV/0!"},{"$error":"#DIV/0!"},{"$error":"#DIV/0!"},{"$error":"#DIV/0!"},{"$error":"#DIV/0!"},{"$error":"#DIV/0!"},{"$error":"#DIV/0!"},null,{"$f":"Q157/Q$16","v":{"$error":"#DIV/0!"}}]
["Fraction of heat from Heat Pump 4",null,null,{"$f":"D169/D$16","v":{"$error":"#DIV/0!"}},{"$error":"#DIV/0!"},{"$error":"#DIV/0!"},{"$error":"#DIV/0!"},{"$error":"#DIV/0!"},{"$error":"#DIV/0!"},{"$error":"#DIV/0!"},{"$error":"#DIV/0!"},{"$error":"#DIV/0!"},{"$error":"#DIV/0!"},{"$error":"#DIV/0!"},{"$error":"#DIV/0!"},null,{"$f":"Q169/Q$16","v":{"$error":"#DIV/0!"}}]
["Fraction of heat from Heat Pump 5",null,null,{"$f":"D181/D$16","v":{"$error":"#DIV/0!"}},{"$error":"#DIV/0!"},{"$error":"#DIV/0!"},{"$error":"#DIV/0!"},{"$error":"#DIV/0!"},{"$error":"#DIV/0!"},{"$error":"#DIV/0!"},{"$error":"#DIV/0!"},{"$error":"#DIV/0!"},{"$error":"#DIV/0!"},{"$error":"#DIV/0!"},{"$error":"#DIV/0!"},null,{"$f":"Q181/Q$16","v":{"$error":"#DIV/0!"}}]
["Fraction of heat from Heat Recovery 1",null,null,{"$f":"D193/D$16","v":{"$error":"#DIV/0!"}},{"$error":"#DIV/0!"},{"$error":"#DIV/0!"},{"$error":"#DIV/0!"},{"$error":"#DIV/0!"},{"$error":"#DIV/0!"},{"$error":"#DIV/0!"},{"$error":"#DIV/0!"},{"$error":"#DIV/0!"},{"$error":"#DIV/0!"},{"$error":"#DIV/0!"},{"$error":"#DIV/0!"},null,{"$f":"Q193/Q$16","v":{"$error":"#DIV/0!"}}]
["Fraction of heat from Heat Recovery 2",null,null,{"$f":"D203/D$16","v":{"$error":"#DIV/0!"}},{"$error":"#DIV/0!"},{"$error":"#DIV/0!"},{"$error":"#DIV/0!"},{"$error":"#DIV/0!"},{"$error":"#DIV/0!"},{"$error":"#DIV/0!"},{"$error":"#DIV/0!"},{"$error":"#DIV/0!"},{"$error":"#DIV/0!"},{"$error":"#DIV/0!"},{"$error":"#DIV/0!"},null,{"$f":"Q203/Q$16","v":{"$error":"#DIV/0!"}}]
["Fraction of heat from Heat Recovery 3",null,null,{"$f":"D213/D$16","v":{"$error":"#DIV/0!"}},{"$error":"#DIV/0!"},{"$error":"#DIV/0!"},{"$error":"#DIV/0!"},{"$error":"#DIV/0!"},{"$error":"#DIV/0!"},{"$error":"#DIV/0!"},{"$error":"#DIV/0!"},{"$error":"#DIV/0!"},{"$error":"#DIV/0!"},{"$error":"#DIV/0!"},{"$error":"#DIV/0!"},null,{"$f":"Q213/Q$16","v":{"$error":"#DIV/0!"}}]
["Fraction of heat from Heat Recovery 4",null,null,{"$f":"D223/D$16","v":{"$error":"#DIV/0!"}},{"$error":"#DIV/0!"},{"$error":"#DIV/0!"},{"$error":"#DIV/0!"},{"$error":"#DIV/0!"},{"$error":"#DIV/0!"},{"$error":"#DIV/0!"},{"$error":"#DIV/0!"},{"$error":"#DIV/0!"},{"$error":"#DIV/0!"},{"$error":"#DIV/0!"},{"$error":"#DIV/0!"},null,{"$f":"Q223/Q$16","v":{"$error":"#DIV/0!"}}]
["Fraction of heat from Heat Recovery 5",null,null,{"$f":"D233/D$16","v":{"$error":"#DIV/0!"}},{"$error":"#DIV/0!"},{"$error":"#DIV/0!"},{"$error":"#DIV/0!"},{"$error":"#DIV/0!"},{"$error":"#DIV/0!"},{"$error":"#DIV/0!"},{"$error":"#DIV/0!"},{"$error":"#DIV/0!"},{"$error":"#DIV/0!"},{"$error":"#DIV/0!"},{"$error":"#DIV/0!"},null,{"$f":"Q233/Q$16","v":{"$error":"#DIV/0!"}}]
["Fraction of heat from Boiler Plant 1",null,null,{"$f":"D243/D$16","v":{"$error":"#DIV/0!"}},{"$error":"#DIV/0!"},{"$error":"#DIV/0!"},{"$error":"#DIV/0!"},{"$error":"#DIV/0!"},{"$error":"#DIV/0!"},{"$error":"#DIV/0!"},{"$error":"#DIV/0!"},{"$error":"#DIV/0!"},{"$error":"#DIV/0!"},{"$error":"#DIV/0!"},{"$error":"#DIV/0!"},null,{"$f":"Q243/Q$16","v":{"$error":"#DIV/0!"}}]
["Fraction of heat from Boiler Plant 2",null,null,{"$f":"D255/D$16","v":{"$error":"#DIV/0!"}},{"$error":"#DIV/0!"},{"$error":"#DIV/0!"},{"$error":"#DIV/0!"},{"$error":"#DIV/0!"},{"$error":"#DIV/0!"},{"$error":"#DIV/0!"},{"$error":"#DIV/0!"},{"$error":"#DIV/0!"},{"$error":"#DIV/0!"},{"$error":"#DIV/0!"},{"$error":"#DIV/0!"},null,{"$f":"Q255/Q$16","v":{"$error":"#DIV/0!"}}]
["Fraction of heat from Boiler Plant 3",null,null,{"$f":"D267/D$16","v":{"$error":"#DIV/0!"}},{"$error":"#DIV/0!"},{"$error":"#DIV/0!"},{"$error":"#DIV/0!"},{"$error":"#DIV/0!"},{"$error":"#DIV/0!"},{"$error":"#DIV/0!"},{"$error":"#DIV/0!"},{"$error":"#DIV/0!"},{"$error":"#DIV/0!"},{"$error":"#DIV/0!"},{"$error":"#DIV/0!"},null,{"$f":"Q267/Q$16","v":{"$error":"#DIV/0!"}}]
["Fraction of heat from Boiler Plant 4",null,null,{"$f":"D279/D$16","v":{"$error":"#DIV/0!"}},{"$error":"#DIV/0!"},{"$error":"#DIV/0!"},{"$error":"#DIV/0!"},{"$error":"#DIV/0!"},{"$error":"#DIV/0!"},{"$error":"#DIV/0!"},{"$error":"#DIV/0!"},{"$error":"#DIV/0!"},{"$error":"#DIV/0!"},{"$error":"#DIV/0!"},{"$error":"#DIV/0!"},null,{"$f":"Q279/Q$16","v":{"$error":"#DIV/0!"}}]
["Fraction of heat from Boiler Plant 5",null,null,{"$f":"D291/D$16","v":{"$error":"#DIV/0!"}},{"$error":"#DIV/0!"},{"$error":"#DIV/0!"},{"$error":"#DIV/0!"},{"$error":"#DIV/0!"},{"$error":"#DIV/0!"},{"$error":"#DIV/0!"},{"$error":"#DIV/0!"},{"$error":"#DIV/0!"},{"$error":"#DIV/0!"},{"$error":"#DIV/0!"},{"$error":"#DIV/0!"},null,{"$f":"Q291/Q$16","v":{"$error":"#DIV/0!"}},"Box 303e"]
[]
["CHP 1"]
["Type of fuel used by CHP","Mains gas"]
["Installation Date","2015-01-01"]
["Operational Mode","Flexible Operation"]
[]
[null,"Data type",null,"Jan","Feb","Mar","Apr","May","Jun","Jul","Aug","Sep","Oct","Nov","Dec",null,"TOTAL",null,"Notes"]
["Heat supplied to network from CHP 1 (MWh)",null,null,null,null,null,null,null,null,null,null,null,null,null,null,null,{"$f":"SUM(D45:O45)","v":0}]
["Electricity generated by CHP 1 (MWh)",null,null,null,null,null,null,null,null,null,null,null,null,null,null,null,{"$f":"SUM(D46:O46)","v":0}]
["Fuel used by CHP 1 (MWh)",null,null,null,null,null,null,null,null,null,null,null,null,null,null,null,{"$f":"SUM(D47:O47)","v":0}]
["Power Efficiency",null,null,{"$f":"(D46/D47)*100","v":{"$error":"#DIV/0!"}},{"$error":"#DIV/0!"},{"$error":"#DIV/0!"},{"$error":"#DIV/0!"},{"$error":"#DIV/0!"},{"$error":"#DIV/0!"},{"$error":"#DIV/0!"},{"$error":"#DIV/0!"},{"$error":"#DIV/0!"},{"$error":"#DIV/0!"},{"$error":"#DIV/0!"},{"$error":"#DIV/0!"},null,{"$f":"(Q46/Q47)","v":{"$error":"#DIV/0!"}},"Box 361"]
["Heat efficiency",null,null,{"$f":"(D45/D47)*100","v":{"$error":"#DIV/0!"}},{"$error":"#DIV/0!"},{"$error":"#DIV/0!"},{"$error":"#DIV/0!"},{"$error":"#DIV/0!"},{"$error":"#DIV/0!"},{"$error":"#DIV/0!"},{"$error":"#DIV/0!"},{"$error":"#DIV/0!"},{"$error":"#DIV/0!"},{"$error":"#DIV/0!"},{"$error":"#DIV/0!"},null,{"$f":"(Q45/Q47)","v":{"$error":"#DIV/0!"}},"Box 362"]
["Fuel emissions factor",null,null,{"$f":"VLOOKUP($B$40,FuelCO2Factors,2)","v":0.21},{"$f":"VLOOKUP($B$40,FuelCO2Factors,3)","v":0.21},{"$f":"VLOOKUP($B$40,FuelCO2Factors,4)","v":0.21},{"$f":"VLOOKUP($B$40,FuelCO2Factors,5)","v":0.21},{"$f":"VLOOKUP($B$40,FuelCO2Factors,6)","v":0.21},{"$f":"VLOOKUP($B$40,FuelCO2Factors,7)","v":0.21},{"$f":"VLOOKUP($B$40,FuelCO2Factors,8)","v":0.21},{"$f":"VLOOKUP($B$40,FuelCO2Factors,9)","v":0.21},{"$f":"VLOOKUP($B$40,FuelCO2Factors,10)","v":0.21},{"$f":"VLOOKUP($B$40,FuelCO2Factors,11)","v":0.21},{"$f":"VLOOKUP($B$40,FuelCO2Factors,12)","v":0.21},{"$f":"VLOOKUP($B$40,FuelCO2Factors,13)","v":0.21}]
["Electricity generated emissions factor",null,null,{"$f":"IF($B$41>Lookups!$C$1,(VLOOKUP($B$42,NewCHPfactors,D$1)),IF($B$41<Lookups!$C$2,(VLOOKUP($B$42,ExistingOldCHPFactors,D$1)),(VLOOKUP($B$42,ExistingCHPfactors,D$1))))","v":0.42},{"$f":"IF($B$41>Lookups!$C$1,(VLOOKUP($B$42,NewCHPfactors,E$1)),IF($B$41<Lookups!$C$2,(VLOOKUP($B$42,ExistingOldCHPFactors,E$1)),(VLOOKUP($B$42,ExistingCHPfactors,E$1))))","v":0.42},{"$f":"IF($B$41>Lookups!$C$1,(VLOOKUP($B$42,NewCHPfactors,F$1)),IF($B$41<Lookups!$C$2,(VLOOKUP($B$42,ExistingOldCHPFactors,F$1)),(VLOOKUP($B$42,ExistingCHPfactors,F$1))))","v":0.42},{"$f":"IF($B$41>Lookups!$C$1,(VLOOKUP($B$42,NewCHPfactors,G$1)),IF($B$41<Lookups!$C$2,(VLOOKUP($B$42,ExistingOldCHPFactors,G$1)),(VLOOKUP($B$42,ExistingCHPfactors,G$1))))","v":0.42},{"$f":"IF($B$41>Lookups!$C$1,(VLOOKUP($B$42,NewCHPfactors,H$1)),IF($B$41<Lookups!$C$2,(VLOOKUP($B$42,ExistingOldCHPFactors,H$1)),(VLOOKUP($B$42,ExistingCHPfactors,H$1))))","v":0.42},{"$f":"IF($B$41>Lookups!$C$1,(VLOOKUP($B$42,NewCHPfactors,I$1)),IF($B$41<Lookups!$C$2,(VLOOKUP($B$42,ExistingOldCHPFactors,I$1)),(VLOOKUP($B$42,ExistingCHPfactors,I$1))))","v":0.42},{"$f":"IF($B$41>Lookups!$C$1,(VLOOKUP($B$42,NewCHPfactors,J$1)),IF($B$41<Lookups!$C$2,(VLOOKUP($B$42,ExistingOldCHPFactors,J$1)),(VLOOKUP($B$42,ExistingCHPfactors,J$1))))","v":0.42},{"$f":"IF($B$41>Lookups!$C$1,(VLOOKUP($B$42,NewCHPfactors,K$1)),IF($B$41<Lookups!$C$2,(VLOOKUP($B$42,ExistingOldCHPFactors,K$1)),(VLOOKUP($B$42,ExistingCHPfactors,K$1))))","v":0.42},{"$f":"IF($B$41>Lookups!$C$1,(VLOOKUP($B$42,NewCHPfactors,L$1)),IF($B$41<Lookups!$C$2,(VLOOKUP($B$42,ExistingOldCHPFactors,L$1)),(VLOOKUP($B$42,ExistingCHPfactors,L$1))))","v":0.42},{"$f":"IF($B$41>Lookups!$C$1,(VLOOKUP($B$42,NewCHPfactors,M$1)),IF($B$41<Lookups!$C$2,(VLOOKUP($B$42,ExistingOldCHPFactors,M$1)),(VLOOKUP($B$42,ExistingCHPfactors,M$1))))","v":0.42},{"$f":"IF($B$41>Lookups!$C$1,(VLOOKUP($B$42,NewCHPfactors,N$1)),IF($B$41<Lookups!$C$2,(VLOOKUP($B$42,ExistingOldCHPFactors,N$1)),(VLOOKUP($B$42,ExistingCHPfactors,N$1))))","v":0.42},{"$f":"IF($B$41>Lookups!$C$1,(VLOOKUP($B$42,NewCHPfactors,O$1)),IF($B$41<Lookups!$C$2,(VLOOKUP($B$42,ExistingOldCHPFactors,O$1)),(VLOOKUP($B$42,ExistingCHPfactors,O$1))))","v":0.42}]
["Fuel Primary Energy Factor",null,null,{"$f":"VLOOKUP($B$40,FuelPEFactors,2)","v":1.1299999999999999},{"$f":"VLOOKUP($B$40,FuelPEFactors,3)","v":1.1299999999999999},{"$f":"VLOOKUP($B$40,FuelPEFactors,4)","v":1.1299999999999999},{"$f":"VLOOKUP($B$40,FuelPEFactors,5)","v":1.1299999999999999},{"$f":"VLOOKUP($B$40,FuelPEFactors,6)","v":1.1299999999999999},{"$f":"VLOOKUP($B$40,FuelPEFactors,7)","v":1.1299999999999999},{"$f":"VLOOKUP($B$40,FuelPEFactors,8)","v":1.1299999999999999},{"$f":"VLOOKUP($B$40,FuelPEFactors,9)","v":1.1299999999999999},{"$f":"VLOOKUP($B$40,FuelPEFactors,10)","v":1.1299999999999999},{"$f":"VLOOKUP($B$40,FuelPEFactors,11)","v":1.1299999999999999},{"$f":"VLOOKUP($B$40,FuelPEFactors,12)","v":1.1299999999999999},{"$f":"VLOOKUP($B$40,FuelPEFactors,13)","v":1.1299999999999999}]
["Electricity Generated Primary energy factor",null,null,{"$f":"IF($B$41>Lookups!$C$1,(VLOOKUP($B$42,NewCHPPEFactors,D$1)),IF($B$41<Lookups!$C$2,(VLOOKUP($B$42,ExistingOldCHPPEFactors,D$1)),(VLOOKUP($B$42,ExistingCHPPEfactors,D$1))))","v":2.3690000000000002},{"$f":"IF($B$41>Lookups!$C$1,(VLOOKUP($B$42,NewCHPPEFactors,E$1)),IF($B$41<Lookups!$C$2,(VLOOKUP($B$42,ExistingOldCHPPEFactors,E$1)),(VLOOKUP($B$42,ExistingCHPPEfactors,E$1))))","v":2.3690000000000002},{"$f":"IF($B$41>Lookups!$C$1,(VLOOKUP($B$42,NewCHPPEFactors,F$1)),IF($B$41<Lookups!$C$2,(VLOOKUP($B$42,ExistingOldCHPPEFactors,F$1)),(VLOOKUP($B$42,ExistingCHPPEfactors,F$1))))","v":2.3690000000000002},{"$f":"IF($B$41>Lookups!$C$1,(VLOOKUP($B$42,NewCHPPEFactors,G$1)),IF($B$41<Lookups!$C$2,(VLOOKUP($B$42,ExistingOldCHPPEFactors,G$1)),(VLOOKUP($B$42,ExistingCHPPEfactors,G$1))))","v":2.3690000000000002},{"$f":"IF($B$41>Lookups!$C$1,(VLOOKUP($B$42,NewCHPPEFactors,H$1)),IF($B$41<Lookups!$C$2,(VLOOKUP($B$42,ExistingOldCHPPEFactors,H$1)),(VLOOKUP($B$42,ExistingCHPPEfactors,H$1))))","v":2.3690000000000002},{"$f":"IF($B$41>Lookups!$C$1,(VLOOKUP($B$42,NewCHPPEFactors,I$1)),IF($B$41<Lookups!$C$2,(VLOOKUP($B$42,ExistingOldCHPPEFactors,I$1)),(VLOOKUP($B$42,ExistingCHPPEfactors,I$1))))","v":2.3690000000000002},{"$f":"IF($B$41>Lookups!$C$1,(VLOOKUP($B$42,NewCHPPEFactors,J$1)),IF($B$41<Lookups!$C$2,(VLOOKUP($B$42,ExistingOldCHPPEFactors,J$1)),(VLOOKUP($B$42,ExistingCHPPEfactors,J$1))))","v":2.3690000000000002},{"$f":"IF($B$41>Lookups!$C$1,(VLOOKUP($B$42,NewCHPPEFactors,K$1)),IF($B$41<Lookups!$C$2,(VLOOKUP($B$42,ExistingOldCHPPEFactors,K$1)),(VLOOKUP($B$42,ExistingCHPPEfactors,K$1))))","v":2.3690000000000002},{"$f":"IF($B$41>Lookups!$C$1,(VLOOKUP($B$42,NewCHPPEFactors,L$1)),IF($B$41<Lookups!$C$2,(VLOOKUP($B$42,ExistingOldCHPPEFactors,L$1)),(VLOOKUP($B$42,ExistingCHPPEfactors,L$1))))","v":2.3690000000000002},{"$f":"IF($B$41>Lookups!$C$1,(VLOOKUP($B$42,NewCHPPEFactors,M$1)),IF($B$41<Lookups!$C$2,(VLOOKUP($B$42,ExistingOldCHPPEFactors,M$1)),(VLOOKUP($B$42,ExistingCHPPEfactors,M$1))))","v":2.3690000000000002},{"$f":"IF($B$41>Lookups!$C$1,(VLOOKUP($B$42,NewCHPPEFactors,N$1)),IF($B$41<Lookups!$C$2,(VLOOKUP($B$42,ExistingOldCHPPEFactors,N$1)),(VLOOKUP($B$42,ExistingCHPPEfactors,N$1))))","v":2.3690000000000002},{"$f":"IF($B$41>Lookups!$C$1,(VLOOKUP($B$42,NewCHPPEFactors,O$1)),IF($B$41<Lookups!$C$2,(VLOOKUP($B$42,ExistingOldCHPPEFactors,O$1)),(VLOOKUP($B$42,ExistingCHPPEfactors,O$1))))","v":2.3690000000000002}]
["CO2 Emissions tonnes",null,null,{"$f":"(D47*D50-D51*D46)","v":0},0,0,0,0,0,0,0,0,0,0,0,null,{"$f":"IFERROR(SUM(D54:O54),0)","v":0},null,{"$f":"SUM(D54:O54)/Q45","v":{"$error":"#DIV/0!"}}]
["Primary Energy MWh",null,null,{"$f":"(D47*D52-D46*D53)","v":0},0,0,0,0,0,0,0,0,0,0,0,null,{"$f":"IFERROR(SUM(D55:O55),0)","v":0},null,{"$f":"SUM(D55:O55)/Q45","v":{"$error":"#DIV/0!"}}]
[]
["CHP 2"]
["Type of fuel used by CHP"]
["Installation Date"]
["Operational Mode"]
[]
[null,"Data type",null,"Jan","Feb","Mar","Apr","May","Jun","Jul","Aug","Sep","Oct","Nov","Dec",null,"TOTAL",null,"Notes"]
["Heat supplied to network from CHP 2 (MWh)",null,null,null,null,null,null,null,null,null,null,null,null,null,null,null,{"$f":"SUM(D63:O63)","v":0}]
["Electricity generated by CHP 2 (MWh)",null,null,null,null,null,null,null,null,null,null,null,null,null,null,null,{"$f":"SUM(D64:O64)","v":0}]
["Fuel used by CHP 2 (MWh)",null,null,null,null,null,null,null,null,null,null,null,null,null,null,null,{"$f":"SUM(D65:O65)","v":0}]
["Power Efficiency",null,null,{"$f":"(D64/D65)*100","v":{"$error":"#DIV/0!"}},{"$error":"#DIV/0!"},{"$error":"#DIV/0!"},{"$error":"#DIV/0!"},{"$error":"#DIV/0!"},{"$error":"#DIV/0!"},{"$error":"#DIV/0!"},{"$error":"#DIV/0!"},{"$error":"#DIV/0!"},{"$error":"#DIV/0!"},{"$error":"#DIV/0!"},{"$error":"#DIV/0!"},null,{"$f":"(Q64/Q65)","v":{"$error":"#DIV/0!"}},"Box 361"]
["Heat efficiency",null,null,{"$f":"(D63/D65)*100","v":{"$error":"#DIV/0!"}},{"$error":"#DIV/0!"},{"$error":"#DIV/0!"},{"$error":"#DIV/0!"},{"$error":"#DIV/0!"},{"$error":"#DIV/0!"},{"$error":"#DIV/0!"},{"$error":"#DIV/0!"},{"$error":"#DIV/0!"},{"$error":"#DIV/0!"},{"$error":"#DIV/0!"},{"$error":"#DIV/0!"},null,{"$f":"(Q63/Q65)","v":{"$error":"#DIV/0!"}},"Box 362"]
["Fuel emissions factor",null,null,{"$f":"VLOOKUP($B$58,FuelCO2Factors,2)","v":{"$error":"#N/A"}},{"$f":"VLOOKUP($B$58,FuelCO2Factors,3)","v":{"$error":"#N/A"}},{"$f":"VLOOKUP($B$58,FuelCO2Factors,4)","v":{"$error":"#N/A"}},{"$f":"VLOOKUP($B$58,FuelCO2Factors,5)","v":{"$error":"#N/A"}},{"$f":"VLOOKUP($B$58,FuelCO2Factors,6)","v":{"$error":"#N/A"}},{"$f":"VLOOKUP($B$58,FuelCO2Factors,7)","v":{"$error":"#N/A"}},{"$f":"VLOOKUP($B$58,FuelCO2Factors,8)","v":{"$error":"#N/A"}},{"$f":"VLOOKUP($B$58,FuelCO2Factors,9)","v":{"$error":"#N/A"}},{"$f":"VLOOKUP($B$58,FuelCO2Factors,10)","v":{"$error":"#N/A"}},{"$f":"VLOOKUP($B$58,FuelCO2Factors,11)","v":{"$error":"#N/A"}},{"$f":"VLOOKUP($B$58,FuelCO2Factors,12)","v":{"$error":"#N/A"}},{"$f":"VLOOKUP($B$58,FuelCO2Factors,13)","v":{"$error":"#N/A"}}]
["Electricity generated emissions factor",null,null,{"$f":"IF($B$59>Lookups!$C$1,(VLOOKUP($B$60,NewCHPfactors,D$1)),IF($B$59<Lookups!$C$2,(VLOOKUP($B$60,ExistingOldCHPFactors,D$1)),(VLOOKUP($B$60,ExistingCHPfactors,D$1))))","v":{"$error":"#N/A"}},{"$f":"IF($B$59>Lookups!$C$1,(VLOOKUP($B$60,NewCHPfactors,E$1)),IF($B$59<Lookups!$C$2,(VLOOKUP($B$60,ExistingOldCHPFactors,E$1)),(VLOOKUP($B$60,ExistingCHPfactors,E$1))))","v":{"$error":"#N/A"}},{"$f":"IF($B$59>Lookups!$C$1,(VLOOKUP($B$60,NewCHPfactors,F$1)),IF($B$59<Lookups!$C$2,(VLOOKUP($B$60,ExistingOldCHPFactors,F$1)),(VLOOKUP($B$60,ExistingCHPfactors,F$1))))","v":{"$error":"#N/A"}},{"$f":"IF($B$59>Lookups!$C$1,(VLOOKUP($B$60,NewCHPfactors,G$1)),IF($B$59<Lookups!$C$2,(VLOOKUP($B$60,ExistingOldCHPFactors,G$1)),(VLOOKUP($B$60,ExistingCHPfactors,G$1))))","v":{"$error":"#N/A"}},{"$f":"IF($B$59>Lookups!$C$1,(VLOOKUP($B$60,NewCHPfactors,H$1)),IF($B$59<Lookups!$C$2,(VLOOKUP($B$60,ExistingOldCHPFactors,H$1)),(VLOOKUP($B$60,ExistingCHPfactors,H$1))))","v":{"$error":"#N/A"}},{"$f":"IF($B$59>Lookups!$C$1,(VLOOKUP($B$60,NewCHPfactors,I$1)),IF($B$59<Lookups!$C$2,(VLOOKUP($B$60,ExistingOldCHPFactors,I$1)),(VLOOKUP($B$60,ExistingCHPfactors,I$1))))","v":{"$error":"#N/A"}},{"$f":"IF($B$59>Lookups!$C$1,(VLOOKUP($B$60,NewCHPfactors,J$1)),IF($B$59<Lookups!$C$2,(VLOOKUP($B$60,ExistingOldCHPFactors,J$1)),(VLOOKUP($B$60,ExistingCHPfactors,J$1))))","v":{"$error":"#N/A"}},{"$f":"IF($B$59>Lookups!$C$1,(VLOOKUP($B$60,NewCHPfactors,K$1)),IF($B$59<Lookups!$C$2,(VLOOKUP($B$60,ExistingOldCHPFactors,K$1)),(VLOOKUP($B$60,ExistingCHPfactors,K$1))))","v":{"$error":"#N/A"}},{"$f":"IF($B$59>Lookups!$C$1,(VLOOKUP($B$60,NewCHPfactors,L$1)),IF($B$59<Lookups!$C$2,(VLOOKUP($B$60,ExistingOldCHPFactors,L$1)),(VLOOKUP($B$60,ExistingCHPfactors,L$1))))","v":{"$error":"#N/A"}},{"$f":"IF($B$59>Lookups!$C$1,(VLOOKUP($B$60,NewCHPfactors,M$1)),IF($B$59<Lookups!$C$2,(VLOOKUP($B$60,ExistingOldCHPFactors,M$1)),(VLOOKUP($B$60,ExistingCHPfactors,M$1))))","v":{"$error":"#N/A"}},{"$f":"IF($B$59>Lookups!$C$1,(VLOOKUP($B$60,NewCHPfactors,N$1)),IF($B$59<Lookups!$C$2,(VLOOKUP($B$60,ExistingOldCHPFactors,N$1)),(VLOOKUP($B$60,ExistingCHPfactors,N$1))))","v":{"$error":"#N/A"}},{"$f":"IF($B$59>Lookups!$C$1,(VLOOKUP($B$60,NewCHPfactors,O$1)),IF($B$59<Lookups!$C$2,(VLOOKUP($B$60,ExistingOldCHPFactors,O$1)),(VLOOKUP($B$60,ExistingCHPfactors,O$1))))","v":{"$error":"#N/A"}}]
["Fuel Primary Energy Factor",null,null,{"$f":"VLOOKUP($B$58,FuelPEFactors,2)","v":{"$error":"#N/A"}},{"$f":"VLOOKUP($B$58,FuelPEFactors,3)","v":{"$error":"#N/A"}},{"$f":"VLOOKUP($B$58,FuelPEFactors,4)","v":{"$error":"#N/A"}},{"$f":"VLOOKUP($B$58,FuelPEFactors,5)","v":{"$error":"#N/A"}},{"$f":"VLOOKUP($B$58,FuelPEFactors,6)","v":{"$error":"#N/A"}},{"$f":"VLOOKUP($B$58,FuelPEFactors,7)","v":{"$error":"#N/A"}},{"$f":"VLOOKUP($B$58,FuelPEFactors,8)","v":{"$error":"#N/A"}},{"$f":"VLOOKUP($B$58,FuelPEFactors,9)","v":{"$error":"#N/A"}},{"$f":"VLOOKUP($B$58,FuelPEFactors,10)","v":{"$error":"#N/A"}},{"$f":"VLOOKUP($B$58,FuelPEFactors,11)","v":{"$error":"#N/A"}},{"$f":"VLOOKUP($B$58,FuelPEFactors,12)","v":{"$error":"#N/A"}},{"$f":"VLOOKUP($B$58,FuelPEFactors,13)","v":{"$error":"#N/A"}}]
["Electricity Generated Primary energy factor",null,null,{"$f":"IF($B$59>Lookups!$C$1,(VLOOKUP($B$60,NewCHPPEFactors,D$1)),IF($B$59<Lookups!$C$2,(VLOOKUP($B$60,ExistingOldCHPPEFactors,D$1)),(VLOOKUP($B$60,ExistingCHPPEfactors,D$1))))","v":{"$error":"#N/A"}},{"$f":"IF($B$59>Lookups!$C$1,(VLOOKUP($B$60,NewCHPPEFactors,E$1)),IF($B$59<Lookups!$C$2,(VLOOKUP($B$60,ExistingOldCHPPEFactors,E$1)),(VLOOKUP($B$60,ExistingCHPPEfactors,E$1))))","v":{"$error":"#N/A"}},{"$f":"IF($B$59>Lookups!$C$1,(VLOOKUP($B$60,NewCHPPEFactors,F$1)),IF($B$59<Lookups!$C$2,(VLOOKUP($B$60,ExistingOldCHPPEFactors,F$1)),(VLOOKUP($B$60,ExistingCHPPEfactors,F$1))))","v":{"$error":"#N/A"}},{"$f":"IF($B$59>Lookups!$C$1,(VLOOKUP($B$60,NewCHPPEFactors,G$1)),IF($B$59<Lookups!$C$2,(VLOOKUP($B$60,ExistingOldCHPPEFactors,G$1)),(VLOOKUP($B$60,ExistingCHPPEfactors,G$1))))","v":{"$error":"#N/A"}},{"$f":"IF($B$59>Lookups!$C$1,(VLOOKUP($B$60,NewCHPPEFactors,H$1)),IF($B$59<Lookups!$C$2,(VLOOKUP($B$60,ExistingOldCHPPEFactors,H$1)),(VLOOKUP($B$60,ExistingCHPPEfactors,H$1))))","v":{"$error":"#N/A"}},{"$f":"IF($B$59>Lookups!$C$1,(VLOOKUP($B$60,NewCHPPEFactors,I$1)),IF($B$59<Lookups!$C$2,(VLOOKUP($B$60,ExistingOldCHPPEFactors,I$1)),(VLOOKUP($B$60,ExistingCHPPEfactors,I$1))))","v":{"$error":"#N/A"}},{"$f":"IF($B$59>Lookups!$C$1,(VLOOKUP($B$60,NewCHPPEFactors,J$1)),IF($B$59<Lookups!$C$2,(VLOOKUP($B$60,ExistingOldCHPPEFactors,J$1)),(VLOOKUP($B$60,ExistingCHPPEfactors,J$1))))","v":{"$error":"#N/A"}},{"$f":"IF($B$59>Lookups!$C$1,(VLOOKUP($B$60,NewCHPPEFactors,K$1)),IF($B$59<Lookups!$C$2,(VLOOKUP($B$60,ExistingOldCHPPEFactors,K$1)),(VLOOKUP($B$60,ExistingCHPPEfactors,K$1))))","v":{"$error":"#N/A"}},{"$f":"IF($B$59>Lookups!$C$1,(VLOOKUP($B$60,NewCHPPEFactors,L$1)),IF($B$59<Lookups!$C$2,(VLOOKUP($B$60,ExistingOldCHPPEFactors,L$1)),(VLOOKUP($B$60,ExistingCHPPEfactors,L$1))))","v":{"$error":"#N/A"}},{"$f":"IF($B$59>Lookups!$C$1,(VLOOKUP($B$60,NewCHPPEFactors,M$1)),IF($B$59<Lookups!$C$2,(VLOOKUP($B$60,ExistingOldCHPPEFactors,M$1)),(VLOOKUP($B$60,ExistingCHPPEfactors,M$1))))","v":{"$error":"#N/A"}},{"$f":"IF($B$59>Lookups!$C$1,(VLOOKUP($B$60,NewCHPPEFactors,N$1)),IF($B$59<Lookups!$C$2,(VLOOKUP($B$60,ExistingOldCHPPEFactors,N$1)),(VLOOKUP($B$60,ExistingCHPPEfactors,N$1))))","v":{"$error":"#N/A"}},{"$f":"IF($B$59>Lookups!$C$1,(VLOOKUP($B$60,NewCHPPEFactors,O$1)),IF($B$59<Lookups!$C$2,(VLOOKUP($B$60,ExistingOldCHPPEFactors,O$1)),(VLOOKUP($B$60,ExistingCHPPEfactors,O$1))))","v":{"$error":"#N/A"}}]
["CO2 Emissions tonnes",null,null,{"$f":"(D65*D68-D69*D64)","v":{"$error":"#N/A"}},{"$error":"#N/A"},{"$error":"#N/A"},{"$error":"#N/A"},{"$error":"#N/A"},{"$error":"#N/A"},{"$error":"#N/A"},{"$error":"#N/A"},{"$error":"#N/A"},{"$error":"#N/A"},{"$error":"#N/A"},{"$error":"#N/A"},null,{"$f":"IFERROR(SUM(D72:O72),0)","v":0},null,{"$f":"SUM(D72:O72)/Q63","v":{"$error":"#N/A"}}]
["Primary Energy MWh",null,null,{"$f":"(D65*D70-D64*D71)","v":{"$error":"#N/A"}},{"$error":"#N/A"},{"$error":"#N/A"},{"$error":"#N/A"},{"$error":"#N/A"},{"$error":"#N/A"},{"$error":"#N/A"},{"$error":"#N/A"},{"$error":"#N/A"},{"$error":"#N/A"},{"$error":"#N/A"},{"$error":"#N/A"},null,{"$f":"IFERROR(SUM(D73:O73),0)","v":0},null,{"$f":"SUM(D73:O73)/Q63","v":{"$error":"#N/A"}}]
[]
["CHP 3"]
["Type of fuel used by CHP"]
["Installation Date"]
["Operational Mode"]
[]
[null,"Data type",null,"Jan","Feb","Mar","Apr","May","Jun","Jul","Aug","Sep","Oct","Nov","Dec",null,"TOTAL",null,"Notes"]
["Heat supplied to network from CHP 3 (MWh)",null,null,null,null,null,null,null,null,null,null,null,null,null,null,null,{"$f":"SUM(D81:O81)","v":0}]
["Electricity generated by CHP 3 (MWh)",null,null,null,null,null,null,null,null,null,null,null,null,null,null,null,{"$f":"SUM(D82:O82)","v":0}]
["Fuel used by CHP 3 (MWh)",null,null,null,null,null,null,null,null,null,null,null,null,null,null,null,{"$f":"SUM(D83:O83)","v":0}]
["Power Efficiency",null,null,{"$f":"(D82/D83)*100","v":{"$error":"#DIV/0!"}},{"$error":"#DIV/0!"},{"$error":"#DIV/0!"},{"$error":"#DIV/0!"},{"$error":"#DIV/0!"},{"$error":"#DIV/0!"},{"$error":"#DIV/0!"},{"$error":"#DIV/0!"},{"$error":"#DIV/0!"},{"$error":"#DIV/0!"},{"$error":"#DIV/0!"},{"$error":"#DIV/0!"},null,{"$f":"(Q82/Q83)","v":{"$error":"#DIV/0!"}},"Box 361"]
["Heat efficiency",null,null,{"$f":"(D81/D83)*100","v":{"$error":"#DIV/0!"}},{"$error":"#DIV/0!"},{"$error":"#DIV/0!"},{"$error":"#DIV/0!"},{"$error":"#DIV/0!"},{"$error":"#DIV/0!"},{"$error":"#DIV/0!"},{"$error":"#DIV/0!"},{"$error":"#DIV/0!"},{"$error":"#DIV/0!"},{"$error":"#DIV/0!"},{"$error":"#DIV/0!"},null,{"$f":"(Q81/Q83)","v":{"$error":"#DIV/0!"}},"Box 362"]
["Fuel emissions factor",null,null,{"$f":"VLOOKUP($B$76,FuelCO2Factors,2)","v":{"$error":"#N/A"}},{"$f":"VLOOKUP($B$76,FuelCO2Factors,3)","v":{"$error":"#N/A"}},{"$f":"VLOOKUP($B$76,FuelCO2Factors,4)","v":{"$error":"#N/A"}},{"$f":"VLOOKUP($B$76,FuelCO2Factors,5)","v":{"$error":"#N/A"}},{"$f":"VLOOKUP($B$76,FuelCO2Factors,6)","v":{"$error":"#N/A"}},{"$f":"VLOOKUP($B$76,FuelCO2Factors,7)","v":{"$error":"#N/A"}},{"$f":"VLOOKUP($B$76,FuelCO2Factors,8)","v":{"$error":"#N/A"}},{"$f":"VLOOKUP($B$76,FuelCO2Factors,9)","v":{"$error":"#N/A"}},{"$f":"VLOOKUP($B$76,FuelCO2Factors,10)","v":{"$error":"#N/A"}},{"$f":"VLOOKUP($B$76,FuelCO2Factors,11)","v":{"$error":"#N/A"}},{"$f":"VLOOKUP($B$76,FuelCO2Factors,12)","v":{"$error":"#N/A"}},{"$f":"VLOOKUP($B$76,FuelCO2Factors,13)","v":{"$error":"#N/A"}}]
["Electricity generated emissions factor",null,null,{"$f":"IF($B$77>Lookups!$C$1,(VLOOKUP($B$78,NewCHPfactors,D$1)),IF($B$77<Lookups!$C$2,(VLOOKUP($B$78,ExistingOldCHPFactors,D$1)),(VLOOKUP($B$78,ExistingCHPfactors,D$1))))","v":{"$error":"#N/A"}},{"$f":"IF($B$77>Lookups!$C$1,(VLOOKUP($B$78,NewCHPfactors,E$1)),IF($B$77<Lookups!$C$2,(VLOOKUP($B$78,ExistingOldCHPFactors,E$1)),(VLOOKUP($B$78,ExistingCHPfactors,E$1))))","v":{"$error":"#N/A"}},{"$f":"IF($B$77>Lookups!$C$1,(VLOOKUP($B$78,NewCHPfactors,F$1)),IF($B$77<Lookups!$C$2,(VLOOKUP($B$78,ExistingOldCHPFactors,F$1)),(VLOOKUP($B$78,ExistingCHPfactors,F$1))))","v":{"$error":"#N/A"}},{"$f":"IF($B$77>Lookups!$C$1,(VLOOKUP($B$78,NewCHPfactors,G$1)),IF($B$77<Lookups!$C$2,(VLOOKUP($B$78,ExistingOldCHPFactors,G$1)),(VLOOKUP($B$78,ExistingCHPfactors,G$1))))","v":{"$error":"#N/A"}},{"$f":"IF($B$77>Lookups!$C$1,(VLOOKUP($B$78,NewCHPfactors,H$1)),IF($B$77<Lookups!$C$2,(VLOOKUP($B$78,ExistingOldCHPFactors,H$1)),(VLOOKUP($B$78,ExistingCHPfactors,H$1))))","v":{"$error":"#N/A"}},{"$f":"IF($B$77>Lookups!$C$1,(VLOOKUP($B$78,NewCHPfactors,I$1)),IF($B$77<Lookups!$C$2,(VLOOKUP($B$78,ExistingOldCHPFactors,I$1)),(VLOOKUP($B$78,ExistingCHPfactors,I$1))))","v":{"$error":"#N/A"}},{"$f":"IF($B$77>Lookups!$C$1,(VLOOKUP($B$78,NewCHPfactors,J$1)),IF($B$77<Lookups!$C$2,(VLOOKUP($B$78,ExistingOldCHPFactors,J$1)),(VLOOKUP($B$78,ExistingCHPfactors,J$1))))","v":{"$error":"#N/A"}},{"$f":"IF($B$77>Lookups!$C$1,(VLOOKUP($B$78,NewCHPfactors,K$1)),IF($B$77<Lookups!$C$2,(VLOOKUP($B$78,ExistingOldCHPFactors,K$1)),(VLOOKUP($B$78,ExistingCHPfactors,K$1))))","v":{"$error":"#N/A"}},{"$f":"IF($B$77>Lookups!$C$1,(VLOOKUP($B$78,NewCHPfactors,L$1)),IF($B$77<Lookups!$C$2,(VLOOKUP($B$78,ExistingOldCHPFactors,L$1)),(VLOOKUP($B$78,ExistingCHPfactors,L$1))))","v":{"$error":"#N/A"}},{"$f":"IF($B$77>Lookups!$C$1,(VLOOKUP($B$78,NewCHPfactors,M$1)),IF($B$77<Lookups!$C$2,(VLOOKUP($B$78,ExistingOldCHPFactors,M$1)),(VLOOKUP($B$78,ExistingCHPfactors,M$1))))","v":{"$error":"#N/A"}},{"$f":"IF($B$77>Lookups!$C$1,(VLOOKUP($B$78,NewCHPfactors,N$1)),IF($B$77<Lookups!$C$2,(VLOOKUP($B$78,ExistingOldCHPFactors,N$1)),(VLOOKUP($B$78,ExistingCHPfactors,N$1))))","v":{"$error":"#N/A"}},{"$f":"IF($B$77>Lookups!$C$1,(VLOOKUP($B$78,NewCHPfactors,O$1)),IF($B$77<Lookups!$C$2,(VLOOKUP($B$78,ExistingOldCHPFactors,O$1)),(VLOOKUP($B$78,ExistingCHPfactors,O$1))))","v":{"$error":"#N/A"}}]
["Fuel Primary Energy Factor",null,null,{"$f":"VLOOKUP($B$76,FuelPEFactors,2)","v":{"$error":"#N/A"}},{"$f":"VLOOKUP($B$76,FuelPEFactors,3)","v":{"$error":"#N/A"}},{"$f":"VLOOKUP($B$76,FuelPEFactors,4)","v":{"$error":"#N/A"}},{"$f":"VLOOKUP($B$76,FuelPEFactors,5)","v":{"$error":"#N/A"}},{"$f":"VLOOKUP($B$76,FuelPEFactors,6)","v":{"$error":"#N/A"}},{"$f":"VLOOKUP($B$76,FuelPEFactors,7)","v":{"$error":"#N/A"}},{"$f":"VLOOKUP($B$76,FuelPEFactors,8)","v":{"$error":"#N/A"}},{"$f":"VLOOKUP($B$76,FuelPEFactors,9)","v":{"$error":"#N/A"}},{"$f":"VLOOKUP($B$76,FuelPEFactors,10)","v":{"$error":"#N/A"}},{"$f":"VLOOKUP($B$76,FuelPEFactors,11)","v":{"$error":"#N/A"}},{"$f":"VLOOKUP($B$76,FuelPEFactors,12)","v":{"$error":"#N/A"}},{"$f":"VLOOKUP($B$76,FuelPEFactors,13)","v":{"$error":"#N/A"}}]
["Electricity Generated Primary energy factor",null,null,{"$f":"IF($B$77>Lookups!$C$1,(VLOOKUP($B$78,NewCHPPEFactors,D$1)),IF($B$77<Lookups!$C$2,(VLOOKUP($B$78,ExistingOldCHPPEFactors,D$1)),(VLOOKUP($B$78,ExistingCHPPEfactors,D$1))))","v":{"$error":"#N/A"}},{"$f":"IF($B$77>Lookups!$C$1,(VLOOKUP($B$78,NewCHPPEFactors,E$1)),IF($B$77<Lookups!$C$2,(VLOOKUP($B$78,ExistingOldCHPPEFactors,E$1)),(VLOOKUP($B$78,ExistingCHPPEfactors,E$1))))","v":{"$error":"#N/A"}},{"$f":"IF($B$77>Lookups!$C$1,(VLOOKUP($B$78,NewCHPPEFactors,F$1)),IF($B$77<Lookups!$C$2,(VLOOKUP($B$78,ExistingOldCHPPEFactors,F$1)),(VLOOKUP($B$78,ExistingCHPPEfactors,F$1))))","v":{"$error":"#N/A"}},{"$f":"IF($B$77>Lookups!$C$1,(VLOOKUP($B$78,NewCHPPEFactors,G$1)),IF($B$77<Lookups!$C$2,(VLOOKUP($B$78,ExistingOldCHPPEFactors,G$1)),(VLOOKUP($B$78,ExistingCHPPEfactors,G$1))))","v":{"$error":"#N/A"}},{"$f":"IF($B$77>Lookups!$C$1,(VLOOKUP($B$78,NewCHPPEFactors,H$1)),IF($B$77<Lookups!$C$2,(VLOOKUP($B$78,ExistingOldCHPPEFactors,H$1)),(VLOOKUP($B$78,ExistingCHPPEfactors,H$1))))","v":{"$error":"#N/A"}},{"$f":"IF($B$77>Lookups!$C$1,(VLOOKUP($B$78,NewCHPPEFactors,I$1)),IF($B$77<Lookups!$C$2,(VLOOKUP($B$78,ExistingOldCHPPEFactors,I$1)),(VLOOKUP($B$78,ExistingCHPPEfactors,I$1))))","v":{"$error":"#N/A"}},{"$f":"IF($B$77>Lookups!$C$1,(VLOOKUP($B$78,NewCHPPEFactors,J$1)),IF($B$77<Lookups!$C$2,(VLOOKUP($B$78,ExistingOldCHPPEFactors,J$1)),(VLOOKUP($B$78,ExistingCHPPEfactors,J$1))))","v":{"$error":"#N/A"}},{"$f":"IF($B$77>Lookups!$C$1,(VLOOKUP($B$78,NewCHPPEFactors,K$1)),IF($B$77<Lookups!$C$2,(VLOOKUP($B$78,ExistingOldCHPPEFactors,K$1)),(VLOOKUP($B$78,ExistingCHPPEfactors,K$1))))","v":{"$error":"#N/A"}},{"$f":"IF($B$77>Lookups!$C$1,(VLOOKUP($B$78,NewCHPPEFactors,L$1)),IF($B$77<Lookups!$C$2,(VLOOKUP($B$78,ExistingOldCHPPEFactors,L$1)),(VLOOKUP($B$78,ExistingCHPPEfactors,L$1))))","v":{"$error":"#N/A"}},{"$f":"IF($B$77>Lookups!$C$1,(VLOOKUP($B$78,NewCHPPEFactors,M$1)),IF($B$77<Lookups!$C$2,(VLOOKUP($B$78,ExistingOldCHPPEFactors,M$1)),(VLOOKUP($B$78,ExistingCHPPEfactors,M$1))))","v":{"$error":"#N/A"}},{"$f":"IF($B$77>Lookups!$C$1,(VLOOKUP($B$78,NewCHPPEFactors,N$1)),IF($B$77<Lookups!$C$2,(VLOOKUP($B$78,ExistingOldCHPPEFactors,N$1)),(VLOOKUP($B$78,ExistingCHPPEfactors,N$1))))","v":{"$error":"#N/A"}},{"$f":"IF($B$77>Lookups!$C$1,(VLOOKUP($B$78,NewCHPPEFactors,O$1)),IF($B$77<Lookups!$C$2,(VLOOKUP($B$78,ExistingOldCHPPEFactors,O$1)),(VLOOKUP($B$78,ExistingCHPPEfactors,O$1))))","v":{"$error":"#N/A"}}]
["CO2 Emissions tonnes",null,null,{"$f":"(D83*D86-D87*D82)","v":{"$error":"#N/A"}},{"$error":"#N/A"},{"$error":"#N/A"},{"$error":"#N/A"},{"$error":"#N/A"},{"$error":"#N/A"},{"$error":"#N/A"},{"$error":"#N/A"},{"$error":"#N/A"},{"$error":"#N/A"},{"$error":"#N/A"},{"$error":"#N/A"},null,{"$f":"IFERROR(SUM(D90:O90),0)","v":0},null,{"$f":"SUM(D90:O90)/Q81","v":{"$error":"#N/A"}}]
["Primary Energy MWh",null,null,{"$f":"(D83*D88-D82*D89)","v":{"$error":"#N/A"}},{"$error":"#N/A"},{"$error":"#N/A"},{"$error":"#N/A"},{"$error":"#N/A"},{"$error":"#N/A"},{"$error":"#N/A"},{"$error":"#N/A"},{"$error":"#N/A"},{"$error":"#N/A"},{"$error":"#N/A"},{"$error":"#N/A"},null,{"$f":"IFERROR(SUM(D91:O91),0)","v":0},null,{"$f":"SUM(D91:O91)/Q81","v":{"$error":"#N/A"}}]
[]
["CHP 4"]
["Type of fuel used by CHP"]
["Installation Date"]
["Operational Mode"]
[]
[null,"Data type",null,"Jan","Feb","Mar","Apr","May","Jun","Jul","Aug","Sep","Oct","Nov","Dec",null,"TOTAL",null,"Notes"]
["Heat supplied to network from CHP 4 (MWh)",null,null,null,null,null,null,null,null,null,null,null,null,null,null,null,{"$f":"SUM(D99:O99)","v":0}]
["Electricity generated by CHP 4 (MWh)",null,null,null,null,null,null,null,null,null,null,null,null,null,null,null,{"$f":"SUM(D100:O100)","v":0}]
["Fuel used by CHP 4 (MWh)",null,null,null,null,null,null,null,null,null,null,null,null,null,null,null,{"$f":"SUM(D101:O101)","v":0}]
["Power Efficiency",null,null,{"$f":"(D100/D101)*100","v":{"$error":"#DIV/0!"}},{"$error":"#DIV/0!"},{"$error":"#DIV/0!"},{"$error":"#DIV/0!"},{"$error":"#DIV/0!"},{"$error":"#DIV/0!"},{"$error":"#DIV/0!"},{"$error":"#DIV/0!"},{"$error":"#DIV/0!"},{"$error":"#DIV/0!"},{"$error":"#DIV/0!"},{"$error":"#DIV/0!"},null,{"$f":"(Q100/Q101)","v":{"$error":"#DIV/0!"}},"Box 361"]
["Heat efficiency",null,null,{"$f":"(D99/D101)*100","v":{"$error":"#DIV/0!"}},{"$error":"#DIV/0!"},{"$error":"#DIV/0!"},{"$error":"#DIV/0!"},{"$error":"#DIV/0!"},{"$error":"#DIV/0!"},{"$error":"#DIV/0!"},{"$error":"#DIV/0!"},{"$error":"#DIV/0!"},{"$error":"#DIV/0!"},{"$error":"#DIV/0!"},{"$error":"#DIV/0!"},null,{"$f":"(Q99/Q101)","v":{"$error":"#DIV/0!"}},"Box 362"]
["Fuel emissions factor",null,null,{"$f":"VLOOKUP($B$94,FuelCO2Factors,2)","v":{"$error":"#N/A"}},{"$f":"VLOOKUP($B$94,FuelCO2Factors,3)","v":{"$error":"#N/A"}},{"$f":"VLOOKUP($B$94,FuelCO2Factors,4)","v":{"$error":"#N/A"}},{"$f":"VLOOKUP($B$94,FuelCO2Factors,5)","v":{"$error":"#N/A"}},{"$f":"VLOOKUP($B$94,FuelCO2Factors,6)","v":{"$error":"#N/A"}},{"$f":"VLOOKUP($B$94,FuelCO2Factors,7)","v":{"$error":"#N/A"}},{"$f":"VLOOKUP($B$94,FuelCO2Factors,8)","v":{"$error":"#N/A"}},{"$f":"VLOOKUP($B$94,FuelCO2Factors,9)","v":{"$error":"#N/A"}},{"$f":"VLOOKUP($B$94,FuelCO2Factors,10)","v":{"$error":"#N/A"}},{"$f":"VLOOKUP($B$94,FuelCO2Factors,11)","v":{"$error":"#N/A"}},{"$f":"VLOOKUP($B$94,FuelCO2Factors,12)","v":{"$error":"#N/A"}},{"$f":"VLOOKUP($B$94,FuelCO2Factors,13)","v":{"$error":"#N/A"}}]
["Electricity generated emissions factor",null,null,{"$f":"IF($B$95>Lookups!$C$1,(VLOOKUP($B$96,NewCHPfactors,D$1)),IF($B$95<Lookups!$C$2,(VLOOKUP($B$96,ExistingOldCHPFactors,D$1)),(VLOOKUP($B$96,ExistingCHPfactors,D$1))))","v":{"$error":"#N/A"}},{"$f":"IF($B$95>Lookups!$C$1,(VLOOKUP($B$96,NewCHPfactors,E$1)),IF($B$95<Lookups!$C$2,(VLOOKUP($B$96,ExistingOldCHPFactors,E$1)),(VLOOKUP($B$96,ExistingCHPfactors,E$1))))","v":{"$error":"#N/A"}},{"$f":"IF($B$95>Lookups!$C$1,(VLOOKUP($B$96,NewCHPfactors,F$1)),IF($B$95<Lookups!$C$2,(VLOOKUP($B$96,ExistingOldCHPFactors,F$1)),(VLOOKUP($B$96,ExistingCHPfactors,F$1))))","v":{"$error":"#N/A"}},{"$f":"IF($B$95>Lookups!$C$1,(VLOOKUP($B$96,NewCHPfactors,G$1)),IF($B$95<Lookups!$C$2,(VLOOKUP($B$96,ExistingOldCHPFactors,G$1)),(VLOOKUP($B$96,ExistingCHPfactors,G$1))))","v":{"$error":"#N/A"}},{"$f":"IF($B$95>Lookups!$C$1,(VLOOKUP($B$96,NewCHPfactors,H$1)),IF($B$95<Lookups!$C$2,(VLOOKUP($B$96,ExistingOldCHPFactors,H$1)),(VLOOKUP($B$96,ExistingCHPfactors,H$1))))","v":{"$error":"#N/A"}},{"$f":"IF($B$95>Lookups!$C$1,(VLOOKUP($B$96,NewCHPfactors,I$1)),IF($B$95<Lookups!$C$2,(VLOOKUP($B$96,ExistingOldCHPFactors,I$1)),(VLOOKUP($B$96,ExistingCHPfactors,I$1))))","v":{"$error":"#N/A"}},{"$f":"IF($B$95>Lookups!$C$1,(VLOOKUP($B$96,NewCHPfactors,J$1)),IF($B$95<Lookups!$C$2,(VLOOKUP($B$96,ExistingOldCHPFactors,J$1)),(VLOOKUP($B$96,ExistingCHPfactors,J$1))))","v":{"$error":"#N/A"}},{"$f":"IF($B$95>Lookups!$C$1,(VLOOKUP($B$96,NewCHPfactors,K$1)),IF($B$95<Lookups!$C$2,(VLOOKUP($B$96,ExistingOldCHPFactors,K$1)),(VLOOKUP($B$96,ExistingCHPfactors,K$1))))","v":{"$error":"#N/A"}},{"$f":"IF($B$95>Lookups!$C$1,(VLOOKUP($B$96,NewCHPfactors,L$1)),IF($B$95<Lookups!$C$2,(VLOOKUP($B$96,ExistingOldCHPFactors,L$1)),(VLOOKUP($B$96,ExistingCHPfactors,L$1))))","v":{"$error":"#N/A"}},{"$f":"IF($B$95>Lookups!$C$1,(VLOOKUP($B$96,NewCHPfactors,M$1)),IF($B$95<Lookups!$C$2,(VLOOKUP($B$96,ExistingOldCHPFactors,M$1)),(VLOOKUP($B$96,ExistingCHPfactors,M$1))))","v":{"$error":"#N/A"}},{"$f":"IF($B$95>Lookups!$C$1,(VLOOKUP($B$96,NewCHPfactors,N$1)),IF($B$95<Lookups!$C$2,(VLOOKUP($B$96,ExistingOldCHPFactors,N$1)),(VLOOKUP($B$96,ExistingCHPfactors,N$1))))","v":{"$error":"#N/A"}},{"$f":"IF($B$95>Lookups!$C$1,(VLOOKUP($B$96,NewCHPfactors,O$1)),IF($B$95<Lookups!$C$2,(VLOOKUP($B$96,ExistingOldCHPFactors,O$1)),(VLOOKUP($B$96,ExistingCHPfactors,O$1))))","v":{"$error":"#N/A"}}]
["Fuel Primary Energy Factor",null,null,{"$f":"VLOOKUP($B$94,FuelPEFactors,2)","v":{"$error":"#N/A"}},{"$f":"VLOOKUP($B$94,FuelPEFactors,3)","v":{"$error":"#N/A"}},{"$f":"VLOOKUP($B$94,FuelPEFactors,4)","v":{"$error":"#N/A"}},{"$f":"VLOOKUP($B$94,FuelPEFactors,5)","v":{"$error":"#N/A"}},{"$f":"VLOOKUP($B$94,FuelPEFactors,6)","v":{"$error":"#N/A"}},{"$f":"VLOOKUP($B$94,FuelPEFactors,7)","v":{"$error":"#N/A"}},{"$f":"VLOOKUP($B$94,FuelPEFactors,8)","v":{"$error":"#N/A"}},{"$f":"VLOOKUP($B$94,FuelPEFactors,9)","v":{"$error":"#N/A"}},{"$f":"VLOOKUP($B$94,FuelPEFactors,10)","v":{"$error":"#N/A"}},{"$f":"VLOOKUP($B$94,FuelPEFactors,11)","v":{"$error":"#N/A"}},{"$f":"VLOOKUP($B$94,FuelPEFactors,12)","v":{"$error":"#N/A"}},{"$f":"VLOOKUP($B$94,FuelPEFactors,13)","v":{"$error":"#N/A"}}]
["Electricity Generated Primary energy factor",null,null,{"$f":"IF($B$95>Lookups!$C$1,(VLOOKUP($B$96,NewCHPPEFactors,D$1)),IF($B$95<Lookups!$C$2,(VLOOKUP($B$96,ExistingOldCHPPEFactors,D$1)),(VLOOKUP($B$96,ExistingCHPPEfactors,D$1))))","v":{"$error":"#N/A"}},{"$f":"IF($B$95>Lookups!$C$1,(VLOOKUP($B$96,NewCHPPEFactors,E$1)),IF($B$95<Lookups!$C$2,(VLOOKUP($B$96,ExistingOldCHPPEFactors,E$1)),(VLOOKUP($B$96,ExistingCHPPEfactors,E$1))))","v":{"$error":"#N/A"}},{"$f":"IF($B$95>Lookups!$C$1,(VLOOKUP($B$96,NewCHPPEFactors,F$1)),IF($B$95<Lookups!$C$2,(VLOOKUP($B$96,ExistingOldCHPPEFactors,F$1)),(VLOOKUP($B$96,ExistingCHPPEfactors,F$1))))","v":{"$error":"#N/A"}},{"$f":"IF($B$95>Lookups!$C$1,(VLOOKUP($B$96,NewCHPPEFactors,G$1)),IF($B$95<Lookups!$C$2,(VLOOKUP($B$96,ExistingOldCHPPEFactors,G$1)),(VLOOKUP($B$96,ExistingCHPPEfactors,G$1))))","v":{"$error":"#N/A"}},{"$f":"IF($B$95>Lookups!$C$1,(VLOOKUP($B$96,NewCHPPEFactors,H$1)),IF($B$95<Lookups!$C$2,(VLOOKUP($B$96,ExistingOldCHPPEFactors,H$1)),(VLOOKUP($B$96,ExistingCHPPEfactors,H$1))))","v":{"$error":"#N/A"}},{"$f":"IF($B$95>Lookups!$C$1,(VLOOKUP($B$96,NewCHPPEFactors,I$1)),IF($B$95<Lookups!$C$2,(VLOOKUP($B$96,ExistingOldCHPPEFactors,I$1)),(VLOOKUP($B$96,ExistingCHPPEfactors,I$1))))","v":{"$error":"#N/A"}},{"$f":"IF($B$95>Lookups!$C$1,(VLOOKUP($B$96,NewCHPPEFactors,J$1)),IF($B$95<Lookups!$C$2,(VLOOKUP($B$96,ExistingOldCHPPEFactors,J$1)),(VLOOKUP($B$96,ExistingCHPPEfactors,J$1))))","v":{"$error":"#N/A"}},{"$f":"IF($B$95>Lookups!$C$1,(VLOOKUP($B$96,NewCHPPEFactors,K$1)),IF($B$95<Lookups!$C$2,(VLOOKUP($B$96,ExistingOldCHPPEFactors,K$1)),(VLOOKUP($B$96,ExistingCHPPEfactors,K$1))))","v":{"$error":"#N/A"}},{"$f":"IF($B$95>Lookups!$C$1,(VLOOKUP($B$96,NewCHPPEFactors,L$1)),IF($B$95<Lookups!$C$2,(VLOOKUP($B$96,ExistingOldCHPPEFactors,L$1)),(VLOOKUP($B$96,ExistingCHPPEfactors,L$1))))","v":{"$error":"#N/A"}},{"$f":"IF($B$95>Lookups!$C$1,(VLOOKUP($B$96,NewCHPPEFactors,M$1)),IF($B$95<Lookups!$C$2,(VLOOKUP($B$96,ExistingOldCHPPEFactors,M$1)),(VLOOKUP($B$96,ExistingCHPPEfactors,M$1))))","v":{"$error":"#N/A"}},{"$f":"IF($B$95>Lookups!$C$1,(VLOOKUP($B$96,NewCHPPEFactors,N$1)),IF($B$95<Lookups!$C$2,(VLOOKUP($B$96,ExistingOldCHPPEFactors,N$1)),(VLOOKUP($B$96,ExistingCHPPEfactors,N$1))))","v":{"$error":"#N/A"}},{"$f":"IF($B$95>Lookups!$C$1,(VLOOKUP($B$96,NewCHPPEFactors,O$1)),IF($B$95<Lookups!$C$2,(VLOOKUP($B$96,ExistingOldCHPPEFactors,O$1)),(VLOOKUP($B$96,ExistingCHPPEfactors,O$1))))","v":{"$error":"#N/A"}}]
["CO2 Emissions tonnes",null,null,{"$f":"(D101*D104-D105*D100)","v":{"$error":"#N/A"}},{"$error":"#N/A"},{"$error":"#N/A"},{"$error":"#N/A"},{"$error":"#N/A"},{"$error":"#N/A"},{"$error":"#N/A"},{"$error":"#N/A"},{"$error":"#N/A"},{"$error":"#N/A"},{"$error":"#N/A"},{"$error":"#N/A"},null,{"$f":"IFERROR(SUM(D108:O108),0)","v":0},null,{"$f":"SUM(D108:O108)/Q99","v":{"$error":"#N/A"}}]
["Primary Energy MWh",null,null,{"$f":"(D101*D106-D100*D107)","v":{"$error":"#N/A"}},{"$error":"#N/A"},{"$error":"#N/A"},{"$error":"#N/A"},{"$error":"#N/A"},{"$error":"#N/A"},{"$error":"#N/A"},{"$error":"#N/A"},{"$error":"#N/A"},{"$error":"#N/A"},{"$error":"#N/A"},{"$error":"#N/A"},null,{"$f":"IFERROR(SUM(D109:O109),0)","v":0},null,{"$f":"SUM(D109:O109)/Q99","v":{"$error":"#N/A"}}]
[]
["CHP 5"]
["Type of fuel used by CHP"]
["Installation Date"]
["Operational Mode"]
[]
[null,"Data type",null,"Jan","Feb","Mar","Apr","May","Jun","Jul","Aug","Sep","Oct","Nov","Dec",null,"TOTAL",null,"Notes"]
["Heat supplied to network from CHP 5 (MWh)",null,null,null,null,null,null,null,null,null,null,null,null,null,null,null,{"$f":"SUM(D117:O117)","v":0}]
["Electricity generated by CHP 5 (MWh)",null,null,null,null,null,null,null,null,null,null,null,null,null,null,null,{"$f":"SUM(D118:O118)","v":0}]
["Fuel used by CHP 5 (MWh)",null,null,null,null,null,null,null,null,null,null,null,null,null,null,null,{"$f":"SUM(D119:O119)","v":0}]
["Power Efficiency",null,null,{"$f":"(D118/D119)*100","v":{"$error":"#DIV/0!"}},{"$error":"#DIV/0!"},{"$error":"#DIV/0!"},{"$error":"#DIV/0!"},{"$error":"#DIV/0!"},{"$error":"#DIV/0!"},{"$error":"#DIV/0!"},{"$error":"#DIV/0!"},{"$error":"#DIV/0!"},{"$error":"#DIV/0!"},{"$error":"#DIV/0!"},{"$error":"#DIV/0!"},null,{"$f":"(Q118/Q119)","v":{"$error":"#DIV/0!"}},"Box 361"]
["Heat efficiency",null,null,{"$f":"(D117/D119)*100","v":{"$error":"#DIV/0!"}},{"$error":"#DIV/0!"},{"$error":"#DIV/0!"},{"$error":"#DIV/0!"},{"$error":"#DIV/0!"},{"$error":"#DIV/0!"},{"$error":"#DIV/0!"},{"$error":"#DIV/0!"},{"$error":"#DIV/0!"},{"$error":"#DIV/0!"},{"$error":"#DIV/0!"},{"$error":"#DIV/0!"},null,{"$f":"(Q117/Q119)","v":{"$error":"#DIV/0!"}},"Box 362"]
["Fuel emissions factor",null,null,{"$f":"VLOOKUP($B$112,FuelCO2Factors,2)","v":{"$error":"#N/A"}},{"$f":"VLOOKUP($B$112,FuelCO2Factors,3)","v":{"$error":"#N/A"}},{"$f":"VLOOKUP($B$112,FuelCO2Factors,4)","v":{"$error":"#N/A"}},{"$f":"VLOOKUP($B$112,FuelCO2Factors,5)","v":{"$error":"#N/A"}},{"$f":"VLOOKUP($B$112,FuelCO2Factors,6)","v":{"$error":"#N/A"}},{"$f":"VLOOKUP($B$112,FuelCO2Factors,7)","v":{"$error":"#N/A"}},{"$f":"VLOOKUP($B$112,FuelCO2Factors,8)","v":{"$error":"#N/A"}},{"$f":"VLOOKUP($B$112,FuelCO2Factors,9)","v":{"$error":"#N/A"}},{"$f":"VLOOKUP($B$112,FuelCO2Factors,10)","v":{"$error":"#N/A"}},{"$f":"VLOOKUP($B$112,FuelCO2Factors,11)","v":{"$error":"#N/A"}},{"$f":"VLOOKUP($B$112,FuelCO2Factors,12)","v":{"$error":"#N/A"}},{"$f":"VLOOKUP($B$112,FuelCO2Factors,13)","v":{"$error":"#N/A"}}]
["Electricity generated emissions factor",null,null,{"$f":"IF($B$113>Lookups!$C$1,(VLOOKUP($B$114,NewCHPfactors,D$1)),IF($B$113<Lookups!$C$2,(VLOOKUP($B$114,ExistingOldCHPFactors,D$1)),(VLOOKUP($B$114,ExistingCHPfactors,D$1))))","v":{"$error":"#N/A"}},{"$f":"IF($B$113>Lookups!$C$1,(VLOOKUP($B$114,NewCHPfactors,E$1)),IF($B$113<Lookups!$C$2,(VLOOKUP($B$114,ExistingOldCHPFactors,E$1)),(VLOOKUP($B$114,ExistingCHPfactors,E$1))))","v":{"$error":"#N/A"}},{"$f":"IF($B$113>Lookups!$C$1,(VLOOKUP($B$114,NewCHPfactors,F$1)),IF($B$113<Lookups!$C$2,(VLOOKUP($B$114,ExistingOldCHPFactors,F$1)),(VLOOKUP($B$114,ExistingCHPfactors,F$1))))","v":{"$error":"#N/A"}},{"$f":"IF($B$113>Lookups!$C$1,(VLOOKUP($B$114,NewCHPfactors,G$1)),IF($B$113<Lookups!$C$2,(VLOOKUP($B$114,ExistingOldCHPFactors,G$1)),(VLOOKUP($B$114,ExistingCHPfactors,G$1))))","v":{"$error":"#N/A"}},{"$f":"IF($B$113>Lookups!$C$1,(VLOOKUP($B$114,NewCHPfactors,H$1)),IF($B$113<Lookups!$C$2,(VLOOKUP($B$114,ExistingOldCHPFactors,H$1)),(VLOOKUP($B$114,ExistingCHPfactors,H$1))))","v":{"$error":"#N/A"}},{"$f":"IF($B$113>Lookups!$C$1,(VLOOKUP($B$114,NewCHPfactors,I$1)),IF($B$113<Lookups!$C$2,(VLOOKUP($B$114,ExistingOldCHPFactors,I$1)),(VLOOKUP($B$114,ExistingCHPfactors,I$1))))","v":{"$error":"#N/A"}},{"$f":"IF($B$113>Lookups!$C$1,(VLOOKUP($B$114,NewCHPfactors,J$1)),IF($B$113<Lookups!$C$2,(VLOOKUP($B$114,ExistingOldCHPFactors,J$1)),(VLOOKUP($B$114,ExistingCHPfactors,J$1))))","v":{"$error":"#N/A"}},{"$f":"IF($B$113>Lookups!$C$1,(VLOOKUP($B$114,NewCHPfactors,K$1)),IF($B$113<Lookups!$C$2,(VLOOKUP($B$114,ExistingOldCHPFactors,K$1)),(VLOOKUP($B$114,ExistingCHPfactors,K$1))))","v":{"$error":"#N/A"}},{"$f":"IF($B$113>Lookups!$C$1,(VLOOKUP($B$114,NewCHPfactors,L$1)),IF($B$113<Lookups!$C$2,(VLOOKUP($B$114,ExistingOldCHPFactors,L$1)),(VLOOKUP($B$114,ExistingCHPfactors,L$1))))","v":{"$error":"#N/A"}},{"$f":"IF($B$113>Lookups!$C$1,(VLOOKUP($B$114,NewCHPfactors,M$1)),IF($B$113<Lookups!$C$2,(VLOOKUP($B$114,ExistingOldCHPFactors,M$1)),(VLOOKUP($B$114,ExistingCHPfactors,M$1))))","v":{"$error":"#N/A"}},{"$f":"IF($B$113>Lookups!$C$1,(VLOOKUP($B$114,NewCHPfactors,N$1)),IF($B$113<Lookups!$C$2,(VLOOKUP($B$114,ExistingOldCHPFactors,N$1)),(VLOOKUP($B$114,ExistingCHPfactors,N$1))))","v":{"$error":"#N/A"}},{"$f":"IF($B$113>Lookups!$C$1,(VLOOKUP($B$114,NewCHPfactors,O$1)),IF($B$113<Lookups!$C$2,(VLOOKUP($B$114,ExistingOldCHPFactors,O$1)),(VLOOKUP($B$114,ExistingCHPfactors,O$1))))","v":{"$error":"#N/A"}}]
["Fuel Primary Energy Factor",null,null,{"$f":"VLOOKUP($B$112,FuelPEFactors,2)","v":{"$error":"#N/A"}},{"$f":"VLOOKUP($B$112,FuelPEFactors,3)","v":{"$error":"#N/A"}},{"$f":"VLOOKUP($B$112,FuelPEFactors,4)","v":{"$error":"#N/A"}},{"$f":"VLOOKUP($B$112,FuelPEFactors,5)","v":{"$error":"#N/A"}},{"$f":"VLOOKUP($B$112,FuelPEFactors,6)","v":{"$error":"#N/A"}},{"$f":"VLOOKUP($B$112,FuelPEFactors,7)","v":{"$error":"#N/A"}},{"$f":"VLOOKUP($B$112,FuelPEFactors,8)","v":{"$error":"#N/A"}},{"$f":"VLOOKUP($B$112,FuelPEFactors,9)","v":{"$error":"#N/A"}},{"$f":"VLOOKUP($B$112,FuelPEFactors,10)","v":{"$error":"#N/A"}},{"$f":"VLOOKUP($B$112,FuelPEFactors,11)","v":{"$error":"#N/A"}},{"$f":"VLOOKUP($B$112,FuelPEFactors,12)","v":{"$error":"#N/A"}},{"$f":"VLOOKUP($B$112,FuelPEFactors,13)","v":{"$error":"#N/A"}}]
["Electricity Generated Primary energy factor",null,null,{"$f":"IF($B$113>Lookups!$C$1,(VLOOKUP($B$114,NewCHPPEFactors,D$1)),IF($B$113<Lookups!$C$2,(VLOOKUP($B$114,ExistingOldCHPPEFactors,D$1)),(VLOOKUP($B$114,ExistingCHPPEfactors,D$1))))","v":{"$error":"#N/A"}},{"$f":"IF($B$113>Lookups!$C$1,(VLOOKUP($B$114,NewCHPPEFactors,E$1)),IF($B$113<Lookups!$C$2,(VLOOKUP($B$114,ExistingOldCHPPEFactors,E$1)),(VLOOKUP($B$114,ExistingCHPPEfactors,E$1))))","v":{"$error":"#N/A"}},{"$f":"IF($B$113>Lookups!$C$1,(VLOOKUP($B$114,NewCHPPEFactors,F$1)),IF($B$113<Lookups!$C$2,(VLOOKUP($B$114,ExistingOldCHPPEFactors,F$1)),(VLOOKUP($B$114,ExistingCHPPEfactors,F$1))))","v":{"$error":"#N/A"}},{"$f":"IF($B$113>Lookups!$C$1,(VLOOKUP($B$114,NewCHPPEFactors,G$1)),IF($B$113<Lookups!$C$2,(VLOOKUP($B$114,ExistingOldCHPPEFactors,G$1)),(VLOOKUP($B$114,ExistingCHPPEfactors,G$1))))","v":{"$error":"#N/A"}},{"$f":"IF($B$113>Lookups!$C$1,(VLOOKUP($B$114,NewCHPPEFactors,H$1)),IF($B$113<Lookups!$C$2,(VLOOKUP($B$114,ExistingOldCHPPEFactors,H$1)),(VLOOKUP($B$114,ExistingCHPPEfactors,H$1))))","v":{"$error":"#N/A"}},{"$f":"IF($B$113>Lookups!$C$1,(VLOOKUP($B$114,NewCHPPEFactors,I$1)),IF($B$113<Lookups!$C$2,(VLOOKUP($B$114,ExistingOldCHPPEFactors,I$1)),(VLOOKUP($B$114,ExistingCHPPEfactors,I$1))))","v":{"$error":"#N/A"}},{"$f":"IF($B$113>Lookups!$C$1,(VLOOKUP($B$114,NewCHPPEFactors,J$1)),IF($B$113<Lookups!$C$2,(VLOOKUP($B$114,ExistingOldCHPPEFactors,J$1)),(VLOOKUP($B$114,ExistingCHPPEfactors,J$1))))","v":{"$error":"#N/A"}},{"$f":"IF($B$113>Lookups!$C$1,(VLOOKUP($B$114,NewCHPPEFactors,K$1)),IF($B$113<Lookups!$C$2,(VLOOKUP($B$114,ExistingOldCHPPEFactors,K$1)),(VLOOKUP($B$114,ExistingCHPPEfactors,K$1))))","v":{"$error":"#N/A"}},{"$f":"IF($B$113>Lookups!$C$1,(VLOOKUP($B$114,NewCHPPEFactors,L$1)),IF($B$113<Lookups!$C$2,(VLOOKUP($B$114,ExistingOldCHPPEFactors,L$1)),(VLOOKUP($B$114,ExistingCHPPEfactors,L$1))))","v":{"$error":"#N/A"}},{"$f":"IF($B$113>Lookups!$C$1,(VLOOKUP($B$114,NewCHPPEFactors,M$1)),IF($B$113<Lookups!$C$2,(VLOOKUP($B$114,ExistingOldCHPPEFactors,M$1)),(VLOOKUP($B$114,ExistingCHPPEfactors,M$1))))","v":{"$error":"#N/A"}},{"$f":"IF($B$113>Lookups!$C$1,(VLOOKUP($B$114,NewCHPPEFactors,N$1)),IF($B$113<Lookups!$C$2,(VLOOKUP($B$114,ExistingOldCHPPEFactors,N$1)),(VLOOKUP($B$114,ExistingCHPPEfactors,N$1))))","v":{"$error":"#N/A"}},{"$f":"IF($B$113>Lookups!$C$1,(VLOOKUP($B$114,NewCHPPEFactors,O$1)),IF($B$113<Lookups!$C$2,(VLOOKUP($B$114,ExistingOldCHPPEFactors,O$1)),(VLOOKUP($B$114,ExistingCHPPEfactors,O$1))))","v":{"$error":"#N/A"}}]
["CO2 Emissions tonnes",null,null,{"$f":"(D119*D122-D123*D118)","v":{"$error":"#N/A"}},{"$error":"#N/A"},{"$error":"#N/A"},{"$error":"#N/A"},{"$error":"#N/A"},{"$error":"#N/A"},{"$error":"#N/A"},{"$error":"#N/A"},{"$error":"#N/A"},{"$error":"#N/A"},{"$error":"#N/A"},{"$error":"#N/A"},null,{"$f":"IFERROR(SUM(D126:O126),0)","v":0},null,{"$f":"SUM(D126:O126)/Q117","v":{"$error":"#N/A"}}]
["Primary Energy MWh",null,null,{"$f":"(D119*D124-D118*D125)","v":{"$error":"#N/A"}},{"$error":"#N/A"},{"$error":"#N/A"},{"$error":"#N/A"},{"$error":"#N/A"},{"$error":"#N/A"},{"$error":"#N/A"},{"$error":"#N/A"},{"$error":"#N/A"},{"$error":"#N/A"},{"$error":"#N/A"},{"$error":"#N/A"},null,{"$f":"IFERROR(SUM(D127:O127),0)","v":0},null,{"$f":"SUM(D127:O127)/Q117","v":{"$error":"#N/A"}}]
[]
["Heat Pump 1"]
["Type of heat generator","Heat pump"]
["Type of fuel used","Electricity"]
[null,null,null,"Jan","Feb","Mar","Apr","May","Jun","Jul","Aug","Sep","Oct","Nov","Dec",null,"TOTAL",null,"Notes"]
["Heat supplied to network by heat pump 1 (MWh)","Data type",null,null,null,null,null,null,null,null,null,null,null,null,null,null,{"$f":"SUM(D133:O133)","v":0}]
["Energy used by heat pump 1 (MWh)",null,null,null,null,null,null,null,null,null,null,null,null,null,null,null,{"$f":"SUM(D134:O134)","v":0}]
["Heat efficiency",null,null,{"$f":"D133/D134","v":{"$error":"#DIV/0!"}},{"$error":"#DIV/0!"},{"$error":"#DIV/0!"},{"$error":"#DIV/0!"},{"$error":"#DIV/0!"},{"$error":"#DIV/0!"},{"$error":"#DIV/0!"},{"$error":"#DIV/0!"},{"$error":"#DIV/0!"},{"$error":"#DIV/0!"},{"$error":"#DIV/0!"},{"$error":"#DIV/0!"},null,{"$f":"Q133/Q134","v":{"$error":"#DIV/0!"}}]
["Fuel emissions factor",null,null,{"$f":"VLOOKUP($B$131,FuelCO2Factors,D$1)","v":0.16300000000000001},0.16,0.153,0.14299999999999999,0.13200000000000001,0.12,0.111,0.112,0.122,0.13600000000000001,0.151,0.16300000000000001]
["Primary energy factor",null,null,{"$f":"VLOOKUP($B$131,FuelPEFactors,D$1)","v":1.6020000000000001},1.593,1.5680000000000001,1.53,1.4870000000000001,1.4410000000000001,1.41,1.413,1.4490000000000001,1.504,1.5580000000000001,1.6040000000000001]
["CO2 Emissions tonnes",null,null,{"$f":"D136*D134","v":0},0,0,0,0,0,0,0,0,0,0,0,null,{"$f":"IFERROR(SUM(D138:O138),0)","v":0},null,{"$f":"IFERROR(SUM(D138:O138)/Q133,0)","v":0}]
["Primary Energy MWh",null,null,{"$f":"D137*D134","v":0},0,0,0,0,0,0,0,0,0,0,0,null,{"$f":"IFERROR(SUM(D139:O139),0)","v":0},null,{"$f":"IFERROR(SUM(D139:O139)/Q133,0)","v":0}]
[]
["Heat Pump 2"]
["Type of heat generator","Heat pump"]
["Type of fuel used","Electricity"]
[null,null,null,"Jan","Feb","Mar","Apr","May","Jun","Jul","Aug","Sep","Oct","Nov","Dec",null,"TOTAL",null,"Notes"]
["Heat supplied to network by heat pump 2 (MWh)","Data type",null,null,null,null,null,null,null,null,null,null,null,null,null,null,{"$f":"SUM(D145:O145)","v":0}]
["Energy used by heat pump 2 (MWh)",null,null,null,null,null,null,null,null,null,null,null,null,null,null,null,{"$f":"SUM(D146:O146)","v":0}]
["Heat efficiency",null,null,{"$f":"D145/D146","v":{"$error":"#DIV/0!"}},{"$error":"#DIV/0!"},{"$error":"#DIV/0!"},{"$error":"#DIV/0!"},{"$error":"#DIV/0!"},{"$error":"#DIV/0!"},{"$error":"#DIV/0!"},{"$error":"#DIV/0!"},{"$error":"#DIV/0!"},{"$error":"#DIV/0!"},{"$error":"#DIV/0!"},{"$error":"#DIV/0!"},null,{"$f":"Q145/Q146","v":{"$error":"#DIV/0!"}}]
["Fuel emissions factor",null,null,{"$f":"VLOOKUP($B$143,FuelCO2Factors,D1)","v":0.16300000000000001},0.16,0.153,0.14299999999999999,0.13200000000000001,0.12,0.111,0.112,0.122,0.13600000000000001,0.151,0.16300000000000001]
["Primary energy factor",null,null,{"$f":"VLOOKUP($B$143,FuelPEFactors,D1)","v":1.6020000000000001},1.593,1.5680000000000001,1.53,1.4870000000000001,1.4410000000000001,1.41,1.413,1.4490000000000001,1.504,1.5580000000000001,1.6040000000000001]
["CO2 Emissions tonnes",null,null,{"$f":"D148*D146","v":0},0,0,0,0,0,0,0,0,0,0,0,null,{"$f":"IFERROR(SUM(D150:O150),0)","v":0},null,{"$f":"IFERROR(SUM(D150:O150)/Q145,0)","v":0}]
["Primary Energy MWh",null,null,{"$f":"D149*D146","v":0},0,0,0,0,0,0,0,0,0,0,0,null,{"$f":"IFERROR(SUM(D151:O151),0)","v":0},null,{"$f":"IFERROR(SUM(D151:O151)/Q145,0)","v":0}]
[]
["Heat Pump 3"]
["Type of heat generator","Heat pump"]
["Type of fuel used","Electricity"]
[null,null,null,"Jan","Feb","Mar","Apr","May","Jun","Jul","Aug","Sep","Oct","Nov","Dec",null,"TOTAL",null,"Notes"]
["Heat supplied to network by heat pump 3 (MWh)","Data type",null,null,null,null,null,null,null,null,null,null,null,null,null,null,{"$f":"SUM(D157:O157)","v":0}]
["Energy used by heat pump 3 (MWh)",null,null,null,null,null,null,null,null,null,null,null,null,null,null,null,{"$f":"SUM(D158:O158)","v":0}]
["Heat efficiency",null,null,{"$f":"D157/D158","v":{"$error":"#DIV/0!"}},{"$error":"#DIV/0!"},{"$error":"#DIV/0!"},{"$error":"#DIV/0!"},{"$error":"#DIV/0!"},{"$error":"#DIV/0!"},{"$error":"#DIV/0!"},{"$error":"#DIV/0!"},{"$error":"#DIV/0!"},{"$error":"#DIV/0!"},{"$error":"#DIV/0!"},{"$error":"#DIV/0!"},null,{"$f":"Q157/Q158","v":{"$error":"#DIV/0!"}}]
["Fuel emissions factor",null,null,{"$f":"VLOOKUP($B$155,FuelCO2Factors,D1)","v":0.16300000000000001},0.16,0.153,0.14299999999999999,0.13200000000000001,0.12,0.111,0.112,0.122,0.13600000000000001,0.151,0.16300000000000001]
["Primary energy factor",null,null,{"$f":"VLOOKUP($B$155,FuelPEFactors,D1)","v":1.6020000000000001},1.593,1.5680000000000001,1.53,1.4870000000000001,1.4410000000000001,1.41,1.413,1.4490000000000001,1.504,1.5580000000000001,1.6040000000000001]
["CO2 Emissions tonnes",null,null,{"$f":"D160*D158","v":0},0,0,0,0,0,0,0,0,0,0,0,null,{"$f":"IFERROR(SUM(D162:O162),0)","v":0},null,{"$f":"IFERROR(SUM(D162:O162)/Q157,0)","v":0}]
["Primary Energy MWh",null,null,{"$f":"D161*D158","v":0},0,0,0,0,0,0,0,0,0,0,0,null,{"$f":"IFERROR(SUM(D163:O163),0)","v":0},null,{"$f":"IFERROR(SUM(D163:O163)/Q157,0)","v":0}]
[]
["Heat Pump 4"]
["Type of heat generator","Heat pump"]
["Type of fuel used","Electricity"]
[null,null,null,"Jan","Feb","Mar","Apr","May","Jun","Jul","Aug","Sep","Oct","Nov","Dec",null,"TOTAL",null,"Notes"]
["Heat supplied to network by heat pump 4 (MWh)","Data type",null,null,null,null,null,null,null,null,null,null,null,null,null,null,{"$f":"SUM(D169:O169)","v":0}]
["Energy used by heat pump 4 (MWh)",null,null,null,null,null,null,null,null,null,null,null,null,null,null,null,{"$f":"SUM(D170:O170)","v":0}]
["Heat efficiency",null,null,{"$f":"D169/D170","v":{"$error":"#DIV/0!"}},{"$error":"#DIV/0!"},{"$error":"#DIV/0!"},{"$error":"#DIV/0!"},{"$error":"#DIV/0!"},{"$error":"#DIV/0!"},{"$error":"#DIV/0!"},{"$error":"#DIV/0!"},{"$error":"#DIV/0!"},{"$error":"#DIV/0!"},{"$error":"#DIV/0!"},{"$error":"#DIV/0!"},null,{"$f":"Q169/Q170","v":{"$error":"#DIV/0!"}}]
["Fuel emissions factor",null,null,{"$f":"VLOOKUP($B$167,FuelCO2Factors,D1)","v":0.16300000000000001},0.16,0.153,0.14299999999999999,0.13200000000000001,0.12,0.111,0.112,0.122,0.13600000000000001,0.151,0.16300000000000001]
["Primary energy factor",null,null,{"$f":"VLOOKUP($B$167,FuelPEFactors,D1)","v":1.6020000000000001},1.593,1.5680000000000001,1.53,1.4870000000000001,1.4410000000000001,1.41,1.413,1.4490000000000001,1.504,1.5580000000000001,1.6040000000000001]
["CO2 Emissions tonnes",null,null,{"$f":"D172*D170","v":0},0,0,0,0,0,0,0,0,0,0,0,null,{"$f":"IFERROR(SUM(D174:O174),0)","v":0},null,{"$f":"IFERROR(SUM(D174:O174)/Q169,0)","v":0}]
["Primary Energy MWh",null,null,{"$f":"D173*D170","v":0},0,0,0,0,0,0,0,0,0,0,0,null,{"$f":"IFERROR(SUM(D175:O175),0)","v":0},null,{"$f":"IFERROR(SUM(D175:O175)/Q169,0)","v":0}]
[]
["Heat Pump 5"]
["Type of heat generator","Heat pump"]
["Type of fuel used","Electricity"]
[null,null,null,"Jan","Feb","Mar","Apr","May","Jun","Jul","Aug","Sep","Oct","Nov","Dec",null,"TOTAL",null,"Notes"]
["Heat supplied to network by heat pump 5 (MWh)","Data type",null,null,null,null,null,null,null,null,null,null,null,null,null,null,{"$f":"SUM(D181:O181)","v":0}]
["Energy used by heat pump 5 (MWh)",null,null,null,null,null,null,null,null,null,null,null,null,null,null,null,{"$f":"SUM(D182:O182)","v":0}]
["Heat efficiency",null,null,{"$f":"D181/D182","v":{"$error":"#DIV/0!"}},{"$error":"#DIV/0!"},{"$error":"#DIV/0!"},{"$error":"#DIV/0!"},{"$error":"#DIV/0!"},{"$error":"#DIV/0!"},{"$error":"#DIV/0!"},{"$error":"#DIV/0!"},{"$error":"#DIV/0!"},{"$error":"#DIV/0!"},{"$error":"#DIV/0!"},{"$error":"#DIV/0!"},null,{"$f":"Q181/Q182","v":{"$error":"#DIV/0!"}}]
["Fuel emissions factor",null,null,{"$f":"VLOOKUP($B$179,FuelCO2Factors,D1)","v":0.16300000000000001},0.16,0.153,0.14299999999999999,0.13200000000000001,0.12,0.111,0.112,0.122,0.13600000000000001,0.151,0.16300000000000001]
["Primary energy factor",null,null,{"$f":"VLOOKUP($B$179,FuelPEFactors,D1)","v":1.6020000000000001},1.593,1.5680000000000001,1.53,1.4870000000000001,1.4410000000000001,1.41,1.413,1.4490000000000001,1.504,1.5580000000000001,1.6040000000000001]
["CO2 Emissions tonnes",null,null,{"$f":"D184*D182","v":0},0,0,0,0,0,0,0,0,0,0,0,null,{"$f":"SUM(D186:O186)","v":0},null,{"$f":"IFERROR(SUM(D186:O186)/Q181,0)","v":0}]
["Primary Energy MWh",null,null,{"$f":"D185*D182","v":0},0,0,0,0,0,0,0,0,0,0,0,null,{"$f":"SUM(D187:O187)","v":0},null,{"$f":"IFERROR(SUM(D187:O187)/Q181,0)","v":0}]
[]
["Heat Recovery without Heat Pump 1"]
["Type of heat generator","Heat recovered without heat pump"]
["Heat Recovery Source"]
[null,"Data type",null,"Jan","Feb","Mar","Apr","May","Jun","Jul","Aug","Sep","Oct","Nov","Dec",null,"TOTAL",null,"Notes"]
["Heat supplied to network by heat receovery 1 (MWh)",null,null,null,null,null,null,null,null,null,null,null,null,null,null,null,{"$f":"SUM(D193:O193)","v":0}]
["Fuel emissions factor",null,null,{"$f":"VLOOKUP($B$191,HeatRecoveryCO2,D1)","v":{"$error":"#N/A"}},{"$error":"#N/A"},{"$error":"#N/A"},{"$error":"#N/A"},{"$error":"#N/A"},{"$error":"#N/A"},{"$error":"#N/A"},{"$error":"#N/A"},{"$error":"#N/A"},{"$error":"#N/A"},{"$error":"#N/A"},{"$error":"#N/A"}]
["Primary energy factor",null,null,{"$f":"VLOOKUP($B$191,HeatRecoveryPE,D1)","v":{"$error":"#N/A"}},{"$error":"#N/A"},{"$error":"#N/A"},{"$error":"#N/A"},{"$error":"#N/A"},{"$error":"#N/A"},{"$error":"#N/A"},{"$error":"#N/A"},{"$error":"#N/A"},{"$error":"#N/A"},{"$error":"#N/A"},{"$error":"#N/A"}]
["CO2 Emissions tonnes",null,null,{"$f":"D194*D193","v":{"$error":"#N/A"}},{"$f":"E194*E193","v":{"$error":"#N/A"}},{"$error":"#N/A"},{"$error":"#N/A"},{"$error":"#N/A"},{"$error":"#N/A"},{"$error":"#N/A"},{"$error":"#N/A"},{"$error":"#N/A"},{"$error":"#N/A"},{"$error":"#N/A"},{"$error":"#N/A"},null,{"$f":"IFERROR(SUM(D196:O196),0)","v":0},null,{"$f":"IFERROR(SUM(D196:O196)/Q193,0)","v":0}]
["Primary Energy MWh",null,null,{"$f":"D195*D193","v":{"$error":"#N/A"}},{"$f":"E195*E193","v":{"$error":"#N/A"}},{"$error":"#N/A"},{"$error":"#N/A"},{"$error":"#N/A"},{"$error":"#N/A"},{"$error":"#N/A"},{"$error":"#N/A"},{"$error":"#N/A"},{"$error":"#N/A"},{"$error":"#N/A"},{"$error":"#N/A"},null,{"$f":"IFERROR(SUM(D197:O197),0)","v":0},null,{"$f":"IFERROR(SUM(D197:O197)/Q193,0)","v":0}]
[]
["Heat Recovery without Heat Pump 2"]
["Type of heat generator","Heat recovered without heat pump"]
["Heat Recovery Source"]
[null,"Data type",null,"Jan","Feb","Mar","Apr","May","Jun","Jul","Aug","Sep","Oct","Nov","Dec",null,"TOTAL",null,"Notes"]
["Heat supplied to network by heat receovery 2 (MWh)",null,null,null,null,null,null,null,null,null,null,null,null,null,null,null,{"$f":"SUM(D203:O203)","v":0}]
["Fuel emissions factor",null,null,{"$f":"VLOOKUP($B$201,HeatRecoveryCO2,D1)","v":{"$error":"#N/A"}},{"$error":"#N/A"},{"$error":"#N/A"},{"$error":"#N/A"},{"$error":"#N/A"},{"$error":"#N/A"},{"$error":"#N/A"},{"$error":"#N/A"},{"$error":"#N/A"},{"$error":"#N/A"},{"$error":"#N/A"},{"$error":"#N/A"}]
["Primary energy factor",null,null,{"$f":"VLOOKUP($B$201,HeatRecoveryPE,D1)","v":{"$error":"#N/A"}},{"$error":"#N/A"},{"$error":"#N/A"},{"$error":"#N/A"},{"$error":"#N/A"},{"$error":"#N/A"},{"$error":"#N/A"},{"$error":"#N/A"},{"$error":"#N/A"},{"$error":"#N/A"},{"$error":"#N/A"},{"$error":"#N/A"}]
["CO2 Emissions tonnes",null,null,{"$f":"D204*D203","v":{"$error":"#N/A"}},{"$f":"E204*E203","v":{"$error":"#N/A"}},{"$error":"#N/A"},{"$error":"#N/A"},{"$error":"#N/A"},{"$error":"#N/A"},{"$error":"#N/A"},{"$error":"#N/A"},{"$error":"#N/A"},{"$error":"#N/A"},{"$error":"#N/A"},{"$error":"#N/A"},null,{"$f":"IFERROR(SUM(D206:O206),0)","v":0},null,{"$f":"IFERROR(SUM(D206:O206)/Q203,0)","v":0}]
["Primary Energy MWh",null,null,{"$f":"D205*D203","v":{"$error":"#N/A"}},{"$f":"E205*E203","v":{"$error":"#N/A"}},{"$error":"#N/A"},{"$error":"#N/A"},{"$error":"#N/A"},{"$error":"#N/A"},{"$error":"#N/A"},{"$error":"#N/A"},{"$error":"#N/A"},{"$error":"#N/A"},{"$error":"#N/A"},{"$error":"#N/A"},null,{"$f":"IFERROR(SUM(D207:O207),0)","v":0},null,{"$f":"IFERROR(SUM(D207:O207)/Q203,0)","v":0}]
[]
["Heat Recovery without Heat Pump 3"]
["Type of heat generator","Heat recovered without heat pump"]
["Heat Recovery Source"]
[null,"Data type",null,"Jan","Feb","Mar","Apr","May","Jun","Jul","Aug","Sep","Oct","Nov","Dec",null,"TOTAL",null,"Notes"]
["Heat supplied to network by heat recovery 3 (MWh)","Metered",null,null,null,null,null,null,null,null,null,null,null,null,null,null,{"$f":"SUM(D213:O213)","v":0}]
["Fuel emissions factor",null,null,{"$f":"VLOOKUP($B$211,HeatRecoveryCO2,D1)","v":{"$error":"#N/A"}},{"$error":"#N/A"},{"$error":"#N/A"},{"$error":"#N/A"},{"$error":"#N/A"},{"$error":"#N/A"},{"$error":"#N/A"},{"$error":"#N/A"},{"$error":"#N/A"},{"$error":"#N/A"},{"$error":"#N/A"},{"$error":"#N/A"}]
["Primary energy factor",null,null,{"$f":"VLOOKUP($B$211,HeatRecoveryPE,D1)","v":{"$error":"#N/A"}},{"$error":"#N/A"},{"$error":"#N/A"},{"$error":"#N/A"},{"$error":"#N/A"},{"$error":"#N/A"},{"$error":"#N/A"},{"$error":"#N/A"},{"$error":"#N/A"},{"$error":"#N/A"},{"$error":"#N/A"},{"$error":"#N/A"}]
["CO2 Emissions tonnes",null,null,{"$f":"D214*D213","v":{"$error":"#N/A"}},{"$f":"E214*E213","v":{"$error":"#N/A"}},{"$error":"#N/A"},{"$error":"#N/A"},{"$error":"#N/A"},{"$error":"#N/A"},{"$error":"#N/A"},{"$error":"#N/A"},{"$error":"#N/A"},{"$error":"#N/A"},{"$error":"#N/A"},{"$error":"#N/A"},null,{"$f":"IFERROR(SUM(D216:O216),0)","v":0},null,{"$f":"IFERROR(SUM(D216:O216)/Q213,0)","v":0}]
["Primary Energy MWh",null,null,{"$f":"D215*D213","v":{"$error":"#N/A"}},{"$f":"E215*E213","v":{"$error":"#N/A"}},{"$error":"#N/A"},{"$error":"#N/A"},{"$error":"#N/A"},{"$error":"#N/A"},{"$error":"#N/A"},{"$error":"#N/A"},{"$error":"#N/A"},{"$error":"#N/A"},{"$error":"#N/A"},{"$error":"#N/A"},null,{"$f":"IFERROR(SUM(D217:O217),0)","v":0},null,{"$f":"IFERROR(SUM(D217:O217)/Q213,0)","v":0}]
[]
["Heat Recovery without Heat Pump 4"]
["Type of heat generator","Heat recovered without heat pump"]
["Heat Recovery Source"]
[null,"Data type",null,"Jan","Feb","Mar","Apr","May","Jun","Jul","Aug","Sep","Oct","Nov","Dec",null,"TOTAL",null,"Notes"]
["Heat supplied to network by heat recovery 4 (MWh)",null,null,null,null,null,null,null,null,null,null,null,null,null,null,null,{"$f":"SUM(D223:O223)","v":0}]
["Fuel emissions factor",null,null,{"$f":"VLOOKUP($B$221,HeatRecoveryCO2,D1)","v":{"$error":"#N/A"}},{"$error":"#N/A"},{"$error":"#N/A"},{"$error":"#N/A"},{"$error":"#N/A"},{"$error":"#N/A"},{"$error":"#N/A"},{"$error":"#N/A"},{"$error":"#N/A"},{"$error":"#N/A"},{"$error":"#N/A"},{"$error":"#N/A"}]
["Primary energy factor",null,null,{"$f":"VLOOKUP($B$221,HeatRecoveryPE,D1)","v":{"$error":"#N/A"}},{"$error":"#N/A"},{"$error":"#N/A"},{"$error":"#N/A"},{"$error":"#N/A"},{"$error":"#N/A"},{"$error":"#N/A"},{"$error":"#N/A"},{"$error":"#N/A"},{"$error":"#N/A"},{"$error":"#N/A"},{"$error":"#N/A"}]
["CO2 Emissions tonnes",null,null,{"$f":"D224*D223","v":{"$error":"#N/A"}},{"$f":"E224*E223","v":{"$error":"#N/A"}},{"$error":"#N/A"},{"$error":"#N/A"},{"$error":"#N/A"},{"$error":"#N/A"},{"$error":"#N/A"},{"$error":"#N/A"},{"$error":"#N/A"},{"$error":"#N/A"},{"$error":"#N/A"},{"$error":"#N/A"},null,{"$f":"IFERROR(SUM(D226:O226),0)","v":0},null,{"$f":"IFERROR(SUM(D226:O226)/Q223,0)","v":0}]
["Primary Energy MWh",null,null,{"$f":"D225*D223","v":{"$error":"#N/A"}},{"$f":"E225*E223","v":{"$error":"#N/A"}},{"$error":"#N/A"},{"$error":"#N/A"},{"$error":"#N/A"},{"$error":"#N/A"},{"$error":"#N/A"},{"$error":"#N/A"},{"$error":"#N/A"},{"$error":"#N/A"},{"$error":"#N/A"},{"$error":"#N/A"},null,{"$f":"IFERROR(SUM(D227:O227),0)","v":0},null,{"$f":"IFERROR(SUM(D227:O227)/Q223,0)","v":0}]
[]
["Heat Recovery without Heat Pump 5"]
["Type of heat generator","Heat recovered without heat pump"]
["Heat Recovery Source"]
[null,"Data type",null,"Jan","Feb","Mar","Apr","May","Jun","Jul","Aug","Sep","Oct","Nov","Dec",null,"TOTAL",null,"Notes"]
["Heat supplied to network by heat recovery 5 (MWh)",null,null,null,null,null,null,null,null,null,null,null,null,null,null,null,{"$f":"SUM(D233:O233)","v":0}]
["Fuel emissions factor",null,null,{"$f":"VLOOKUP($B$221,HeatRecoveryCO2,D1)","v":{"$error":"#N/A"}},{"$error":"#N/A"},{"$error":"#N/A"},{"$error":"#N/A"},{"$error":"#N/A"},{"$error":"#N/A"},{"$error":"#N/A"},{"$error":"#N/A"},{"$error":"#N/A"},{"$error":"#N/A"},{"$error":"#N/A"},{"$error":"#N/A"}]
["Primary energy factor",null,null,{"$f":"VLOOKUP($B$221,HeatRecoveryPE,D1)","v":{"$error":"#N/A"}},{"$error":"#N/A"},{"$error":"#N/A"},{"$error":"#N/A"},{"$error":"#N/A"},{"$error":"#N/A"},{"$error":"#N/A"},{"$error":"#N/A"},{"$error":"#N/A"},{"$error":"#N/A"},{"$error":"#N/A"},{"$error":"#N/A"}]
["CO2 Emissions tonnes",null,null,{"$f":"D234*D233","v":{"$error":"#N/A"}},{"$f":"E234*E233","v":{"$error":"#N/A"}},{"$error":"#N/A"},{"$error":"#N/A"},{"$error":"#N/A"},{"$error":"#N/A"},{"$error":"#N/A"},{"$error":"#N/A"},{"$error":"#N/A"},{"$error":"#N/A"},{"$error":"#N/A"},{"$error":"#N/A"},null,{"$f":"IFERROR(SUM(D236:O236),0)","v":0},null,{"$f":"IFERROR(SUM(D236:O236)/Q233,0)","v":0}]
["Primary Energy MWh",null,null,{"$f":"D235*D233","v":{"$error":"#N/A"}},{"$f":"E235*E233","v":{"$error":"#N/A"}},{"$error":"#N/A"},{"$error":"#N/A"},{"$error":"#N/A"},{"$error":"#N/A"},{"$error":"#N/A"},{"$error":"#N/A"},{"$error":"#N/A"},{"$error":"#N/A"},{"$error":"#N/A"},{"$error":"#N/A"},null,{"$f":"IFERROR(SUM(D237:O237),0)","v":0},null,{"$f":"IFERROR(SUM(D237:O237)/Q233,0)","v":0}]
[]
["Boiler Plant 1"]
["Type of heat generator","Boilers"]
["Type of fuel used"]
[null,null,null,"Jan","Feb","Mar","Apr","May","Jun","Jul","Aug","Sep","Oct","Nov","Dec",null,"TOTAL",null,"Notes"]
["Heat supplied to network by Boiler Plant  1 (MWh)","Data type",null,null,null,null,null,null,null,null,null,null,null,null,null,null,{"$f":"SUM(D243:O243)","v":0}]
["Energy used by Boiler Plant 1 (MWh)","Metered",null,null,null,null,null,null,null,null,null,null,null,null,null,null,{"$f":"SUM(D244:O244)","v":0}]
["Heat efficiency",null,null,{"$f":"D243/D244","v":{"$error":"#DIV/0!"}},{"$error":"#DIV/0!"},{"$error":"#DIV/0!"},{"$error":"#DIV/0!"},{"$error":"#DIV/0!"},{"$error":"#DIV/0!"},{"$error":"#DIV/0!"},{"$error":"#DIV/0!"},{"$error":"#DIV/0!"},{"$error":"#DIV/0!"},{"$error":"#DIV/0!"},{"$error":"#DIV/0!"},null,{"$f":"Q243/Q244","v":{"$error":"#DIV/0!"}}]
["Fuel emissions factor",null,null,{"$f":"VLOOKUP($B$241,FuelCO2Factors,D1)","v":{"$error":"#N/A"}},{"$error":"#N/A"},{"$error":"#N/A"},{"$error":"#N/A"},{"$error":"#N/A"},{"$error":"#N/A"},{"$error":"#N/A"},{"$error":"#N/A"},{"$error":"#N/A"},{"$error":"#N/A"},{"$error":"#N/A"},{"$error":"#N/A"}]
["Primary energy factor",null,null,{"$f":"VLOOKUP($B$241,FuelPEFactors,D1)","v":{"$error":"#N/A"}},{"$error":"#N/A"},{"$error":"#N/A"},{"$error":"#N/A"},{"$error":"#N/A"},{"$error":"#N/A"},{"$error":"#N/A"},{"$error":"#N/A"},{"$error":"#N/A"},{"$error":"#N/A"},{"$error":"#N/A"},{"$error":"#N/A"}]
["CO2 Emissions tonnes",null,null,{"$f":"D246*D244","v":{"$error":"#N/A"}},{"$error":"#N/A"},{"$error":"#N/A"},{"$error":"#N/A"},{"$error":"#N/A"},{"$error":"#N/A"},{"$error":"#N/A"},{"$error":"#N/A"},{"$error":"#N/A"},{"$error":"#N/A"},{"$error":"#N/A"},{"$error":"#N/A"},null,{"$f":"IFERROR(SUM(D248:O248),0)","v":0},null,{"$f":"IFERROR(SUM(D248:O248)/Q243,0)","v":0}]
["Primary Energy MWh",null,null,{"$f":"D247*D244","v":{"$error":"#N/A"}},{"$error":"#N/A"},{"$error":"#N/A"},{"$error":"#N/A"},{"$error":"#N/A"},{"$error":"#N/A"},{"$error":"#N/A"},{"$error":"#N/A"},{"$error":"#N/A"},{"$error":"#N/A"},{"$error":"#N/A"},{"$error":"#N/A"},null,{"$f":"IFERROR(SUM(D249:O249),0)","v":0},null,{"$f":"IFERROR(SUM(D249:O249)/Q243,0)","v":0}]
[]
["Boiler Plant 2"]
["Type of heat generator","Boilers"]
["Type of fuel used"]
[null,null,null,"Jan","Feb","Mar","Apr","May","Jun","Jul","Aug","Sep","Oct","Nov","Dec",null,"TOTAL",null,"Notes"]
["Heat supplied to network by Boiler Plant  2 (MWh)","Data type",null,null,null,null,null,null,null,null,null,null,null,null,null,null,{"$f":"SUM(D255:O255)","v":0}]
["Energy used by Boiler Plant 2 (MWh)",null,null,null,null,null,null,null,null,null,null,null,null,null,null,null,{"$f":"SUM(D256:O256)","v":0}]
["Heat efficiency",null,null,{"$f":"D255/D256","v":{"$error":"#DIV/0!"}},{"$error":"#DIV/0!"},{"$error":"#DIV/0!"},{"$error":"#DIV/0!"},{"$error":"#DIV/0!"},{"$error":"#DIV/0!"},{"$error":"#DIV/0!"},{"$error":"#DIV/0!"},{"$error":"#DIV/0!"},{"$error":"#DIV/0!"},{"$error":"#DIV/0!"},{"$error":"#DIV/0!"},null,{"$f":"Q255/Q256","v":{"$error":"#DIV/0!"}}]
["Fuel emissions factor",null,null,{"$f":"VLOOKUP($B$253,FuelCO2Factors,D1)","v":{"$error":"#N/A"}},{"$error":"#N/A"},{"$error":"#N/A"},{"$error":"#N/A"},{"$error":"#N/A"},{"$error":"#N/A"},{"$error":"#N/A"},{"$error":"#N/A"},{"$error":"#N/A"},{"$error":"#N/A"},{"$error":"#N/A"},{"$error":"#N/A"}]
["Primary energy factor",null,null,{"$f":"VLOOKUP($B$253,FuelPEFactors,D1)","v":{"$error":"#N/A"}},{"$error":"#N/A"},{"$error":"#N/A"},{"$error":"#N/A"},{"$error":"#N/A"},{"$error":"#N/A"},{"$error":"#N/A"},{"$error":"#N/A"},{"$error":"#N/A"},{"$error":"#N/A"},{"$error":"#N/A"},{"$error":"#N/A"}]
["CO2 Emissions tonnes",null,null,{"$f":"D258*D256","v":{"$error":"#N/A"}},{"$error":"#N/A"},{"$error":"#N/A"},{"$error":"#N/A"},{"$error":"#N/A"},{"$error":"#N/A"},{"$error":"#N/A"},{"$error":"#N/A"},{"$error":"#N/A"},{"$error":"#N/A"},{"$error":"#N/A"},{"$error":"#N/A"},null,{"$f":"IFERROR(SUM(D260:O260),0)","v":0},null,{"$f":"IFERROR(SUM(D260:O260)/Q255,0)","v":0}]
["Primary Energy MWh",null,null,{"$f":"D259*D256","v":{"$error":"#N/A"}},{"$error":"#N/A"},{"$error":"#N/A"},{"$error":"#N/A"},{"$error":"#N/A"},{"$error":"#N/A"},{"$error":"#N/A"},{"$error":"#N/A"},{"$error":"#N/A"},{"$error":"#N/A"},{"$error":"#N/A"},{"$error":"#N/A"},null,{"$f":"IFERROR(SUM(D261:O261),0)","v":0},null,{"$f":"IFERROR(SUM(D261:O261)/Q255,0)","v":0}]
[]
["Boiler Plant 3"]
["Type of heat generator","Boilers"]
["Type of fuel used"]
[null,null,null,"Jan","Feb","Mar","Apr","May","Jun","Jul","Aug","Sep","Oct","Nov","Dec",null,"TOTAL",null,"Notes"]
["Heat supplied to network by Boiler Plant  3 (MWh)","Data type",null,null,null,null,null,null,null,null,null,null,null,null,null,null,{"$f":"SUM(D267:O267)","v":0}]
["Energy used by Boiler Plant 3 (MWh)",null,null,null,null,null,null,null,null,null,null,null,null,null,null,null,{"$f":"SUM(D268:O268)","v":0}]
["Heat efficiency",null,null,{"$f":"D267/D268","v":{"$error":"#DIV/0!"}},{"$error":"#DIV/0!"},{"$error":"#DIV/0!"},{"$error":"#DIV/0!"},{"$error":"#DIV/0!"},{"$error":"#DIV/0!"},{"$error":"#DIV/0!"},{"$error":"#DIV/0!"},{"$error":"#DIV/0!"},{"$error":"#DIV/0!"},{"$error":"#DIV/0!"},{"$error":"#DIV/0!"},null,{"$f":"Q267/Q268","v":{"$error":"#DIV/0!"}}]
["Fuel emissions factor",null,null,{"$f":"VLOOKUP($B$265,FuelCO2Factors,D1)","v":{"$error":"#N/A"}},{"$error":"#N/A"},{"$error":"#N/A"},{"$error":"#N/A"},{"$error":"#N/A"},{"$error":"#N/A"},{"$error":"#N/A"},{"$error":"#N/A"},{"$error":"#N/A"},{"$error":"#N/A"},{"$error":"#N/A"},{"$error":"#N/A"}]
["Primary energy factor",null,null,{"$f":"VLOOKUP($B$265,FuelPEFactors,D1)","v":{"$error":"#N/A"}},{"$error":"#N/A"},{"$error":"#N/A"},{"$error":"#N/A"},{"$error":"#N/A"},{"$error":"#N/A"},{"$error":"#N/A"},{"$error":"#N/A"},{"$error":"#N/A"},{"$error":"#N/A"},{"$error":"#N/A"},{"$error":"#N/A"}]
["CO2 Emissions tonnes",null,null,{"$f":"D270*D268","v":{"$error":"#N/A"}},{"$error":"#N/A"},{"$error":"#N/A"},{"$error":"#N/A"},{"$error":"#N/A"},{"$error":"#N/A"},{"$error":"#N/A"},{"$error":"#N/A"},{"$error":"#N/A"},{"$error":"#N/A"},{"$error":"#N/A"},{"$error":"#N/A"},null,{"$f":"IFERROR(SUM(D272:O272),0)","v":0},null,{"$f":"IFERROR(SUM(D272:O272)/Q267,0)","v":0}]
["Primary Energy MWh",null,null,{"$f":"D271*D268","v":{"$error":"#N/A"}},{"$error":"#N/A"},{"$error":"#N/A"},{"$error":"#N/A"},{"$error":"#N/A"},{"$error":"#N/A"},{"$error":"#N/A"},{"$error":"#N/A"},{"$error":"#N/A"},{"$error":"#N/A"},{"$error":"#N/A"},{"$error":"#N/A"},null,{"$f":"IFERROR(SUM(D273:O273),0)","v":0},null,{"$f":"IFERROR(SUM(D273:O273)/Q267,0)","v":0}]
[]
["Boiler Plant 4"]
["Type of heat generator","Boilers"]
["Type of fuel used"]
[null,null,null,"Jan","Feb","Mar","Apr","May","Jun","Jul","Aug","Sep","Oct","Nov","Dec",null,"TOTAL",null,"Notes"]
["Heat supplied to network by Boiler Plant  4 (MWh)","Data type",null,null,null,null,null,null,null,null,null,null,null,null,null,null,{"$f":"SUM(D279:O279)","v":0}]
["Energy used by Boiler Plant 4 (MWh)",null,null,null,null,null,null,null,null,null,null,null,null,null,null,null,{"$f":"SUM(D280:O280)","v":0}]
["Heat efficiency",null,null,{"$f":"D279/D280","v":{"$error":"#DIV/0!"}},{"$error":"#DIV/0!"},{"$error":"#DIV/0!"},{"$error":"#DIV/0!"},{"$error":"#DIV/0!"},{"$error":"#DIV/0!"},{"$error":"#DIV/0!"},{"$error":"#DIV/0!"},{"$error":"#DIV/0!"},{"$error":"#DIV/0!"},{"$error":"#DIV/0!"},{"$error":"#DIV/0!"},null,{"$f":"Q279/Q280","v":{"$error":"#DIV/0!"}}]
["Fuel emissions factor",null,null,{"$f":"VLOOKUP($B$277,FuelCO2Factors,D1)","v":{"$error":"#N/A"}},{"$error":"#N/A"},{"$error":"#N/A"},{"$error":"#N/A"},{"$error":"#N/A"},{"$error":"#N/A"},{"$error":"#N/A"},{"$error":"#N/A"},{"$error":"#N/A"},{"$error":"#N/A"},{"$error":"#N/A"},{"$error":"#N/A"}]
["Primary energy factor",null,null,{"$f":"VLOOKUP($B$277,FuelPEFactors,D1)","v":{"$error":"#N/A"}},{"$error":"#N/A"},{"$error":"#N/A"},{"$error":"#N/A"},{"$error":"#N/A"},{"$error":"#N/A"},{"$error":"#N/A"},{"$error":"#N/A"},{"$error":"#N/A"},{"$error":"#N/A"},{"$error":"#N/A"},{"$error":"#N/A"}]
["CO2 Emissions tonnes",null,null,{"$f":"D282*D280","v":{"$error":"#N/A"}},{"$error":"#N/A"},{"$error":"#N/A"},{"$error":"#N/A"},{"$error":"#N/A"},{"$error":"#N/A"},{"$error":"#N/A"},{"$error":"#N/A"},{"$error":"#N/A"},{"$error":"#N/A"},{"$error":"#N/A"},{"$error":"#N/A"},null,{"$f":"IFERROR(SUM(D284:O284),0)","v":0},null,{"$f":"IFERROR(SUM(D284:O284)/Q279,0)","v":0}]
["Primary Energy MWh",null,null,{"$f":"D283*D280","v":{"$error":"#N/A"}},{"$error":"#N/A"},{"$error":"#N/A"},{"$error":"#N/A"},{"$error":"#N/A"},{"$error":"#N/A"},{"$error":"#N/A"},{"$error":"#N/A"},{"$error":"#N/A"},{"$error":"#N/A"},{"$error":"#N/A"},{"$error":"#N/A"},null,{"$f":"IFERROR(SUM(D285:O285),0)","v":0},null,{"$f":"IFERROR(SUM(D285:O285)/Q279,0)","v":0}]
[]
["Boiler Plant 5"]
["Type of heat generator","Boilers"]
["Type of fuel used"]
[null,null,null,"Jan","Feb","Mar","Apr","May","Jun","Jul","Aug","Sep","Oct","Nov","Dec",null,"TOTAL",null,"Notes"]
["Heat supplied to network by Boiler Plant 5 (MWh)","Data type",null,null,null,null,null,null,null,null,null,null,null,null,null,null,{"$f":"SUM(D291:O291)","v":0}]
["Energy used by Boiler Plant 5 (MWh)",null,null,null,null,null,null,null,null,null,null,null,null,null,null,null,{"$f":"SUM(D292:O292)","v":0}]
["Heat efficiency",null,null,{"$f":"D291/D292","v":{"$error":"#DIV/0!"}},{"$error":"#DIV/0!"},{"$error":"#DIV/0!"},{"$error":"#DIV/0!"},{"$error":"#DIV/0!"},{"$error":"#DIV/0!"},{"$error":"#DIV/0!"},{"$error":"#DIV/0!"},{"$error":"#DIV/0!"},{"$error":"#DIV/0!"},{"$error":"#DIV/0!"},{"$error":"#DIV/0!"},null,{"$f":"Q291/Q292","v":{"$error":"#DIV/0!"}}]
["Fuel emissions factor",null,null,{"$f":"VLOOKUP($B$289,FuelCO2Factors,D1)","v":{"$error":"#N/A"}},{"$error":"#N/A"},{"$error":"#N/A"},{"$error":"#N/A"},{"$error":"#N/A"},{"$error":"#N/A"},{"$error":"#N/A"},{"$error":"#N/A"},{"$error":"#N/A"},{"$error":"#N/A"},{"$error":"#N/A"},{"$error":"#N/A"}]
["Primary energy factor",null,null,{"$f":"VLOOKUP($B$289,FuelPEFactors,D1)","v":{"$error":"#N/A"}},{"$error":"#N/A"},{"$error":"#N/A"},{"$error":"#N/A"},{"$error":"#N/A"},{"$error":"#N/A"},{"$error":"#N/A"},{"$error":"#N/A"},{"$error":"#N/A"},{"$error":"#N/A"},{"$error":"#N/A"},{"$error":"#N/A"}]
["CO2 Emissions tonnes",null,null,{"$f":"D294*D292","v":{"$error":"#N/A"}},{"$error":"#N/A"},{"$error":"#N/A"},{"$error":"#N/A"},{"$error":"#N/A"},{"$error":"#N/A"},{"$error":"#N/A"},{"$error":"#N/A"},{"$error":"#N/A"},{"$error":"#N/A"},{"$error":"#N/A"},{"$error":"#N/A"},null,{"$f":"IFERROR(SUM(D296:O296),0)","v":0},null,{"$f":"IFERROR(SUM(D296:O296)/Q291,0)","v":0}]
["Primary Energy MWh",null,null,{"$f":"D295*D292","v":{"$error":"#N/A"}},{"$error":"#N/A"},{"$error":"#N/A"},{"$error":"#N/A"},{"$error":"#N/A"},{"$error":"#N/A"},{"$error":"#N/A"},{"$error":"#N/A"},{"$error":"#N/A"},{"$error":"#N/A"},{"$error":"#N/A"},{"$error":"#N/A"},null,{"$f":"IFERROR(SUM(D297:O297),0)","v":0},null,{"$f":"IFERROR(SUM(D297:O297)/Q291,0)","v":0}]
[]
["Electricity used for pumping"]
[]
[null,"Data type",null,"Jan (MWh)","Feb (MWh)","Mar (MWh)","Apr (MWh)","May (MWh)","Jun (MWh)","Jul (MWh)","Aug (MWh)","Sep (MWh)","Oct (MWh)","Nov (MWh)","Dec (MWh)",null,"TOTAL",null,"Notes"]
["Electricity used for pumping",null,null,null,null,null,null,null,null,null,null,null,null,null,null,null,{"$f":"IFERROR(SUM(D302:O302),0)","v":0}]
[]
[]
["Pumping electricity allocated to domestic",null,null,{"$f":"D302*('Heat supplied (EC1)'!$AD$15/'Heat supplied (EC1)'!$AD$10)","v":{"$error":"#DIV/0!"}},{"$f":"E302*('Heat supplied (EC1)'!$AD$15/'Heat supplied (EC1)'!$AD$10)","v":{"$error":"#DIV/0!"}},{"$f":"F302*('Heat supplied (EC1)'!$AD$15/'Heat supplied (EC1)'!$AD$10)","v":{"$error":"#DIV/0!"}},{"$f":"G302*('Heat supplied (EC1)'!$AD$15/'Heat supplied (EC1)'!$AD$10)","v":{"$error":"#DIV/0!"}},{"$f":"H302*('Heat supplied (EC1)'!$AD$15/'Heat supplied (EC1)'!$AD$10)","v":{"$error":"#DIV/0!"}},{"$f":"I302*('Heat supplied (EC1)'!$AD$15/'Heat supplied (EC1)'!$AD$10)","v":{"$error":"#DIV/0!"}},{"$f":"J302*('Heat supplied (EC1)'!$AD$15/'Heat supplied (EC1)'!$AD$10)","v":{"$error":"#DIV/0!"}},{"$f":"K302*('Heat supplied (EC1)'!$AD$15/'Heat supplied (EC1)'!$AD$10)","v":{"$error":"#DIV/0!"}},{"$f":"L302*('Heat supplied (EC1)'!$AD$15/'Heat supplied (EC1)'!$AD$10)","v":{"$error":"#DIV/0!"}},{"$f":"M302*('Heat supplied (EC1)'!$AD$15/'Heat supplied (EC1)'!$AD$10)","v":{"$error":"#DIV/0!"}},{"$f":"N302*('Heat supplied (EC1)'!$AD$15/'Heat supplied (EC1)'!$AD$10)","v":{"$error":"#DIV/0!"}},{"$f":"O302*('Heat supplied (EC1)'!$AD$15/'Heat supplied (EC1)'!$AD$10)","v":{"$error":"#DIV/0!"}},null,{"$f":"Q302*('Heat supplied (EC1)'!$AD$15/'Heat supplied (EC1)'!$AD$10)","v":{"$error":"#DIV/0!"}}]
[]
[]
[]
[]
[]
[]
[]
[]
[]
[]
[]
[]
[]
[]
[]
[]
[]
[]
[]
[]
[]
[]
[]
[]
[]
[]
[]
[]
[]
[null,"Metered"]
[null,"Estimated"]
[]
[]
[]
[]
[]
[]
[]
[]
[]
[]
[]
[]
[]
[]
[]
[]
[]
[]
[]
[]
[]
[]
[]
[]
[]
[null,null,null,"Jan","Feb","Mar","Apr","May","Jun","Jul","Aug","Sep","Oct","Nov","Dec",null,null,"p/kWh"]
[null,null,"CHP",{"$f":"D45+D63+D81+D99+D117","v":0},{"$f":"E45+E63+E81+E99+E117","v":0},0,0,0,0,0,0,0,0,0,0,null,0,3.11,{"$f":"Q363*R363","v":0}]
[null,null,"Heat Pump",{"$f":"D133+D145+D157+D169+D181","v":0},{"$f":"E133+E145+E157+E169+E181","v":0},0,0,0,0,0,0,0,0,0,0,null,{"$f":"Q133+Q145+Q157+Q169+Q181","v":0},4.4400000000000004]
[null,null,"Heat Recovered without Heat Pump",{"$f":"D193+D203+D213+D223+D233","v":0},{"$f":"E193+E203+E213+E223+E233","v":0},0,0,0,0,0,0,0,0,0,0,null,{"$f":"Q193+Q203+Q213+Q223+Q233","v":0},4.4400000000000004]
[null,null,"Boiler Plant",{"$f":"D243+D255+D267+D279+D291","v":0},{"$f":"E243+E255+E267+E279+E291","v":0},0,0,0,0,0,0,0,0,0,0,null,{"$f":"Q243+Q255+Q267+Q279+Q291","v":0},4.4400000000000004]
[null,null,null,null,null,null,null,null,null,null,null,null,null,null,null,null,{"$f":"SUM(Q363:Q366)","v":0},{"$f":"(Q363*R363+Q364*R364+Q365*R365+Q366*R366)/Q367","v":{"$error":"#DIV/0!"}}]
[]
[]
[]
[]
[]
[]
[null,null,null,"Jan","Feb","Mar","Apr","May","Jun","Jul","Aug","Sep","Oct","Nov","Dec"]
[null,null,"TOTAL heat supplied to customers",{"$f":"'Heat supplied (EC1)'!Q9","v":0},{"$f":"'Heat supplied (EC1)'!R9","v":0},{"$f":"'Heat supplied (EC1)'!S9","v":0},{"$f":"'Heat supplied (EC1)'!T9","v":0},{"$f":"'Heat supplied (EC1)'!U9","v":0},{"$f":"'Heat supplied (EC1)'!V9","v":0},{"$f":"'Heat supplied (EC1)'!W9","v":0},{"$f":"'Heat supplied (EC1)'!X9","v":0},{"$f":"'Heat supplied (EC1)'!Y9","v":0},{"$f":"'Heat supplied (EC1)'!Z9","v":0},{"$f":"'Heat supplied (EC1)'!AA9","v":0},{"$f":"'Heat supplied (EC1)'!AB9","v":0}]
[null,null,{"$f":"A16","v":"TOTAL heat supplied to network"},{"$f":"D16","v":0},0,0,0,0,0,0,0,0,0,0,0]
[null,null,null,{"$f":"IF(D375>D376,\"Warning\",\"ok\")","v":"ok"},{"$f":"IF(E375>E376,\"Warning\",\"ok\")","v":"ok"},"ok","ok","ok","ok","ok","ok","ok","ok","ok","ok"]
[]
[null,null,"Monthly distribution loss factor",{"$f":"D376/D375","v":{"$error":"#DIV/0!"}},{"$f":"E376/E375","v":{"$error":"#DIV/0!"}},{"$error":"#DIV/0!"},{"$error":"#DIV/0!"},{"$error":"#DIV/0!"},{"$error":"#DIV/0!"},{"$error":"#DIV/0!"},{"$error":"#DIV/0!"},{"$error":"#DIV/0!"},{"$error":"#DIV/0!"},{"$error":"#DIV/0!"},{"$error":"#DIV/0!"}]

{"sheet":"Summary (EC1)","index":5,"n_rows":146,"n_cols":9,"rows_kept":146,"cut":false,"hidden":false,"merged":[]}
[]
["Year to which the data relates",{"$f":"'Heat supplied (EC1)'!M6","v":0}]
[]
["Total heat supplied to customers",{"$f":"'Heat supplied (EC1)'!AD9","v":0},null,"MWh/yr"]
[]
["Total heat supplied to buildings (inc secondary losses)",{"$f":"'Heat supplied (EC1)'!AD10","v":0}]
[]
["Total heat supplied to network",{"$f":"'Energy Centre(s) (EC1)'!Q16","v":0},null,"MWh/yr"]
[]
["Primary distribution loss factor",{"$f":"B8/B6","v":{"$error":"#DIV/0!"}},null,null,{"$f":"IF(B10<1,\"Distribution loss factor is incorrect\",\"greater than 1 check\")","v":{"$error":"#DIV/0!"}}]
[]
["Long term average primary distribution loss factor",{"$f":"IF(ISBLANK('Heat supplied (EC1)'!M5),\"\",'Heat supplied (EC1)'!M5)","v":""},null,null,{"$f":"IF(B12<1,\"Distribution loss factor is incorrect\",\"greater than 1 check\")","v":"greater than 1 check"}]
[]
["Total electrical energy for pumping",{"$f":"'Energy Centre(s) (EC1)'!Q302","v":0},null,"MWh/yr",{"$f":"(B14/B4)*100","v":{"$error":"#DIV/0!"}},"% of heat delivered to customers (zero if long term value used)"]
[]
["Pump electricity per unit of heat supplied to buildings",{"$f":"J5","v":0},null,"kWh/kWh"]
[]
["Emissions Factor",{"$f":"IF('Energy Centre(s) (EC1)'!J4>0,'Energy Centre(s) (EC1)'!J4,('Energy Centre(s) (EC1)'!Q54+'Energy Centre(s) (EC1)'!Q72+'Energy Centre(s) (EC1)'!Q90+'Energy Centre(s) (EC1)'!Q108+'Energy Centre(s) (EC1)'!Q126+'Energy Centre(s) (EC1)'!Q138+'Energy Centre(s) (EC1)'!Q150+'Energy Centre(s) (EC1)'!Q162+'Energy Centre(s) (EC1)'!Q174+'Energy Centre(s) (EC1)'!Q186+'Energy Centre(s) (EC1)'!Q196+'Energy Centre(s) (EC1)'!Q206+'Energy Centre(s) (EC1)'!Q216+'Energy Centre(s) (EC1)'!Q226+'Energy Centre(s) (EC1)'!Q236+'Energy Centre(s) (EC1)'!Q248+'Energy Centre(s) (EC1)'!Q260+'Energy Centre(s) (EC1)'!Q272+'Energy Centre(s) (EC1)'!Q284+'Energy Centre(s) (EC1)'!Q296)/B8)","v":{"$error":"#DIV/0!"}},null,"kg CO2 per kWh of heat supplied to Network"]
[]
["Primary energy factor",{"$f":"IF('Energy Centre(s) (EC1)'!J5>0,'Energy Centre(s) (EC1)'!J5,('Energy Centre(s) (EC1)'!Q55+'Energy Centre(s) (EC1)'!Q73+'Energy Centre(s) (EC1)'!Q91+'Energy Centre(s) (EC1)'!Q109+'Energy Centre(s) (EC1)'!Q127+'Energy Centre(s) (EC1)'!Q139+'Energy Centre(s) (EC1)'!Q151+'Energy Centre(s) (EC1)'!Q163+'Energy Centre(s) (EC1)'!Q175+'Energy Centre(s) (EC1)'!Q187+'Energy Centre(s) (EC1)'!Q197+'Energy Centre(s) (EC1)'!Q207+'Energy Centre(s) (EC1)'!Q217+'Energy Centre(s) (EC1)'!Q227+'Energy Centre(s) (EC1)'!Q237+'Energy Centre(s) (EC1)'!Q249+'Energy Centre(s) (EC1)'!Q261+'Energy Centre(s) (EC1)'!Q273+'Energy Centre(s) (EC1)'!Q285+'Energy Centre(s) (EC1)'!Q297)/B8)","v":{"$error":"#DIV/0!"}},null,"kWh of Primary Energy per kWh of heat supplied to Network"]
[]
["Weighted Average Heat Price from EC",{"$f":"IF('Energy Centre(s) (EC1)'!J6>0,'Energy Centre(s) (EC1)'!J6,'Energy Centre(s) (EC1)'!R367)","v":{"$error":"#DIV/0!"}},null,"p/kWh"]
[]
["Block Name","Block Level Secondary DLF","Overall DLF","Pumping electrical energy kWh/yr","Pumping energy factor kWh/kWh","CO2 Intensity kg CO2/kWh","Primary Energy Factor kWh/kWh","Cost of Heat p/kWh","Heat Delivered to Block MWh/yr"]
["Default New Connection",{"$f":"IF(ISBLANK('Heat supplied (EC1)'!M4),\"\",'Heat supplied (EC1)'!M4)","v":1.18},{"$f":"IFERROR($B$12*B25,\"\")","v":""},null,{"$f":"IF(OR(NOT(B16>0),ISERROR(B16)),0.02,B16)","v":0.02},{"$f":"IFERROR(C25*$B$18,\"\")","v":""},{"$f":"IFERROR(C25*$B$20,\"\")","v":""},{"$f":"IF(LEN(A25)=0,\"\",$B$22*C25)","v":{"$error":"#DIV/0!"}}]
[{"$f":"IF(ISBLANK('Heat supplied (EC1)'!A17),\"\",'Heat supplied (EC1)'!A17)","v":""},{"$f":"'Heat supplied (EC1)'!BY17","v":""},{"$f":"IFERROR(IF($B$12=\"\",$B$10*B26,$B$12*B26),\"\")","v":""},{"$f":"IF(LEN(A26)=0,\"\",$B$16*I26*1000)","v":""},{"$f":"IF(LEN(A26)=0,\"\",D26/(I26/B26)/1000)","v":""},{"$f":"IFERROR(C26*$B$18,\"\")","v":""},{"$f":"IFERROR(C26*$B$20,\"\")","v":""},{"$f":"IF(LEN(A26)=0,\"\",$B$22*C26)","v":""},{"$f":"IF(LEN(A26)=0,\"\",'Heat supplied (EC1)'!CA17)","v":""}]
[{"$f":"IF('Heat supplied (EC1)'!A18=\"\",\"\",'Heat supplied (EC1)'!A18)","v":""},{"$f":"'Heat supplied (EC1)'!BY18","v":""},{"$f":"IFERROR(IF($B$12=\"\",$B$10*B27,$B$12*B27),\"\")","v":""},{"$f":"IF(LEN(A27)=0,\"\",$B$16*I27*1000)","v":""},{"$f":"IF(LEN(A27)=0,\"\",D27/(I27/B27)/1000)","v":""},{"$f":"IFERROR(C27*$B$18,\"\")","v":""},{"$f":"IFERROR(C27*$B$20,\"\")","v":""},{"$f":"IF(LEN(A27)=0,\"\",$B$22*C27)","v":""},{"$f":"IF(LEN(A27)=0,\"\",'Heat supplied (EC1)'!CA18)","v":""}]
[{"$f":"IF('Heat supplied (EC1)'!A19=\"\",\"\",'Heat supplied (EC1)'!A19)","v":""},{"$f":"'Heat supplied (EC1)'!BY19","v":""},{"$f":"IFERROR(IF($B$12=\"\",$B$10*B28,$B$12*B28),\"\")","v":""},"",{"$f":"IF(LEN(A28)=0,\"\",D28/(I28/B28)/1000)","v":""},"","","",{"$f":"IF(LEN(A28)=0,\"\",'Heat supplied (EC1)'!CA19)","v":""}]
[{"$f":"IF('Heat supplied (EC1)'!A20=\"\",\"\",'Heat supplied (EC1)'!A20)","v":""},{"$f":"'Heat supplied (EC1)'!BY20","v":""},"","","","","","",{"$f":"IF(LEN(A29)=0,\"\",'Heat supplied (EC1)'!CA20)","v":""}]
[{"$f":"IF('Heat supplied (EC1)'!A21=\"\",\"\",'Heat supplied (EC1)'!A21)","v":""},{"$f":"'Heat supplied (EC1)'!BY21","v":""},"","","","","","",{"$f":"IF(LEN(A30)=0,\"\",'Heat supplied (EC1)'!CA21)","v":""}]
[{"$f":"IF('Heat supplied (EC1)'!A22=\"\",\"\",'Heat supplied (EC1)'!A22)","v":""},{"$f":"'Heat supplied (EC1)'!BY22","v":""},"","","","","","",{"$f":"IF(LEN(A31)=0,\"\",'Heat supplied (EC1)'!CA22)","v":""}]
[{"$f":"IF('Heat supplied (EC1)'!A23=\"\",\"\",'Heat supplied (EC1)'!A23)","v":""},{"$f":"'Heat supplied (EC1)'!BY23","v":""},"","","","","","",{"$f":"IF(LEN(A32)=0,\"\",'Heat supplied (EC1)'!CA23)","v":""}]
[{"$f":"IF('Heat supplied (EC1)'!A24=\"\",\"\",'Heat supplied (EC1)'!A24)","v":""},{"$f":"'Heat supplied (EC1)'!BY24","v":""},"","","","","","",{"$f":"IF(LEN(A33)=0,\"\",'Heat supplied (EC1)'!CA24)","v":""}]
[{"$f":"IF('Heat supplied (EC1)'!A25=\"\",\"\",'Heat supplied (EC1)'!A25)","v":""},{"$f":"'Heat supplied (EC1)'!BY25","v":""},"","","","","","",{"$f":"IF(LEN(A34)=0,\"\",'Heat supplied (EC1)'!CA25)","v":""}]
[{"$f":"IF('Heat supplied (EC1)'!A26=\"\",\"\",'Heat supplied (EC1)'!A26)","v":""},{"$f":"'Heat supplied (EC1)'!BY26","v":""},"","","","","","",{"$f":"IF(LEN(A35)=0,\"\",'Heat supplied (EC1)'!CA26)","v":""}]
[{"$f":"IF('Heat supplied (EC1)'!A27=\"\",\"\",'Heat supplied (EC1)'!A27)","v":""},{"$f":"'Heat supplied (EC1)'!BY27","v":""},"","","","","","",{"$f":"IF(LEN(A36)=0,\"\",'Heat supplied (EC1)'!CA27)","v":""}]
[{"$f":"IF('Heat supplied (EC1)'!A28=\"\",\"\",'Heat supplied (EC1)'!A28)","v":""},{"$f":"'Heat supplied (EC1)'!BY28","v":""},"","","","","","",{"$f":"IF(LEN(A37)=0,\"\",'Heat supplied (EC1)'!CA28)","v":""}]
[{"$f":"IF('Heat supplied (EC1)'!A29=\"\",\"\",'Heat supplied (EC1)'!A29)","v":""},{"$f":"'Heat supplied (EC1)'!BY29","v":""},"","","","","","",{"$f":"IF(LEN(A38)=0,\"\",'Heat supplied (EC1)'!CA29)","v":""}]
[{"$f":"IF('Heat supplied (EC1)'!A30=\"\",\"\",'Heat supplied (EC1)'!A30)","v":""},{"$f":"'Heat supplied (EC1)'!BY30","v":""},"","","","","","",{"$f":"IF(LEN(A39)=0,\"\",'Heat supplied (EC1)'!CA30)","v":""}]
[{"$f":"IF('Heat supplied (EC1)'!A31=\"\",\"\",'Heat supplied (EC1)'!A31)","v":""},{"$f":"'Heat supplied (EC1)'!BY31","v":""},"","","","","","",{"$f":"IF(LEN(A40)=0,\"\",'Heat supplied (EC1)'!CA31)","v":""}]
[{"$f":"IF('Heat supplied (EC1)'!A32=\"\",\"\",'Heat supplied (EC1)'!A32)","v":""},{"$f":"'Heat supplied (EC1)'!BY32","v":""},"","","","","","",{"$f":"IF(LEN(A41)=0,\"\",'Heat supplied (EC1)'!CA32)","v":""}]
[{"$f":"IF('Heat supplied (EC1)'!A33=\"\",\"\",'Heat supplied (EC1)'!A33)","v":""},{"$f":"'Heat supplied (EC1)'!BY33","v":""},"","","","","","",{"$f":"IF(LEN(A42)=0,\"\",'Heat supplied (EC1)'!CA33)","v":""}]
[{"$f":"IF('Heat supplied (EC1)'!A34=\"\",\"\",'Heat supplied (EC1)'!A34)","v":""},{"$f":"'Heat supplied (EC1)'!BY34","v":""},"","","","","","",{"$f":"IF(LEN(A43)=0,\"\",'Heat supplied (EC1)'!CA34)","v":""}]
[{"$f":"IF('Heat supplied (EC1)'!A35=\"\",\"\",'Heat supplied (EC1)'!A35)","v":""},{"$f":"'Heat supplied (EC1)'!BY35","v":""},"","","","","","",{"$f":"IF(LEN(A44)=0,\"\",'Heat supplied (EC1)'!CA35)","v":""}]
[{"$f":"IF('Heat supplied (EC1)'!A36=\"\",\"\",'Heat supplied (EC1)'!A36)","v":""},{"$f":"'Heat supplied (EC1)'!BY36","v":""},"","","","","","",{"$f":"IF(LEN(A45)=0,\"\",'Heat supplied (EC1)'!CA36)","v":""}]
[{"$f":"IF('Heat supplied (EC1)'!A37=\"\",\"\",'Heat supplied (EC1)'!A37)","v":""},{"$f":"'Heat supplied (EC1)'!BY37","v":""},"","","","","","",{"$f":"IF(LEN(A46)=0,\"\",'Heat supplied (EC1)'!CA37)","v":""}]
[{"$f":"IF('Heat supplied (EC1)'!A38=\"\",\"\",'Heat supplied (EC1)'!A38)","v":""},{"$f":"'Heat supplied (EC1)'!BY38","v":""},"","","","","","",{"$f":"IF(LEN(A47)=0,\"\",'Heat supplied (EC1)'!CA38)","v":""}]
[{"$f":"IF('Heat supplied (EC1)'!A39=\"\",\"\",'Heat supplied (EC1)'!A39)","v":""},{"$f":"'Heat supplied (EC1)'!BY39","v":""},"","","","","","",{"$f":"IF(LEN(A48)=0,\"\",'Heat supplied (EC1)'!CA39)","v":""}]
[{"$f":"IF('Heat supplied (EC1)'!A40=\"\",\"\",'Heat supplied (EC1)'!A40)","v":""},{"$f":"'Heat supplied (EC1)'!BY40","v":""},"","","","","","",{"$f":"IF(LEN(A49)=0,\"\",'Heat supplied (EC1)'!CA40)","v":""}]
[{"$f":"IF('Heat supplied (EC1)'!A41=\"\",\"\",'Heat supplied (EC1)'!A41)","v":""},{"$f":"'Heat supplied (EC1)'!BY41","v":""},"","","","","","",{"$f":"IF(LEN(A50)=0,\"\",'Heat supplied (EC1)'!CA41)","v":""}]
[{"$f":"IF('Heat supplied (EC1)'!A42=\"\",\"\",'Heat supplied (EC1)'!A42)","v":""},{"$f":"'Heat supplied (EC1)'!BY42","v":""},"","","","","","",{"$f":"IF(LEN(A51)=0,\"\",'Heat supplied (EC1)'!CA42)","v":""}]
[{"$f":"IF('Heat supplied (EC1)'!A43=\"\",\"\",'Heat supplied (EC1)'!A43)","v":""},{"$f":"'Heat supplied (EC1)'!BY43","v":""},"","","","","","",{"$f":"IF(LEN(A52)=0,\"\",'Heat supplied (EC1)'!CA43)","v":""}]
[{"$f":"IF('Heat supplied (EC1)'!A44=\"\",\"\",'Heat supplied (EC1)'!A44)","v":""},{"$f":"'Heat supplied (EC1)'!BY44","v":""},"","","","","","",{"$f":"IF(LEN(A53)=0,\"\",'Heat supplied (EC1)'!CA44)","v":""}]
[{"$f":"IF('Heat supplied (EC1)'!A45=\"\",\"\",'Heat supplied (EC1)'!A45)","v":""},{"$f":"'Heat supplied (EC1)'!BY45","v":""},"","","","","","",{"$f":"IF(LEN(A54)=0,\"\",'Heat supplied (EC1)'!CA45)","v":""}]
[{"$f":"IF('Heat supplied (EC1)'!A46=\"\",\"\",'Heat supplied (EC1)'!A46)","v":""},{"$f":"'Heat supplied (EC1)'!BY46","v":""},"","","","","","",{"$f":"IF(LEN(A55)=0,\"\",'Heat supplied (EC1)'!CA46)","v":""}]
[{"$f":"IF('Heat supplied (EC1)'!A47=\"\",\"\",'Heat supplied (EC1)'!A47)","v":""},{"$f":"'Heat supplied (EC1)'!BY47","v":""},"","","","","","",{"$f":"IF(LEN(A56)=0,\"\",'Heat supplied (EC1)'!CA47)","v":""}]
[{"$f":"IF('Heat supplied (EC1)'!A48=\"\",\"\",'Heat supplied (EC1)'!A48)","v":""},{"$f":"'Heat supplied (EC1)'!BY48","v":""},"","","","","","",{"$f":"IF(LEN(A57)=0,\"\",'Heat supplied (EC1)'!CA48)","v":""}]
[{"$f":"IF('Heat supplied (EC1)'!A49=\"\",\"\",'Heat supplied (EC1)'!A49)","v":""},{"$f":"'Heat supplied (EC1)'!BY49","v":""},"","","","","","",{"$f":"IF(LEN(A58)=0,\"\",'Heat supplied (EC1)'!CA49)","v":""}]
[{"$f":"IF('Heat supplied (EC1)'!A50=\"\",\"\",'Heat supplied (EC1)'!A50)","v":""},{"$f":"'Heat supplied (EC1)'!BY50","v":""},"","","","","","",{"$f":"IF(LEN(A59)=0,\"\",'Heat supplied (EC1)'!CA50)","v":""}]
[{"$f":"IF('Heat supplied (EC1)'!A51=\"\",\"\",'Heat supplied (EC1)'!A51)","v":""},{"$f":"'Heat supplied (EC1)'!BY51","v":""},"","","","","","",{"$f":"IF(LEN(A60)=0,\"\",'Heat supplied (EC1)'!CA51)","v":""}]
[{"$f":"IF('Heat supplied (EC1)'!A52=\"\",\"\",'Heat supplied (EC1)'!A52)","v":""},{"$f":"'Heat supplied (EC1)'!BY52","v":""},"","","","","","",{"$f":"IF(LEN(A61)=0,\"\",'Heat supplied (EC1)'!CA52)","v":""}]
[{"$f":"IF('Heat supplied (EC1)'!A53=\"\",\"\",'Heat supplied (EC1)'!A53)","v":""},{"$f":"'Heat supplied (EC1)'!BY53","v":""},"","","","","","",{"$f":"IF(LEN(A62)=0,\"\",'Heat supplied (EC1)'!CA53)","v":""}]
[{"$f":"IF('Heat supplied (EC1)'!A54=\"\",\"\",'Heat supplied (EC1)'!A54)","v":""},{"$f":"'Heat supplied (EC1)'!BY54","v":""},"","","","","","",{"$f":"IF(LEN(A63)=0,\"\",'Heat supplied (EC1)'!CA54)","v":""}]
[{"$f":"IF('Heat supplied (EC1)'!A55=\"\",\"\",'Heat supplied (EC1)'!A55)","v":""},{"$f":"'Heat supplied (EC1)'!BY55","v":""},"","","","","","",{"$f":"IF(LEN(A64)=0,\"\",'Heat supplied (EC1)'!CA55)","v":""}]
[{"$f":"IF('Heat supplied (EC1)'!A56=\"\",\"\",'Heat supplied (EC1)'!A56)","v":""},{"$f":"'Heat supplied (EC1)'!BY56","v":""},"","","","","","",{"$f":"IF(LEN(A65)=0,\"\",'Heat supplied (EC1)'!CA56)","v":""}]
[{"$f":"IF('Heat supplied (EC1)'!A57=\"\",\"\",'Heat supplied (EC1)'!A57)","v":""},{"$f":"'Heat supplied (EC1)'!BY57","v":""},"","","","","","",{"$f":"IF(LEN(A66)=0,\"\",'Heat supplied (EC1)'!CA57)","v":""}]
[{"$f":"IF('Heat supplied (EC1)'!A58=\"\",\"\",'Heat supplied (EC1)'!A58)","v":""},{"$f":"'Heat supplied (EC1)'!BY58","v":""},"","","","","","",{"$f":"IF(LEN(A67)=0,\"\",'Heat supplied (EC1)'!CA58)","v":""}]
[{"$f":"IF('Heat supplied (EC1)'!A59=\"\",\"\",'Heat supplied (EC1)'!A59)","v":""},{"$f":"'Heat supplied (EC1)'!BY59","v":""},"","","","","","",{"$f":"IF(LEN(A68)=0,\"\",'Heat supplied (EC1)'!CA59)","v":""}]
[{"$f":"IF('Heat supplied (EC1)'!A60=\"\",\"\",'Heat supplied (EC1)'!A60)","v":""},{"$f":"'Heat supplied (EC1)'!BY60","v":""},"","","","","","",{"$f":"IF(LEN(A69)=0,\"\",'Heat supplied (EC1)'!CA60)","v":""}]
[{"$f":"IF('Heat supplied (EC1)'!A61=\"\",\"\",'Heat supplied (EC1)'!A61)","v":""},{"$f":"'Heat supplied (EC1)'!BY61","v":""},"","","","","","",{"$f":"IF(LEN(A70)=0,\"\",'Heat supplied (EC1)'!CA61)","v":""}]
[{"$f":"IF('Heat supplied (EC1)'!A62=\"\",\"\",'Heat supplied (EC1)'!A62)","v":""},{"$f":"'Heat supplied (EC1)'!BY62","v":""},"","","","","","",{"$f":"IF(LEN(A71)=0,\"\",'Heat supplied (EC1)'!CA62)","v":""}]
[{"$f":"IF('Heat supplied (EC1)'!A63=\"\",\"\",'Heat supplied (EC1)'!A63)","v":""},{"$f":"'Heat supplied (EC1)'!BY63","v":""},"","","","","","",{"$f":"IF(LEN(A72)=0,\"\",'Heat supplied (EC1)'!CA63)","v":""}]
[{"$f":"IF('Heat supplied (EC1)'!A64=\"\",\"\",'Heat supplied (EC1)'!A64)","v":""},{"$f":"'Heat supplied (EC1)'!BY64","v":""},"","","","","","",{"$f":"IF(LEN(A73)=0,\"\",'Heat supplied (EC1)'!CA64)","v":""}]
[{"$f":"IF('Heat supplied (EC1)'!A65=\"\",\"\",'Heat supplied (EC1)'!A65)","v":""},{"$f":"'Heat supplied (EC1)'!BY65","v":""},"","","","","","",{"$f":"IF(LEN(A74)=0,\"\",'Heat supplied (EC1)'!CA65)","v":""}]
[{"$f":"IF('Heat supplied (EC1)'!A66=\"\",\"\",'Heat supplied (EC1)'!A66)","v":""},{"$f":"'Heat supplied (EC1)'!BY66","v":""},"","","","","","",{"$f":"IF(LEN(A75)=0,\"\",'Heat supplied (EC1)'!CA66)","v":""}]
[{"$f":"IF('Heat supplied (EC1)'!A67=\"\",\"\",'Heat supplied (EC1)'!A67)","v":""},{"$f":"'Heat supplied (EC1)'!BY67","v":""},"","","","","","",{"$f":"IF(LEN(A76)=0,\"\",'Heat supplied (EC1)'!CA67)","v":""}]
[{"$f":"IF('Heat supplied (EC1)'!A68=\"\",\"\",'Heat supplied (EC1)'!A68)","v":""},{"$f":"'Heat supplied (EC1)'!BY68","v":""},"","","","","","",{"$f":"IF(LEN(A77)=0,\"\",'Heat supplied (EC1)'!CA68)","v":""}]
[{"$f":"IF('Heat supplied (EC1)'!A69=\"\",\"\",'Heat supplied (EC1)'!A69)","v":""},{"$f":"'Heat supplied (EC1)'!BY69","v":""},"","","","","","",{"$f":"IF(LEN(A78)=0,\"\",'Heat supplied (EC1)'!CA69)","v":""}]
[{"$f":"IF('Heat supplied (EC1)'!A70=\"\",\"\",'Heat supplied (EC1)'!A70)","v":""},{"$f":"'Heat supplied (EC1)'!BY70","v":""},"","","","","","",{"$f":"IF(LEN(A79)=0,\"\",'Heat supplied (EC1)'!CA70)","v":""}]
[{"$f":"IF('Heat supplied (EC1)'!A71=\"\",\"\",'Heat supplied (EC1)'!A71)","v":""},{"$f":"'Heat supplied (EC1)'!BY71","v":""},"","","","","","",{"$f":"IF(LEN(A80)=0,\"\",'Heat supplied (EC1)'!CA71)","v":""}]
[{"$f":"IF('Heat supplied (EC1)'!A72=\"\",\"\",'Heat supplied (EC1)'!A72)","v":""},{"$f":"'Heat supplied (EC1)'!BY72","v":""},"","","","","","",{"$f":"IF(LEN(A81)=0,\"\",'Heat supplied (EC1)'!CA72)","v":""}]
[{"$f":"IF('Heat supplied (EC1)'!A73=\"\",\"\",'Heat supplied (EC1)'!A73)","v":""},{"$f":"'Heat supplied (EC1)'!BY73","v":""},"","","","","","",{"$f":"IF(LEN(A82)=0,\"\",'Heat supplied (EC1)'!CA73)","v":""}]
[{"$f":"IF('Heat supplied (EC1)'!A74=\"\",\"\",'Heat supplied (EC1)'!A74)","v":""},{"$f":"'Heat supplied (EC1)'!BY74","v":""},"","","","","","",{"$f":"IF(LEN(A83)=0,\"\",'Heat supplied (EC1)'!CA74)","v":""}]
[{"$f":"IF('Heat supplied (EC1)'!A75=\"\",\"\",'Heat supplied (EC1)'!A75)","v":""},{"$f":"'Heat supplied (EC1)'!BY75","v":""},"","","","","","",{"$f":"IF(LEN(A84)=0,\"\",'Heat supplied (EC1)'!CA75)","v":""}]
[{"$f":"IF('Heat supplied (EC1)'!A76=\"\",\"\",'Heat supplied (EC1)'!A76)","v":""},{"$f":"'Heat supplied (EC1)'!BY76","v":""},"","","","","","",{"$f":"IF(LEN(A85)=0,\"\",'Heat supplied (EC1)'!CA76)","v":""}]
[{"$f":"IF('Heat supplied (EC1)'!A77=\"\",\"\",'Heat supplied (EC1)'!A77)","v":""},{"$f":"'Heat supplied (EC1)'!BY77","v":""},"","","","","","",{"$f":"IF(LEN(A86)=0,\"\",'Heat supplied (EC1)'!CA77)","v":""}]
[{"$f":"IF('Heat supplied (EC1)'!A78=\"\",\"\",'Heat supplied (EC1)'!A78)","v":""},{"$f":"'Heat supplied (EC1)'!BY78","v":""},"","","","","","",{"$f":"IF(LEN(A87)=0,\"\",'Heat supplied (EC1)'!CA78)","v":""}]
[{"$f":"IF('Heat supplied (EC1)'!A79=\"\",\"\",'Heat supplied (EC1)'!A79)","v":""},{"$f":"'Heat supplied (EC1)'!BY79","v":""},"","","","","","",{"$f":"IF(LEN(A88)=0,\"\",'Heat supplied (EC1)'!CA79)","v":""}]
[{"$f":"IF('Heat supplied (EC1)'!A80=\"\",\"\",'Heat supplied (EC1)'!A80)","v":""},{"$f":"'Heat supplied (EC1)'!BY80","v":""},"","","","","","",{"$f":"IF(LEN(A89)=0,\"\",'Heat supplied (EC1)'!CA80)","v":""}]
[{"$f":"IF('Heat supplied (EC1)'!A81=\"\",\"\",'Heat supplied (EC1)'!A81)","v":""},{"$f":"'Heat supplied (EC1)'!BY81","v":""},"","","","","","",{"$f":"IF(LEN(A90)=0,\"\",'Heat supplied (EC1)'!CA81)","v":""}]
[{"$f":"IF('Heat supplied (EC1)'!A82=\"\",\"\",'Heat supplied (EC1)'!A82)","v":""},{"$f":"'Heat supplied (EC1)'!BY82","v":""},"",{"$f":"IF(LEN(A91)=0,\"\",$B$16*I91*1000)","v":""},"",{"$f":"IFERROR(C91*$B$18,\"\")","v":""},{"$f":"IFERROR(C91*$B$20,\"\")","v":""},{"$f":"IF(LEN(A91)=0,\"\",$B$22*C91)","v":""},{"$f":"IF(LEN(A91)=0,\"\",'Heat supplied (EC1)'!CA82)","v":""}]
[{"$f":"IF('Heat supplied (EC1)'!A83=\"\",\"\",'Heat supplied (EC1)'!A83)","v":""},{"$f":"'Heat supplied (EC1)'!BY83","v":""},{"$f":"IFERROR(IF($B$12=\"\",$B$10*B92,$B$12*B92),\"\")","v":""},"",{"$f":"IF(LEN(A92)=0,\"\",D92/(I92/B92)/1000)","v":""},"","","",{"$f":"IF(LEN(A92)=0,\"\",'Heat supplied (EC1)'!CA83)","v":""}]
[{"$f":"IF('Heat supplied (EC1)'!A84=\"\",\"\",'Heat supplied (EC1)'!A84)","v":""},{"$f":"'Heat supplied (EC1)'!BY84","v":""},"","","","","","",{"$f":"IF(LEN(A93)=0,\"\",'Heat supplied (EC1)'!CA84)","v":""}]
[{"$f":"IF('Heat supplied (EC1)'!A85=\"\",\"\",'Heat supplied (EC1)'!A85)","v":""},{"$f":"'Heat supplied (EC1)'!BY85","v":""},"","","","","","",{"$f":"IF(LEN(A94)=0,\"\",'Heat supplied (EC1)'!CA85)","v":""}]
[{"$f":"IF('Heat supplied (EC1)'!A86=\"\",\"\",'Heat supplied (EC1)'!A86)","v":""},{"$f":"'Heat supplied (EC1)'!BY86","v":""},"","","","","","",{"$f":"IF(LEN(A95)=0,\"\",'Heat supplied (EC1)'!CA86)","v":""}]
[{"$f":"IF('Heat supplied (EC1)'!A87=\"\",\"\",'Heat supplied (EC1)'!A87)","v":""},{"$f":"'Heat supplied (EC1)'!BY87","v":""},"","","","","","",{"$f":"IF(LEN(A96)=0,\"\",'Heat supplied (EC1)'!CA87)","v":""}]
[{"$f":"IF('Heat supplied (EC1)'!A88=\"\",\"\",'Heat supplied (EC1)'!A88)","v":""},{"$f":"'Heat supplied (EC1)'!BY88","v":""},"","","","","","",{"$f":"IF(LEN(A97)=0,\"\",'Heat supplied (EC1)'!CA88)","v":""}]
[{"$f":"IF('Heat supplied (EC1)'!A89=\"\",\"\",'Heat supplied (EC1)'!A89)","v":""},{"$f":"'Heat supplied (EC1)'!BY89","v":""},"","","","","","",{"$f":"IF(LEN(A98)=0,\"\",'Heat supplied (EC1)'!CA89)","v":""}]
[{"$f":"IF('Heat supplied (EC1)'!A90=\"\",\"\",'Heat supplied (EC1)'!A90)","v":""},{"$f":"'Heat supplied (EC1)'!BY90","v":""},"","","","","","",{"$f":"IF(LEN(A99)=0,\"\",'Heat supplied (EC1)'!CA90)","v":""}]
[{"$f":"IF('Heat supplied (EC1)'!A91=\"\",\"\",'Heat supplied (EC1)'!A91)","v":""},{"$f":"'Heat supplied (EC1)'!BY91","v":""},"","","","","","",{"$f":"IF(LEN(A100)=0,\"\",'Heat supplied (EC1)'!CA91)","v":""}]
[{"$f":"IF('Heat supplied (EC1)'!A92=\"\",\"\",'Heat supplied (EC1)'!A92)","v":""},{"$f":"'Heat supplied (EC1)'!BY92","v":""},"","","","","","",{"$f":"IF(LEN(A101)=0,\"\",'Heat supplied (EC1)'!CA92)","v":""}]
[{"$f":"IF('Heat supplied (EC1)'!A93=\"\",\"\",'Heat supplied (EC1)'!A93)","v":""},{"$f":"'Heat supplied (EC1)'!BY93","v":""},"","","","","","",{"$f":"IF(LEN(A102)=0,\"\",'Heat supplied (EC1)'!CA93)","v":""}]
[{"$f":"IF('Heat supplied (EC1)'!A94=\"\",\"\",'Heat supplied (EC1)'!A94)","v":""},{"$f":"'Heat supplied (EC1)'!BY94","v":""},"","","","","","",{"$f":"IF(LEN(A103)=0,\"\",'Heat supplied (EC1)'!CA94)","v":""}]
[{"$f":"IF('Heat supplied (EC1)'!A95=\"\",\"\",'Heat supplied (EC1)'!A95)","v":""},{"$f":"'Heat supplied (EC1)'!BY95","v":""},"","","","","","",{"$f":"IF(LEN(A104)=0,\"\",'Heat supplied (EC1)'!CA95)","v":""}]
[{"$f":"IF('Heat supplied (EC1)'!A96=\"\",\"\",'Heat supplied (EC1)'!A96)","v":""},{"$f":"'Heat supplied (EC1)'!BY96","v":""},"","","","","","",{"$f":"IF(LEN(A105)=0,\"\",'Heat supplied (EC1)'!CA96)","v":""}]
[{"$f":"IF('Heat supplied (EC1)'!A97=\"\",\"\",'Heat supplied (EC1)'!A97)","v":""},{"$f":"'Heat supplied (EC1)'!BY97","v":""},"","","","","","",{"$f":"IF(LEN(A106)=0,\"\",'Heat supplied (EC1)'!CA97)","v":""}]
[{"$f":"IF('Heat supplied (EC1)'!A98=\"\",\"\",'Heat supplied (EC1)'!A98)","v":""},{"$f":"'Heat supplied (EC1)'!BY98","v":""},"","","","","","",{"$f":"IF(LEN(A107)=0,\"\",'Heat supplied (EC1)'!CA98)","v":""}]
[{"$f":"IF('Heat supplied (EC1)'!A99=\"\",\"\",'Heat supplied (EC1)'!A99)","v":""},{"$f":"'Heat supplied (EC1)'!BY99","v":""},"","","","","","",{"$f":"IF(LEN(A108)=0,\"\",'Heat supplied (EC1)'!CA99)","v":""}]
[{"$f":"IF('Heat supplied (EC1)'!A100=\"\",\"\",'Heat supplied (EC1)'!A100)","v":""},{"$f":"'Heat supplied (EC1)'!BY100","v":""},"","","","","","",{"$f":"IF(LEN(A109)=0,\"\",'Heat supplied (EC1)'!CA100)","v":""}]
[{"$f":"IF('Heat supplied (EC1)'!A101=\"\",\"\",'Heat supplied (EC1)'!A101)","v":""},{"$f":"'Heat supplied (EC1)'!BY101","v":""},"","","","","","",{"$f":"IF(LEN(A110)=0,\"\",'Heat supplied (EC1)'!CA101)","v":""}]
[{"$f":"IF('Heat supplied (EC1)'!A102=\"\",\"\",'Heat supplied (EC1)'!A102)","v":""},{"$f":"'Heat supplied (EC1)'!BY102","v":""},"","","","","","",{"$f":"IF(LEN(A111)=0,\"\",'Heat supplied (EC1)'!CA102)","v":""}]
[{"$f":"IF('Heat supplied (EC1)'!A103=\"\",\"\",'Heat supplied (EC1)'!A103)","v":""},{"$f":"'Heat supplied (EC1)'!BY103","v":""},"","","","","","",{"$f":"IF(LEN(A112)=0,\"\",'Heat supplied (EC1)'!CA103)","v":""}]
[{"$f":"IF('Heat supplied (EC1)'!A104=\"\",\"\",'Heat supplied (EC1)'!A104)","v":""},{"$f":"'Heat supplied (EC1)'!BY104","v":""},"","","","","","",{"$f":"IF(LEN(A113)=0,\"\",'Heat supplied (EC1)'!CA104)","v":""}]
[{"$f":"IF('Heat supplied (EC1)'!A105=\"\",\"\",'Heat supplied (EC1)'!A105)","v":""},{"$f":"'Heat supplied (EC1)'!BY105","v":""},"","","","","","",{"$f":"IF(LEN(A114)=0,\"\",'Heat supplied (EC1)'!CA105)","v":""}]
[{"$f":"IF('Heat supplied (EC1)'!A106=\"\",\"\",'Heat supplied (EC1)'!A106)","v":""},{"$f":"'Heat supplied (EC1)'!BY106","v":""},"","","","","","",{"$f":"IF(LEN(A115)=0,\"\",'Heat supplied (EC1)'!CA106)","v":""}]
[{"$f":"IF('Heat supplied (EC1)'!A107=\"\",\"\",'Heat supplied (EC1)'!A107)","v":""},{"$f":"'Heat supplied (EC1)'!BY107","v":""},"","","","","","",{"$f":"IF(LEN(A116)=0,\"\",'Heat supplied (EC1)'!CA107)","v":""}]
[{"$f":"IF('Heat supplied (EC1)'!A108=\"\",\"\",'Heat supplied (EC1)'!A108)","v":""},{"$f":"'Heat supplied (EC1)'!BY108","v":""},"","","","","","",{"$f":"IF(LEN(A117)=0,\"\",'Heat supplied (EC1)'!CA108)","v":""}]
[{"$f":"IF('Heat supplied (EC1)'!A109=\"\",\"\",'Heat supplied (EC1)'!A109)","v":""},{"$f":"'Heat supplied (EC1)'!BY109","v":""},"","","","","","",{"$f":"IF(LEN(A118)=0,\"\",'Heat supplied (EC1)'!CA109)","v":""}]
[{"$f":"IF('Heat supplied (EC1)'!A110=\"\",\"\",'Heat supplied (EC1)'!A110)","v":""},{"$f":"'Heat supplied (EC1)'!BY110","v":""},"","","","","","",{"$f":"IF(LEN(A119)=0,\"\",'Heat supplied (EC1)'!CA110)","v":""}]
[{"$f":"IF('Heat supplied (EC1)'!A111=\"\",\"\",'Heat supplied (EC1)'!A111)","v":""},{"$f":"'Heat supplied (EC1)'!BY111","v":""},"","","","","","",{"$f":"IF(LEN(A120)=0,\"\",'Heat supplied (EC1)'!CA111)","v":""}]
[{"$f":"IF('Heat supplied (EC1)'!A112=\"\",\"\",'Heat supplied (EC1)'!A112)","v":""},{"$f":"'Heat supplied (EC1)'!BY112","v":""},"","","","","","",{"$f":"IF(LEN(A121)=0,\"\",'Heat supplied (EC1)'!CA112)","v":""}]
[{"$f":"IF('Heat supplied (EC1)'!A113=\"\",\"\",'Heat supplied (EC1)'!A113)","v":""},{"$f":"'Heat supplied (EC1)'!BY113","v":""},"","","","","","",{"$f":"IF(LEN(A122)=0,\"\",'Heat supplied (EC1)'!CA113)","v":""}]
[{"$f":"IF('Heat supplied (EC1)'!A114=\"\",\"\",'Heat supplied (EC1)'!A114)","v":""},{"$f":"'Heat supplied (EC1)'!BY114","v":""},"","","","","","",{"$f":"IF(LEN(A123)=0,\"\",'Heat supplied (EC1)'!CA114)","v":""}]
[{"$f":"IF('Heat supplied (EC1)'!A115=\"\",\"\",'Heat supplied (EC1)'!A115)","v":""},{"$f":"'Heat supplied (EC1)'!BY115","v":""},"","","","","","",{"$f":"IF(LEN(A124)=0,\"\",'Heat supplied (EC1)'!CA115)","v":""}]
[{"$f":"IF('Heat supplied (EC1)'!A116=\"\",\"\",'Heat supplied (EC1)'!A116)","v":""},{"$f":"'Heat supplied (EC1)'!BY116","v":""},"","","","","","",{"$f":"IF(LEN(A125)=0,\"\",'Heat supplied (EC1)'!CA116)","v":""}]
[{"$f":"IF('Heat supplied (EC1)'!A117=\"\",\"\",'Heat supplied (EC1)'!A117)","v":""},{"$f":"'Heat supplied (EC1)'!BY117","v":""},"","","","","","",{"$f":"IF(LEN(A126)=0,\"\",'Heat supplied (EC1)'!CA117)","v":""}]
[{"$f":"IF('Heat supplied (EC1)'!A118=\"\",\"\",'Heat supplied (EC1)'!A118)","v":""},{"$f":"'Heat supplied (EC1)'!BY118","v":""},"","","","","","",{"$f":"IF(LEN(A127)=0,\"\",'Heat supplied (EC1)'!CA118)","v":""}]
[{"$f":"IF('Heat supplied (EC1)'!A119=\"\",\"\",'Heat supplied (EC1)'!A119)","v":""},{"$f":"'Heat supplied (EC1)'!BY119","v":""},"","","","","","",{"$f":"IF(LEN(A128)=0,\"\",'Heat supplied (EC1)'!CA119)","v":""}]
[{"$f":"IF('Heat supplied (EC1)'!A120=\"\",\"\",'Heat supplied (EC1)'!A120)","v":""},{"$f":"'Heat supplied (EC1)'!BY120","v":""},"","","","","","",{"$f":"IF(LEN(A129)=0,\"\",'Heat supplied (EC1)'!CA120)","v":""}]
[{"$f":"IF('Heat supplied (EC1)'!A121=\"\",\"\",'Heat supplied (EC1)'!A121)","v":""},{"$f":"'Heat supplied (EC1)'!BY121","v":""},"","","","","","",{"$f":"IF(LEN(A130)=0,\"\",'Heat supplied (EC1)'!CA121)","v":""}]
[{"$f":"IF('Heat supplied (EC1)'!A122=\"\",\"\",'Heat supplied (EC1)'!A122)","v":""},{"$f":"'Heat supplied (EC1)'!BY122","v":""},"","","","","","",{"$f":"IF(LEN(A131)=0,\"\",'Heat supplied (EC1)'!CA122)","v":""}]
[{"$f":"IF('Heat supplied (EC1)'!A123=\"\",\"\",'Heat supplied (EC1)'!A123)","v":""},{"$f":"'Heat supplied (EC1)'!BY123","v":""},"","","","","","",{"$f":"IF(LEN(A132)=0,\"\",'Heat supplied (EC1)'!CA123)","v":""}]
[{"$f":"IF('Heat supplied (EC1)'!A124=\"\",\"\",'Heat supplied (EC1)'!A124)","v":""},{"$f":"'Heat supplied (EC1)'!BY124","v":""},"","","","","","",{"$f":"IF(LEN(A133)=0,\"\",'Heat supplied (EC1)'!CA124)","v":""}]
[{"$f":"IF('Heat supplied (EC1)'!A125=\"\",\"\",'Heat supplied (EC1)'!A125)","v":""},{"$f":"'Heat supplied (EC1)'!BY125","v":""},"","","","","","",{"$f":"IF(LEN(A134)=0,\"\",'Heat supplied (EC1)'!CA125)","v":""}]
[{"$f":"IF('Heat supplied (EC1)'!A126=\"\",\"\",'Heat supplied (EC1)'!A126)","v":""},{"$f":"'Heat supplied (EC1)'!BY126","v":""},"","","","","","",{"$f":"IF(LEN(A135)=0,\"\",'Heat supplied (EC1)'!CA126)","v":""}]
[]
[]
[]
[]
[]
[]
[]
[]
[]
[]
[null,{"$f":"Instructions!A29","v":"Workbook Format 2.00.9 - 18.7.22"}]

{"sheet":"Overall Summary","index":6,"n_rows":136,"n_cols":2,"rows_kept":136,"cut":false,"hidden":false,"merged":[]}
[]
[null,"EC1"]
["Year to which the data relates",{"$f":"'Summary (EC1)'!B2","v":0}]
[]
["Total heat supplied to customers",{"$f":"'Summary (EC1)'!B4","v":0}]
[]
["Total heat supplied to buildings (inc secondary losses)",{"$f":"'Summary (EC1)'!B6","v":0}]
[]
["Total heat supplied to network",{"$f":"'Summary (EC1)'!B8","v":0}]
[]
["Primary Distribution loss factor",{"$f":"B9/B7","v":{"$error":"#DIV/0!"}}]
[]
["Long term average primary distribution loss factor",{"$f":"IF(ISBLANK('Summary (EC1)'!B12),\"\",'Summary (EC1)'!B12)","v":""}]
[]
["Electrical energy for pumping",{"$f":"'Summary (EC1)'!B14","v":0}]
[]
["DH Electricity per dwelling for pumping",{"$f":"'Summary (EC1)'!B16","v":0}]
[]
["Emissions Factor",{"$f":"'Summary (EC1)'!B18","v":{"$error":"#DIV/0!"}}]
[]
["Primary energy factor",{"$f":"'Summary (EC1)'!B20","v":{"$error":"#DIV/0!"}}]
[]
["Weighted Average Heat Price",{"$f":"'Summary (EC1)'!B22","v":{"$error":"#DIV/0!"}}]
[]
["Block Level Secondary DLF"]
[{"$f":"'Summary (EC1)'!A25","v":"Default New Connection"},{"$f":"'Summary (EC1)'!B25","v":1.18}]
[{"$f":"'Summary (EC1)'!A26","v":""},{"$f":"'Summary (EC1)'!B26","v":""}]
[{"$f":"'Summary (EC1)'!A27","v":""},{"$f":"'Summary (EC1)'!B27","v":""}]
[{"$f":"'Summary (EC1)'!A28","v":""},{"$f":"'Summary (EC1)'!B28","v":""}]
[{"$f":"'Summary (EC1)'!A29","v":""},{"$f":"'Summary (EC1)'!B29","v":""}]
[{"$f":"'Summary (EC1)'!A30","v":""},{"$f":"'Summary (EC1)'!B30","v":""}]
[{"$f":"'Summary (EC1)'!A31","v":""},{"$f":"'Summary (EC1)'!B31","v":""}]
[{"$f":"'Summary (EC1)'!A32","v":""},{"$f":"'Summary (EC1)'!B32","v":""}]
[{"$f":"'Summary (EC1)'!A33","v":""},{"$f":"'Summary (EC1)'!B33","v":""}]
[{"$f":"'Summary (EC1)'!A34","v":""},{"$f":"'Summary (EC1)'!B34","v":""}]
[{"$f":"'Summary (EC1)'!A35","v":""},{"$f":"'Summary (EC1)'!B35","v":""}]
[{"$f":"'Summary (EC1)'!A36","v":""},{"$f":"'Summary (EC1)'!B36","v":""}]
[{"$f":"'Summary (EC1)'!A37","v":""},{"$f":"'Summary (EC1)'!B37","v":""}]
[{"$f":"'Summary (EC1)'!A38","v":""},{"$f":"'Summary (EC1)'!B38","v":""}]
[{"$f":"'Summary (EC1)'!A39","v":""},{"$f":"'Summary (EC1)'!B39","v":""}]
[{"$f":"'Summary (EC1)'!A40","v":""},{"$f":"'Summary (EC1)'!B40","v":""}]
[{"$f":"'Summary (EC1)'!A41","v":""},{"$f":"'Summary (EC1)'!B41","v":""}]
[{"$f":"'Summary (EC1)'!A42","v":""},{"$f":"'Summary (EC1)'!B42","v":""}]
[{"$f":"'Summary (EC1)'!A43","v":""},{"$f":"'Summary (EC1)'!B43","v":""}]
[{"$f":"'Summary (EC1)'!A44","v":""},{"$f":"'Summary (EC1)'!B44","v":""}]
[{"$f":"'Summary (EC1)'!A45","v":""},{"$f":"'Summary (EC1)'!B45","v":""}]
[{"$f":"'Summary (EC1)'!A46","v":""},{"$f":"'Summary (EC1)'!B46","v":""}]
[{"$f":"'Summary (EC1)'!A47","v":""},{"$f":"'Summary (EC1)'!B47","v":""}]
[{"$f":"'Summary (EC1)'!A48","v":""},{"$f":"'Summary (EC1)'!B48","v":""}]
[{"$f":"'Summary (EC1)'!A49","v":""},{"$f":"'Summary (EC1)'!B49","v":""}]
[{"$f":"'Summary (EC1)'!A50","v":""},{"$f":"'Summary (EC1)'!B50","v":""}]
[{"$f":"'Summary (EC1)'!A51","v":""},{"$f":"'Summary (EC1)'!B51","v":""}]
[{"$f":"'Summary (EC1)'!A52","v":""},{"$f":"'Summary (EC1)'!B52","v":""}]
[{"$f":"'Summary (EC1)'!A53","v":""},{"$f":"'Summary (EC1)'!B53","v":""}]
[{"$f":"'Summary (EC1)'!A54","v":""},{"$f":"'Summary (EC1)'!B54","v":""}]
[{"$f":"'Summary (EC1)'!A55","v":""},{"$f":"'Summary (EC1)'!B55","v":""}]
[{"$f":"'Summary (EC1)'!A56","v":""},{"$f":"'Summary (EC1)'!B56","v":""}]
[{"$f":"'Summary (EC1)'!A57","v":""},{"$f":"'Summary (EC1)'!B57","v":""}]
[{"$f":"'Summary (EC1)'!A58","v":""},{"$f":"'Summary (EC1)'!B58","v":""}]
[{"$f":"'Summary (EC1)'!A59","v":""},{"$f":"'Summary (EC1)'!B59","v":""}]
[{"$f":"'Summary (EC1)'!A60","v":""},{"$f":"'Summary (EC1)'!B60","v":""}]
[{"$f":"'Summary (EC1)'!A61","v":""},{"$f":"'Summary (EC1)'!B61","v":""}]
[{"$f":"'Summary (EC1)'!A62","v":""},{"$f":"'Summary (EC1)'!B62","v":""}]
[{"$f":"'Summary (EC1)'!A63","v":""},{"$f":"'Summary (EC1)'!B63","v":""}]
[{"$f":"'Summary (EC1)'!A64","v":""},{"$f":"'Summary (EC1)'!B64","v":""}]
[{"$f":"'Summary (EC1)'!A65","v":""},{"$f":"'Summary (EC1)'!B65","v":""}]
[{"$f":"'Summary (EC1)'!A66","v":""},{"$f":"'Summary (EC1)'!B66","v":""}]
[{"$f":"'Summary (EC1)'!A67","v":""},{"$f":"'Summary (EC1)'!B67","v":""}]
[{"$f":"'Summary (EC1)'!A68","v":""},{"$f":"'Summary (EC1)'!B68","v":""}]
[{"$f":"'Summary (EC1)'!A69","v":""},{"$f":"'Summary (EC1)'!B69","v":""}]
[{"$f":"'Summary (EC1)'!A70","v":""},{"$f":"'Summary (EC1)'!B70","v":""}]
[{"$f":"'Summary (EC1)'!A71","v":""},{"$f":"'Summary (EC1)'!B71","v":""}]
[{"$f":"'Summary (EC1)'!A72","v":""},{"$f":"'Summary (EC1)'!B72","v":""}]
[{"$f":"'Summary (EC1)'!A73","v":""},{"$f":"'Summary (EC1)'!B73","v":""}]
[{"$f":"'Summary (EC1)'!A74","v":""},{"$f":"'Summary (EC1)'!B74","v":""}]
[{"$f":"'Summary (EC1)'!A75","v":""},{"$f":"'Summary (EC1)'!B75","v":""}]
[{"$f":"'Summary (EC1)'!A76","v":""},{"$f":"'Summary (EC1)'!B76","v":""}]
[{"$f":"'Summary (EC1)'!A77","v":""},{"$f":"'Summary (EC1)'!B77","v":""}]
[{"$f":"'Summary (EC1)'!A78","v":""},{"$f":"'Summary (EC1)'!B78","v":""}]
[{"$f":"'Summary (EC1)'!A79","v":""},{"$f":"'Summary (EC1)'!B79","v":""}]
[{"$f":"'Summary (EC1)'!A80","v":""},{"$f":"'Summary (EC1)'!B80","v":""}]
[{"$f":"'Summary (EC1)'!A81","v":""},{"$f":"'Summary (EC1)'!B81","v":""}]
[{"$f":"'Summary (EC1)'!A82","v":""},{"$f":"'Summary (EC1)'!B82","v":""}]
[{"$f":"'Summary (EC1)'!A83","v":""},{"$f":"'Summary (EC1)'!B83","v":""}]
[{"$f":"'Summary (EC1)'!A84","v":""},{"$f":"'Summary (EC1)'!B84","v":""}]
[{"$f":"'Summary (EC1)'!A85","v":""},{"$f":"'Summary (EC1)'!B85","v":""}]
[{"$f":"'Summary (EC1)'!A86","v":""},{"$f":"'Summary (EC1)'!B86","v":""}]
[{"$f":"'Summary (EC1)'!A87","v":""},{"$f":"'Summary (EC1)'!B87","v":""}]
[{"$f":"'Summary (EC1)'!A88","v":""},{"$f":"'Summary (EC1)'!B88","v":""}]
[{"$f":"'Summary (EC1)'!A89","v":""},{"$f":"'Summary (EC1)'!B89","v":""}]
[{"$f":"'Summary (EC1)'!A90","v":""},{"$f":"'Summary (EC1)'!B90","v":""}]
[{"$f":"'Summary (EC1)'!A91","v":""},{"$f":"'Summary (EC1)'!B91","v":""}]
[{"$f":"'Summary (EC1)'!A92","v":""},{"$f":"'Summary (EC1)'!B92","v":""}]
[{"$f":"'Summary (EC1)'!A93","v":""},{"$f":"'Summary (EC1)'!B93","v":""}]
[{"$f":"'Summary (EC1)'!A94","v":""},{"$f":"'Summary (EC1)'!B94","v":""}]
[{"$f":"'Summary (EC1)'!A95","v":""},{"$f":"'Summary (EC1)'!B95","v":""}]
[{"$f":"'Summary (EC1)'!A96","v":""},{"$f":"'Summary (EC1)'!B96","v":""}]
[{"$f":"'Summary (EC1)'!A97","v":""},{"$f":"'Summary (EC1)'!B97","v":""}]
[{"$f":"'Summary (EC1)'!A98","v":""},{"$f":"'Summary (EC1)'!B98","v":""}]
[{"$f":"'Summary (EC1)'!A99","v":""},{"$f":"'Summary (EC1)'!B99","v":""}]
[{"$f":"'Summary (EC1)'!A100","v":""},{"$f":"'Summary (EC1)'!B100","v":""}]
[{"$f":"'Summary (EC1)'!A101","v":""},{"$f":"'Summary (EC1)'!B101","v":""}]
[{"$f":"'Summary (EC1)'!A102","v":""},{"$f":"'Summary (EC1)'!B102","v":""}]
[{"$f":"'Summary (EC1)'!A103","v":""},{"$f":"'Summary (EC1)'!B103","v":""}]
[{"$f":"'Summary (EC1)'!A104","v":""},{"$f":"'Summary (EC1)'!B104","v":""}]
[{"$f":"'Summary (EC1)'!A105","v":""},{"$f":"'Summary (EC1)'!B105","v":""}]
[{"$f":"'Summary (EC1)'!A106","v":""},{"$f":"'Summary (EC1)'!B106","v":""}]
[{"$f":"'Summary (EC1)'!A107","v":""},{"$f":"'Summary (EC1)'!B107","v":""}]
[{"$f":"'Summary (EC1)'!A108","v":""},{"$f":"'Summary (EC1)'!B108","v":""}]
[{"$f":"'Summary (EC1)'!A109","v":""},{"$f":"'Summary (EC1)'!B109","v":""}]
[{"$f":"'Summary (EC1)'!A110","v":""},{"$f":"'Summary (EC1)'!B110","v":""}]
[{"$f":"'Summary (EC1)'!A111","v":""},{"$f":"'Summary (EC1)'!B111","v":""}]
[{"$f":"'Summary (EC1)'!A112","v":""},{"$f":"'Summary (EC1)'!B112","v":""}]
[{"$f":"'Summary (EC1)'!A113","v":""},{"$f":"'Summary (EC1)'!B113","v":""}]
[{"$f":"'Summary (EC1)'!A114","v":""},{"$f":"'Summary (EC1)'!B114","v":""}]
[{"$f":"'Summary (EC1)'!A115","v":""},{"$f":"'Summary (EC1)'!B115","v":""}]
[{"$f":"'Summary (EC1)'!A116","v":""},{"$f":"'Summary (EC1)'!B116","v":""}]
[{"$f":"'Summary (EC1)'!A117","v":""},{"$f":"'Summary (EC1)'!B117","v":""}]
[{"$f":"'Summary (EC1)'!A118","v":""},{"$f":"'Summary (EC1)'!B118","v":""}]
[{"$f":"'Summary (EC1)'!A119","v":""},{"$f":"'Summary (EC1)'!B119","v":""}]
[{"$f":"'Summary (EC1)'!A120","v":""},{"$f":"'Summary (EC1)'!B120","v":""}]
[{"$f":"'Summary (EC1)'!A121","v":""},{"$f":"'Summary (EC1)'!B121","v":""}]
[{"$f":"'Summary (EC1)'!A122","v":""},{"$f":"'Summary (EC1)'!B122","v":""}]
[{"$f":"'Summary (EC1)'!A123","v":""},{"$f":"'Summary (EC1)'!B123","v":""}]
[{"$f":"'Summary (EC1)'!A124","v":""},{"$f":"'Summary (EC1)'!B124","v":""}]
[{"$f":"'Summary (EC1)'!A125","v":""},{"$f":"'Summary (EC1)'!B125","v":""}]
[{"$f":"'Summary (EC1)'!A126","v":""},{"$f":"'Summary (EC1)'!B126","v":""}]
[{"$f":"'Summary (EC1)'!A127","v":""},{"$f":"'Summary (EC1)'!B127","v":""}]
[{"$f":"'Summary (EC1)'!A128","v":""},{"$f":"'Summary (EC1)'!B128","v":""}]
[{"$f":"'Summary (EC1)'!A129","v":""},{"$f":"'Summary (EC1)'!B129","v":""}]
[{"$f":"'Summary (EC1)'!A130","v":""},{"$f":"'Summary (EC1)'!B130","v":""}]
[{"$f":"'Summary (EC1)'!A131","v":""},{"$f":"'Summary (EC1)'!B131","v":""}]
[{"$f":"'Summary (EC1)'!A132","v":""},{"$f":"'Summary (EC1)'!B132","v":""}]
[{"$f":"'Summary (EC1)'!A133","v":""},{"$f":"'Summary (EC1)'!B133","v":""}]
[{"$f":"'Summary (EC1)'!A134","v":""},{"$f":"'Summary (EC1)'!B134","v":""}]
[{"$f":"'Summary (EC1)'!A135","v":""},{"$f":"'Summary (EC1)'!B135","v":""}]

{"sheet":"PCDB Data Summary","index":7,"n_rows":22,"n_cols":5,"rows_kept":22,"cut":false,"hidden":false,"merged":[]}
["For PCDB Administrator use only"]
[]
[]
[1,null,"Community heat network index number(digits)",null,"Unique index number for each network, assigned automatically by database software and used for control and reference purposes (See Section 4.2)."]
[2,"X","Community heat network version number (2 digits)",null,"Network version for the network identified in field 5. It is numbered from 1 upwards and incremented if the network is extended and when equipment data is amended (for example a change to a heat generator) or if the energy use information is updated."]
[3,"X","Status (one digit)",null,"Status of the data record, encoded as 0=normal status for an actual product, 1=illustrative (non-existent) product, 2=under investigation, 3=not valid, 4=methodology under review (See Section 5)."]
[4,null,"DB entry updated(yyyy/mmm/dd hh:mm)",null,"Date and time this record was created or last amended by the database administrator."]
[5,"X","Community heat network name(up to 50 chs.)",{"$f":"IF(ISBLANK(Background!B10),\"\",Background!B10)","v":""},"The name by which the community heat network is known."]
[6,null,"Description of network (up to 255 chs)",{"$f":"IF(ISBLANK(Background!B24),\"\",Background!B24)","v":""},"A short description identifying the dwellings to which the network version applies. Where the network is constructed in phases this may also indicate which phases are connected."]
[7,"X","Validity end date (yyyy/mmm/dd)",null,"The last day of validity of this data record. Dwellings assessed after this date use a data record with a higher network version number (in the case of new dwellings the applicable assessment date is that of the as-designed assessment). Blank if there is no record with a higher network version number."]
[8,null,"Postcode of the Primary Energy Centre (up to 8 chs)",{"$f":"IF(ISBLANK(Background!B14),\"\",Background!B14)","v":""},"The postcode of the energy centre providing heat for the network. Where there is more than one energy centre, it is the postcode for the energy centre supplying the largest amount of heat"]
[9,"X","Service provision (1 digit)",null,"Service provision, encoded as: 1 space and water heating; 3 space heating only; 4 water heating only. If a network has separate systems for space heating and water heating, there will be a record for each."]
[10,null,"Data source (1 digit)",null,"Whether the record represents provisional (estimated) data, actual recorded data or forecast data, encoded as 1,2 and 3 respectively. Provisional data may be assigned to new networks for which recorded data are not yet available."]
[11,null,"Year (up to 4 digits)",null,"The calendar year to which the data relates. Blank if provisional data."]
[12,null,"Number of sub-heat networks",1,"The total number of sub-heat networks included in the assessment of this heat network."]
[13,null,null,"Default New Connection","The name by which the sub community heat network is known."]
[14,null,"Overall Distribution loss factor (up to 4 chs, e.g. x.xx)",null,"Factor that allows for losses from the heat distribution network. Applicable to all connected premises."]
[15,null,"Pumping electrical energy per sub-heat network(up to 6 digits, e.g. xxxx.xx)",null,"Annual electrical energy for pumping in the heat distribution network attributed to each sub-heat network, in kWh/year."]
[16,null,"Pumping energy factor (up to 5 chs, e.g. x.xxx)",0.02,"Electrical energy used for pumping as fraction of heat energy supplied, attributed to each sub-heat network. Blank if unknown."]
[17,null,"Carbon dioxide intensity of heat (up to 6 digits e.g. xx.xxx)",null,"The average carbon dioxide intensity of the heat delivered to customers. in kg/kWh. This value takes into account all factors which influence the emissions associated with the heat supplied."]
[18,null,"Primary energy factor of heat up to 5 digits e.g. xx.xx)",null,"The average primary energy factor of the heat delivered to customers, in kWh/kWh. This value takes into account all factors which influence the primary energy associated with the heat supplied."]
[19,null,"Cost of heat up to 8 digits e.g xxxxx.xx",{"$error":"#DIV/0!"},"The cost of the heat delivered to customers, in pence/kWh. This value takes into account all factors which influence the cost associated with the heat supplied."]

{"sheet":"Format History","index":8,"n_rows":18,"n_cols":3,"rows_kept":18,"cut":false,"hidden":false,"merged":[]}
["FORMAT NUMBER","DATE","NOTES"]
[]
[1.2,"28.10.14","Draft 1"]
[1.3,"05.07.21","CD changes adding monthly CO2 and PE"]
[1.4,"06.09.21","CD changes to allow more heat generators"]
[1.5,"02.12.21","CD changes to allow multiple energy centres, adding weighted heat cost, block level DLF, long term PLF"]
[1.6,"13.12.21","CD changes to allow bespoke fuel"]
[1.7,"14.12.21","CD change to reflect high grade/low grade heat replacing industrial/commercial heat and added commissioning date"]
[1.8,"15.12.21","CD change to remove geothermal from lookup which was duplicated. Adjusted factors to match Table 12"]
[1.9,"23.2.22","CD changes to reflect consultation responses"]
[1.91,"8.3.22","CD changes to carbon factor lookups to match corrected 10.2 spec (Heat recovered from categories)"]
["1.99.7","10.5.22","CD changes to EC1 results formatting, adding data summary sheet and new pumping energy calc"]
["1.99.8","13.5.22","Corrections to biomass, biogas and December electricity PE factor lookups. CHP New date changed from 1/6/22 to 15/6/22."]
["1.99.9","17.5.22","Corrections to Emission & PE lookups on Energy Centre Sheet"]
["2.00.0","22.5.22","Long-term average plant mix added"]
["2.00.1","25.5.22","Error on \"Yes\" to multiple energy centres corrected"]
["2.00.3","25.6.22","Annual or monthly MWh allowed on Heat supplied tab"]
["2.00.9","18.7.22","Default connection functionality added plus export to CSV"]

{"sheet":"Lookups","index":9,"n_rows":100,"n_cols":16,"rows_kept":100,"cut":false,"hidden":true,"merged":[]}
[null,"CHP New date","2022-06-15"]
[null,"CHP Existing Old date","2015-01-01"]
[]
[null,"CHP type"]
[null,"Export Only"]
[null,"Flexible Operation"]
[null,"Standard"]
[]
[null,"Heat Generation Types"]
[null,"Boilers"]
[null,"Heat pump"]
[null,"Heat recovered without heat pump"]
[]
[]
[]
[]
[]
[null,"CO2e Emission Factors",null,null,"Jan","Feb","Mar","Apr","May","Jun","Jul","Aug","Sep","Oct","Nov","Dec"]
[null,"CHP Generated Electricity","New","Export Only",0.39400000000000002,0.39400000000000002,0.39400000000000002,0.39400000000000002,0.39400000000000002,0.39400000000000002,0.39400000000000002,0.39400000000000002,0.39400000000000002,0.39400000000000002,0.39400000000000002,0.39400000000000002]
[null,null,"New","Flexible Operation",0.42,0.42,0.42,0.42,0.42,0.42,0.42,0.42,0.42,0.42,0.42,0.42]
[null,null,"New","Standard",0.311,0.311,0.311,0.311,0.311,0.311,0.311,0.311,0.311,0.311,0.311,0.311]
[null,null,"Existing","Export Only",0.39400000000000002,0.39400000000000002,0.39400000000000002,0.39400000000000002,0.39400000000000002,0.39400000000000002,0.39400000000000002,0.39400000000000002,0.39400000000000002,0.39400000000000002,0.39400000000000002,0.39400000000000002]
[null,null,"Existing","Flexible Operation",0.42,0.42,0.42,0.42,0.42,0.42,0.42,0.42,0.42,0.42,0.42,0.42]
[null,null,"Existing","Standard",0.34799999999999998,0.34799999999999998,0.34799999999999998,0.34799999999999998,0.34799999999999998,0.34799999999999998,0.34799999999999998,0.34799999999999998,0.34799999999999998,0.34799999999999998,0.34799999999999998,0.34799999999999998]
[null,null,"Existing (pre-2015)","Export Only",0.39400000000000002,0.39400000000000002,0.39400000000000002,0.39400000000000002,0.39400000000000002,0.39400000000000002,0.39400000000000002,0.39400000000000002,0.39400000000000002,0.39400000000000002,0.39400000000000002,0.39400000000000002]
[null,null,"Existing (pre-2015)","Flexible Operation",0.42,0.42,0.42,0.42,0.42,0.42,0.42,0.42,0.42,0.42,0.42,0.42]
[null,null,"Existing (pre-2015)","Standard",0.374,0.374,0.374,0.374,0.374,0.374,0.374,0.374,0.374,0.374,0.374,0.374]
[]
[null,null,null,"B30D",0.26900000000000002,0.26900000000000002,0.26900000000000002,0.26900000000000002,0.26900000000000002,0.26900000000000002,0.26900000000000002,0.26900000000000002,0.26900000000000002,0.26900000000000002,0.26900000000000002,0.26900000000000002]
[null,null,null,"Bespoke fuel",{"$f":"'Special Fuels'!$C$11","v":0},{"$f":"'Special Fuels'!$C$11","v":0},{"$f":"'Special Fuels'!$C$11","v":0},{"$f":"'Special Fuels'!$C$11","v":0},{"$f":"'Special Fuels'!$C$11","v":0},{"$f":"'Special Fuels'!$C$11","v":0},{"$f":"'Special Fuels'!$C$11","v":0},{"$f":"'Special Fuels'!$C$11","v":0},{"$f":"'Special Fuels'!$C$11","v":0},{"$f":"'Special Fuels'!$C$11","v":0},{"$f":"'Special Fuels'!$C$11","v":0},{"$f":"'Special Fuels'!$C$11","v":0}]
[null,null,null,"Biogas (landfill or sewage gas)",2.4E-2,2.4E-2,2.4E-2,2.4E-2,2.4E-2,2.4E-2,2.4E-2,2.4E-2,2.4E-2,2.4E-2,2.4E-2,2.4E-2]
[null,null,null,"Biomass",2.9000000000000001E-2,2.9000000000000001E-2,2.9000000000000001E-2,2.9000000000000001E-2,2.9000000000000001E-2,2.9000000000000001E-2,2.9000000000000001E-2,2.9000000000000001E-2,2.9000000000000001E-2,2.9000000000000001E-2,2.9000000000000001E-2,2.9000000000000001E-2]
[null,null,null,"Coal",0.375,0.375,0.375,0.375,0.375,0.375,0.375,0.375,0.375,0.375,0.375,0.375]
[null,null,null,"Electricity",0.16300000000000001,0.16,0.153,0.14299999999999999,0.13200000000000001,0.12,0.111,0.112,0.122,0.13600000000000001,0.151,0.16300000000000001]
[null,null,null,"FAME from animal/vegetable oils",1.7999999999999999E-2,1.7999999999999999E-2,1.7999999999999999E-2,1.7999999999999999E-2,1.7999999999999999E-2,1.7999999999999999E-2,1.7999999999999999E-2,1.7999999999999999E-2,1.7999999999999999E-2,1.7999999999999999E-2,1.7999999999999999E-2,1.7999999999999999E-2]
[null,null,null,"Green Gas Mix",{"$f":"'Special Fuels'!$C$8","v":0},{"$f":"'Special Fuels'!$C$8","v":0},{"$f":"'Special Fuels'!$C$8","v":0},{"$f":"'Special Fuels'!$C$8","v":0},{"$f":"'Special Fuels'!$C$8","v":0},{"$f":"'Special Fuels'!$C$8","v":0},{"$f":"'Special Fuels'!$C$8","v":0},{"$f":"'Special Fuels'!$C$8","v":0},{"$f":"'Special Fuels'!$C$8","v":0},{"$f":"'Special Fuels'!$C$8","v":0},{"$f":"'Special Fuels'!$C$8","v":0},{"$f":"'Special Fuels'!$C$8","v":0}]
[null,null,null,"HVO from used cooking oil",3.5999999999999997E-2,3.5999999999999997E-2,3.5999999999999997E-2,3.5999999999999997E-2,3.5999999999999997E-2,3.5999999999999997E-2,3.5999999999999997E-2,3.5999999999999997E-2,3.5999999999999997E-2,3.5999999999999997E-2,3.5999999999999997E-2,3.5999999999999997E-2]
[null,null,null,"Hydrogen",{"$f":"'Special Fuels'!$C$5","v":0},{"$f":"'Special Fuels'!$C$5","v":0},{"$f":"'Special Fuels'!$C$5","v":0},{"$f":"'Special Fuels'!$C$5","v":0},{"$f":"'Special Fuels'!$C$5","v":0},{"$f":"'Special Fuels'!$C$5","v":0},{"$f":"'Special Fuels'!$C$5","v":0},{"$f":"'Special Fuels'!$C$5","v":0},{"$f":"'Special Fuels'!$C$5","v":0},{"$f":"'Special Fuels'!$C$5","v":0},{"$f":"'Special Fuels'!$C$5","v":0},{"$f":"'Special Fuels'!$C$5","v":0}]
[null,null,null,"LPG",0.24099999999999999,0.24099999999999999,0.24099999999999999,0.24099999999999999,0.24099999999999999,0.24099999999999999,0.24099999999999999,0.24099999999999999,0.24099999999999999,0.24099999999999999,0.24099999999999999,0.24099999999999999]
[null,null,null,"Mains gas",0.21,0.21,0.21,0.21,0.21,0.21,0.21,0.21,0.21,0.21,0.21,0.21]
[null,null,null,"Oil",0.33500000000000002,0.33500000000000002,0.33500000000000002,0.33500000000000002,0.33500000000000002,0.33500000000000002,0.33500000000000002,0.33500000000000002,0.33500000000000002,0.33500000000000002,0.33500000000000002,0.33500000000000002]
[]
[null,null,null,"Heat Recovered from Geothermal or other natural sources",1.0999999999999999E-2,1.0999999999999999E-2,1.0999999999999999E-2,1.0999999999999999E-2,1.0999999999999999E-2,1.0999999999999999E-2,1.0999999999999999E-2,1.0999999999999999E-2,1.0999999999999999E-2,1.0999999999999999E-2,1.0999999999999999E-2,1.0999999999999999E-2]
[null,null,null,"Heat Recovered from Other High Grade Processes",1.0999999999999999E-2,1.0999999999999999E-2,1.0999999999999999E-2,1.0999999999999999E-2,1.0999999999999999E-2,1.0999999999999999E-2,1.0999999999999999E-2,1.0999999999999999E-2,1.0999999999999999E-2,1.0999999999999999E-2,1.0999999999999999E-2,1.0999999999999999E-2]
[null,null,null,"Heat Recovered from Power Station",1.4999999999999999E-2,1.4999999999999999E-2,1.4999999999999999E-2,1.4999999999999999E-2,1.4999999999999999E-2,1.4999999999999999E-2,1.4999999999999999E-2,1.4999999999999999E-2,1.4999999999999999E-2,1.4999999999999999E-2,1.4999999999999999E-2,1.4999999999999999E-2]
[null,null,null,"Heat Recovered from Waste Combustion",1.4999999999999999E-2,1.4999999999999999E-2,1.4999999999999999E-2,1.4999999999999999E-2,1.4999999999999999E-2,1.4999999999999999E-2,1.4999999999999999E-2,1.4999999999999999E-2,1.4999999999999999E-2,1.4999999999999999E-2,1.4999999999999999E-2,1.4999999999999999E-2]
[]
[null,"Primary Energy Factors",null,null,"Jan","Feb","Mar","Apr","May","Jun","Jul","Aug","Sep","Oct","Nov","Dec"]
[null,"CHP Generated Electricity","New","Export Only",2.3450000000000002,2.3450000000000002,2.3450000000000002,2.3450000000000002,2.3450000000000002,2.3450000000000002,2.3450000000000002,2.3450000000000002,2.3450000000000002,2.3450000000000002,2.3450000000000002,2.3450000000000002]
[null,null,"New","Flexible Operation",2.3690000000000002,2.3690000000000002,2.3690000000000002,2.3690000000000002,2.3690000000000002,2.3690000000000002,2.3690000000000002,2.3690000000000002,2.3690000000000002,2.3690000000000002,2.3690000000000002,2.3690000000000002]
[null,null,"New","Standard",2.1070000000000002,2.1070000000000002,2.1070000000000002,2.1070000000000002,2.1070000000000002,2.1070000000000002,2.1070000000000002,2.1070000000000002,2.1070000000000002,2.1070000000000002,2.1070000000000002,2.1070000000000002]
[null,null,"Existing","Export Only",2.3450000000000002,2.3450000000000002,2.3450000000000002,2.3450000000000002,2.3450000000000002,2.3450000000000002,2.3450000000000002,2.3450000000000002,2.3450000000000002,2.3450000000000002,2.3450000000000002,2.3450000000000002]
[null,null,"Existing","Flexible Operation",2.3690000000000002,2.3690000000000002,2.3690000000000002,2.3690000000000002,2.3690000000000002,2.3690000000000002,2.3690000000000002,2.3690000000000002,2.3690000000000002,2.3690000000000002,2.3690000000000002,2.3690000000000002]
[null,null,"Existing","Standard",2.149,2.149,2.149,2.149,2.149,2.149,2.149,2.149,2.149,2.149,2.149,2.149]
[null,null,"Existing (pre-2015)","Export Only",2.3450000000000002,2.3450000000000002,2.3450000000000002,2.3450000000000002,2.3450000000000002,2.3450000000000002,2.3450000000000002,2.3450000000000002,2.3450000000000002,2.3450000000000002,2.3450000000000002,2.3450000000000002]
[null,null,"Existing (pre-2015)","Flexible Operation",2.3690000000000002,2.3690000000000002,2.3690000000000002,2.3690000000000002,2.3690000000000002,2.3690000000000002,2.3690000000000002,2.3690000000000002,2.3690000000000002,2.3690000000000002,2.3690000000000002,2.3690000000000002]
[null,null,"Existing (pre-2015)","Standard",2.23,2.23,2.23,2.23,2.23,2.23,2.23,2.23,2.23,2.23,2.23,2.23]
[]
[null,null,null,"B30D",1.0900000000000001,1.0900000000000001,1.0900000000000001,1.0900000000000001,1.0900000000000001,1.0900000000000001,1.0900000000000001,1.0900000000000001,1.0900000000000001,1.0900000000000001,1.0900000000000001,1.0900000000000001]
[null,null,null,"Bespoke fuel",{"$f":"'Special Fuels'!$C$12","v":0},{"$f":"'Special Fuels'!$C$12","v":0},{"$f":"'Special Fuels'!$C$12","v":0},{"$f":"'Special Fuels'!$C$12","v":0},{"$f":"'Special Fuels'!$C$12","v":0},{"$f":"'Special Fuels'!$C$12","v":0},{"$f":"'Special Fuels'!$C$12","v":0},{"$f":"'Special Fuels'!$C$12","v":0},{"$f":"'Special Fuels'!$C$12","v":0},{"$f":"'Special Fuels'!$C$12","v":0},{"$f":"'Special Fuels'!$C$12","v":0},{"$f":"'Special Fuels'!$C$12","v":0}]
[null,null,null,"Biogas (landfill or sewage gas)",1.286,1.286,1.286,1.286,1.286,1.286,1.286,1.286,1.286,1.286,1.286,1.286]
[null,null,null,"Biomass",1.0369999999999999,1.0369999999999999,1.0369999999999999,1.0369999999999999,1.0369999999999999,1.0369999999999999,1.0369999999999999,1.0369999999999999,1.0369999999999999,1.0369999999999999,1.0369999999999999,1.0369999999999999]
[null,null,null,"Coal",1.0640000000000001,1.0640000000000001,1.0640000000000001,1.0640000000000001,1.0640000000000001,1.0640000000000001,1.0640000000000001,1.0640000000000001,1.0640000000000001,1.0640000000000001,1.0640000000000001,1.0640000000000001]
[null,null,null,"Electricity",1.6020000000000001,1.593,1.5680000000000001,1.53,1.4870000000000001,1.4410000000000001,1.41,1.413,1.4490000000000001,1.504,1.5580000000000001,1.6040000000000001]
[null,null,null,"FAME from animal/vegetable oils",1.18,1.18,1.18,1.18,1.18,1.18,1.18,1.18,1.18,1.18,1.18,1.18]
[null,null,null,"Green Gas Mix",{"$f":"'Special Fuels'!$C$9","v":0},{"$f":"'Special Fuels'!$C$9","v":0},{"$f":"'Special Fuels'!$C$9","v":0},{"$f":"'Special Fuels'!$C$9","v":0},{"$f":"'Special Fuels'!$C$9","v":0},{"$f":"'Special Fuels'!$C$9","v":0},{"$f":"'Special Fuels'!$C$9","v":0},{"$f":"'Special Fuels'!$C$9","v":0},{"$f":"'Special Fuels'!$C$9","v":0},{"$f":"'Special Fuels'!$C$9","v":0},{"$f":"'Special Fuels'!$C$9","v":0},{"$f":"'Special Fuels'!$C$9","v":0}]
[null,null,null,"HVO from used cooking oil",1.18,1.18,1.18,1.18,1.18,1.18,1.18,1.18,1.18,1.18,1.18,1.18]
[null,null,null,"Hydrogen",{"$f":"'Special Fuels'!$C$6","v":0},{"$f":"'Special Fuels'!$C$6","v":0},{"$f":"'Special Fuels'!$C$6","v":0},{"$f":"'Special Fuels'!$C$6","v":0},{"$f":"'Special Fuels'!$C$6","v":0},{"$f":"'Special Fuels'!$C$6","v":0},{"$f":"'Special Fuels'!$C$6","v":0},{"$f":"'Special Fuels'!$C$6","v":0},{"$f":"'Special Fuels'!$C$6","v":0},{"$f":"'Special Fuels'!$C$6","v":0},{"$f":"'Special Fuels'!$C$6","v":0},{"$f":"'Special Fuels'!$C$6","v":0}]
[null,null,null,"LPG",1.141,1.141,1.141,1.141,1.141,1.141,1.141,1.141,1.141,1.141,1.141,1.141]
[null,null,null,"Mains gas",1.1299999999999999,1.1299999999999999,1.1299999999999999,1.1299999999999999,1.1299999999999999,1.1299999999999999,1.1299999999999999,1.1299999999999999,1.1299999999999999,1.1299999999999999,1.1299999999999999,1.1299999999999999]
[null,null,null,"Oil",1.18,1.18,1.18,1.18,1.18,1.18,1.18,1.18,1.18,1.18,1.18,1.18]
[]
[null,null,null,"Heat Recovered from Geothermal or Other Natural Sources",5.0999999999999997E-2,5.0999999999999997E-2,5.0999999999999997E-2,5.0999999999999997E-2,5.0999999999999997E-2,5.0999999999999997E-2,5.0999999999999997E-2,5.0999999999999997E-2,5.0999999999999997E-2,5.0999999999999997E-2,5.0999999999999997E-2,5.0999999999999997E-2]
[null,null,null,"Heat Recovered from Other High Grade Processes",5.0999999999999997E-2,5.0999999999999997E-2,5.0999999999999997E-2,5.0999999999999997E-2,5.0999999999999997E-2,5.0999999999999997E-2,5.0999999999999997E-2,5.0999999999999997E-2,5.0999999999999997E-2,5.0999999999999997E-2,5.0999999999999997E-2,5.0999999999999997E-2]
[null,null,null,"Heat Recovered from Power Station",6.3E-2,6.3E-2,6.3E-2,6.3E-2,6.3E-2,6.3E-2,6.3E-2,6.3E-2,6.3E-2,6.3E-2,6.3E-2,6.3E-2]
[null,null,null,"Heat Recovered from Waste Combustion",6.3E-2,6.3E-2,6.3E-2,6.3E-2,6.3E-2,6.3E-2,6.3E-2,6.3E-2,6.3E-2,6.3E-2,6.3E-2,6.3E-2]
[]
[]
[]
[]
[]
[]
[]
[]
[]
[]
[]
[]
[]
[]
[]
[]
[]
[]
[]
[]
[]
[]
[]
[null,null,"Network Architecture"]